Workbook

Sheet حركة شهر 1
A1: حركة شهر 2025/01
C3: =SUMIF(F8:F50,F3,G8:G50) -> 1900 | F3: عامر | K3: مصروفات شهر 1 | L3: =C5+G5+K5+T5+Y5 -> 31305 | S3: =CELL("address",A1) -> $A$1
K4: حركة شهر 1 | N4: =P5-C5-G5-K5-T5-Y5 -> 33045 | O4: رصيد حركة سنوات سابقة | S4: =CELL("address") -> [MAM2.xlsm]sheet30!$L$16
C5: =SUM(C8:C47) -> 401 | G5: =SUM(G8:G47) -> 5300 | K5: =SUM(K8:K47) -> 11950 | N5: =P5-C5-G5-K5-T5-Y5+P4 -> 33045 | O5: صافي الدخل وماقبل | P5: =SUM(P8:P47) -> 64350 | S5: =CELL("address",A1)=CELL("address") -> FALSE | T5: =SUM(T8:T47) -> 2957 | Y5: =SUM(Y8:Y47) -> 10697
A6: مـصــروفات مواد السمكرة | E6: سلفيات العمال | I6: رواتب العمال | M6: الـدخـل الــشــهــري | R6: مـصــروفات متنوعة | V6: ســداد مــوردين
A7: الرقم | B7: الـــبـــــــيـــــــــــــــان | C7: المبلغ | E7: الرقم | F7: اسم العامل | G7: المبلغ | I7: الرقم | J7: اسم العامل | K7: المبلغ | M7: الرقم | N7: رقم الفاتورة | O7: الـــبـــــــيـــــــــــــــان | P7: المبلغ | R7: الرقم | S7: الـــبـــــــيـــــــــــــــان | T7: المبلغ | V7: الرقم | W7: رقم السند | X7: الـــبـــــــيـــــــــــــــان | Y7: المبلغ
A8: 1 | B8: أساس بوية | C8: 207 | E8: 1 | F8: عامر | G8: 1900 | I8: 1 | J8: اوفر تايم شمس | K8: 150 | M8: 1 | O8: ددسن | P8: 1300 | R8: 1 | S8: بنزين | T8: 50 | V8: 1 | X8: باسمير | Y8: 1334
A9: 2 | B9: اكسجين | C9: 170 | E9: 2 | F9: علمان | G9: 900 | I9: 2 | J9: عامر | K9: 800 | M9: 2 | O9: سيرا جمس | P9: 2400 | R9: 2 | S9: سطحة | T9: 1000 | V9: 2 | X9: باجيل | Y9: 3000
A10: 3 | B10: رول بلاستيك | C10: 24 | E10: 3 | F10: جلال | G10: 500 | I10: 3 | J10: علمان | K10: 1800 | M10: 3 | O10: باترول نيسان | P10: 1850 | R10: 3 | S10: شمعة السوري فورد | T10: 80 | V10: 3 | X10: العمودي | Y10: 400
A11: 4 | E11: 4 | F11: يوسف | G11: 1200 | I11: 4 | J11: جلال | K11: 2000 | M11: 4 | O11: تورس فورد | P11: 1500 | R11: 4 | S11: متعب | T11: 346 | V11: 4 | X11: باسمير | Y11: 1000
A12: 5 | E12: 5 | F12: شمس الدين | G12: 200 | I12: 5 | J12: يوسف | K12: 1800 | M12: 5 | O12: دي ماكس | P12: 1300 | R12: 5 | S12: لميات للفرن | T12: 187 | V12: 5 | X12: صالح | Y12: 1090
A13: 6 | E13: 6 | F13: حبيب | G13: 600 | I13: 6 | J13: شمس الدين | K13: 2500 | M13: 6 | O13: أجور سيارات المقناص 7 | P13: 56000 | R13: 6 | S13: تسيخ الشاص | T13: 150 | V13: 6 | X13: العالمية | Y13: 373
A14: 7 | E14: 7 | I14: 7 | J14: حبيب | K14: 2900 | M14: 7 | R14: 7 | S14: دوا شق -ثادق | T14: 290 | V14: 7 | X14: باسمير | Y14: 1000
A15: 8 | E15: 8 | I15: 8 | M15: 8 | R15: 8 | S15: موية | T15: 35 | V15: 8 | X15: باسمير | Y15: 1000
A16: 9 | E16: 9 | I16: 9 | M16: 9 | R16: 9 | S16: بفر سفنجة تلميع | T16: 25 | V16: 9 | X16: ابوسلطان | Y16: 500
A17: 10 | E17: 10 | I17: 10 | M17: 10 | R17: 10 | S17: جوال متعب | T17: 344 | V17: 10 | X17: صالح | Y17: 1000
A18: 11 | E18: 11 | I18: 11 | M18: 11 | R18: 11 | S18: اسمنت أرضية الفرن | T18: 100 | V18: 11
A19: 12 | E19: 12 | I19: 12 | M19: 12 | R19: 12 | S19: عامر القزاز | T19: 350 | V19: 12
A20: 13 | E20: 13 | I20: 13 | M20: 13 | R20: 13 | V20: 13
A21: 14 | E21: 14 | I21: 14 | M21: 14 | R21: 14 | V21: 14
A22: 15 | E22: 15 | I22: 15 | M22: 15 | R22: 15 | V22: 15
A23: 16 | E23: 16 | I23: 16 | M23: 16 | R23: 16 | V23: 16
A24: 17 | E24: 17 | I24: 17 | M24: 17 | R24: 17 | V24: 17
A25: 18 | E25: 18 | I25: 18 | M25: 18 | R25: 18 | V25: 18
A26: 19 | E26: 19 | I26: 19 | M26: 19 | R26: 19 | V26: 19
A27: 20 | E27: 20 | I27: 20 | M27: 20 | R27: 20 | V27: 20
A28: 21 | E28: 21 | I28: 21 | M28: 21 | R28: 21 | V28: 21
A29: 22 | E29: 22 | I29: 22 | M29: 22 | R29: 22 | V29: 22
A30: 23 | E30: 23 | I30: 23 | M30: 23 | R30: 23 | V30: 23
A31: 24 | E31: 24 | I31: 24 | M31: 24 | R31: 24 | V31: 24
A32: 25 | E32: 25 | I32: 25 | M32: 25 | R32: 25 | V32: 25
A33: 26 | E33: 26 | I33: 26 | M33: 26 | R33: 26 | V33: 26
A34: 27 | E34: 27 | I34: 27 | M34: 27 | R34: 27 | V34: 27
A35: 28 | E35: 28 | I35: 28 | M35: 28 | R35: 28 | V35: 28
A36: 29 | E36: 29 | I36: 29 | M36: 29 | R36: 29 | V36: 29
A37: 30 | E37: 30 | I37: 30 | M37: 30 | R37: 30 | V37: 30
A38: 31 | E38: 31 | I38: 31 | M38: 31 | R38: 31 | V38: 31
A39: 32 | E39: 32 | I39: 32 | M39: 32 | R39: 32 | V39: 32
A40: 33 | E40: 33 | I40: 33 | M40: 33 | R40: 33 | V40: 33
A41: 34 | E41: 34 | I41: 34 | M41: 34 | R41: 34 | V41: 34
A42: 35 | E42: 35 | I42: 35 | M42: 35 | R42: 35 | V42: 35
A43: 36 | E43: 36 | I43: 36 | M43: 36 | R43: 36 | V43: 36
A44: 37 | E44: 37 | I44: 37 | M44: 37 | R44: 37 | V44: 37
A45: 38 | E45: 38 | I45: 38 | M45: 38 | R45: 38 | V45: 38
A46: 39 | E46: 39 | I46: 39 | M46: 39 | R46: 39 | V46: 39
A47: 40 | E47: 40 | I47: 40 | M47: 40 | R47: 40 | V47: 40

Sheet حركة شهر 2
A1: حـــركـــات شــــهــــر 2025/02
C3: =SUMIF(F8:F50,F3,G8:G50) -> 0 | K3: مصروفات شهر 2 | L3: =C5+G5+K5+T5+Y5 -> 63966 | S3: =CELL("address",A1) -> $A$1
K4: حركة شهر 2 | N4: =P5-C5-G5-K5-T5-Y5 -> -22601 | O4: رصيد حركة شهر 1 مرحل | P4: ='حركة شهر 1'!N5 -> 33045 | S4: =CELL("address") -> [MAM2.xlsm]sheet30!$L$16
C5: =SUM(C8:C47) -> 548 | G5: =SUM(G8:G47) -> 1500 | K5: =SUM(K8:K47) -> 21760 | N5: =P5-C5-G5-K5-T5-Y5+P4 -> 10444 | O5: صافي الدخل | P5: =SUM(P8:P47) -> 41365 | S5: =CELL("address",A1)=CELL("address") -> FALSE | T5: =SUM(T8:T60) -> 19703 | Y5: =SUM(Y8:Y47) -> 20455
A6: مـصــروفات مواد السمكرة | E6: سلفيات العمال | I6: رواتب العمال | M6: الـدخـل الــشــهــري | R6: مـصــروفات متنوعة | V6: ســداد مــوردين
A7: الرقم | B7: الـــبـــــــيـــــــــــــــان | C7: المبلغ | E7: الرقم | F7: اسم العامل | G7: المبلغ | I7: الرقم | J7: اسم العامل | K7: المبلغ | M7: الرقم | N7: رقم الفاتورة | O7: الـــبـــــــيـــــــــــــــان | P7: المبلغ | R7: الرقم | S7: الـــبـــــــيـــــــــــــــان | T7: المبلغ | V7: الرقم | W7: رقم السند | X7: الـــبـــــــيـــــــــــــــان | Y7: المبلغ
A8: 1 | B8: سيلكون | C8: 18 | E8: 1 | F8: عامر | G8: 1000 | I8: 1 | J8: اوفرتايم ثامر | K8: 300 | M8: 1 | N8: 1725 | O8: ازيرا | P8: 3500 | R8: 1 | S8: غداء | T8: 20 | V8: 1 | X8: سداد صالح | Y8: 1500
A9: 2 | B9: سيلكون | C9: 25 | E9: 2 | F9: ثامر | G9: 500 | I9: 2 | J9: اوفرتايم علمان | K9: 570 | M9: 2 | N9: 1715 | O9: شاص تويوتا | P9: 3500 | R9: 2 | S9: صدام تشليح لكزس | T9: 2700 | V9: 2 | X9: سداد صالح | Y9: 535
A10: 3 | B10: رول بلاستيك | C10: 35 | E10: 3 | I10: 3 | J10: اوفر تايم جلال | K10: 450 | M10: 3 | N10: 1713 | O10: سيات | P10: 700 | R10: 3 | S10: دواء لعامر | T10: 50 | V10: 3 | X10: باسمير | Y10: 1500
A11: 4 | B11: بولش | C11: 70 | E11: 4 | I11: 4 | J11: اوفرتايم حبيب | K11: 510 | M11: 4 | N11: 1711 | O11: مازدا | P11: 400 | R11: 4 | S11: غداء | T11: 60 | V11: 4 | X11: باجيل | Y11: 4000
A12: 5 | B12: ورق فرن | C12: 400 | E12: 5 | I12: 5 | J12: اوفر تايم شمس | K12: 410 | M12: 5 | N12: 1709 | O12: افالون | P12: 600 | R12: 5 | S12: غداء | T12: 75 | V12: 5 | X12: العمودي | Y12: 665
A13: 6 | E13: 6 | I13: 6 | J13: اوفرتايم يوسف | K13: 420 | M13: 6 | N13: 1707 | O13: كريتا | P13: 2000 | R13: 6 | S13: قطع اكسنت | T13: 800 | V13: 6 | X13: سداد صالح | Y13: 2000
A14: 7 | E14: 7 | I14: 7 | J14: اوفر تايم عامر | K14: 500 | M14: 7 | N14: 1705 | O14: مازدا | P14: 1500 | R14: 7 | S14: مساعدات | T14: 525 | V14: 7 | X14: باسمير | Y14: 2000
A15: 8 | E15: 8 | I15: 8 | J15: عامر | K15: 1700 | M15: 8 | N15: 1701 | O15: دي ماكس | P15: 7000 | R15: 8 | S15: غداء | T15: 75 | V15: 8 | X15: العالمية | Y15: 355
A16: 9 | E16: 9 | I16: 9 | J16: ثامر | K16: 2500 | M16: 9 | N16: 1699 | O16: ماركيز | P16: 1500 | R16: 9 | S16: صدام تشليح | T16: 1800 | V16: 9 | X16: سداد صالح | Y16: 2000
A17: 10 | E17: 10 | I17: 10 | J17: شمس الدين | K17: 2700 | M17: 10 | N17: 1697 | O17: كامري | P17: 1500 | R17: 10 | S17: تامين | T17: 230 | V17: 10 | X17: باسمير | Y17: 2500
A18: 11 | E18: 11 | I18: 11 | J18: جلال | K18: 2500 | M18: 11 | N18: 1695 | O18: لاند كروزر | P18: 3200 | R18: 11 | S18: مراية جيب مقلوب | T18: 150 | V18: 11 | X18: سداد صالح | Y18: 3400
A19: 12 | E19: 12 | I19: 12 | J19: يوسف | K19: 3000 | M19: 12 | N19: 1693 | O19: لكزس | P19: 4300 | R19: 12 | S19: غداء | T19: 65 | V19: 12
A20: 13 | E20: 13 | I20: 13 | J20: حبيب | K20: 3500 | M20: 13 | N20: 1691 | O20: ماركيز فورد | P20: 2555 | R20: 13 | S20: غداء | T20: 60 | V20: 13
A21: 14 | E21: 14 | I21: 14 | J21: علمان | K21: 2700 | M21: 14 | N21: 1683 | O21: سوناتا | P21: 5910 | R21: 14 | S21: غداء | T21: 50 | V21: 14
A22: 15 | E22: 15 | I22: 15 | M22: 15 | N22: 1669 | O22: لاند كروزر | P22: 2000 | R22: 15 | S22: شمعة الدوج | T22: 2600 | V22: 15
A23: 16 | E23: 16 | I23: 16 | M23: 16 | N23: 1653 | P23: 1200 | R23: 16 | S23: قسط جوال متعب | T23: 1460 | V23: 16
A24: 17 | E24: 17 | I24: 17 | M24: 17 | R24: 17 | S24: غداء | T24: 50 | V24: 17
A25: 18 | E25: 18 | I25: 18 | M25: 18 | R25: 18 | S25: صدام مجيد | T25: 2000 | V25: 18
A26: 19 | E26: 19 | I26: 19 | M26: 19 | R26: 19 | S26: غداء | T26: 50 | V26: 19
A27: 20 | E27: 20 | I27: 20 | M27: 20 | R27: 20 | S27: غداء | T27: 50 | V27: 20
A28: 21 | E28: 21 | I28: 21 | M28: 21 | R28: 21 | S28: واكس شامبو جهاز رغوة | T28: 400 | V28: 21
A29: 22 | E29: 22 | I29: 22 | M29: 22 | R29: 22 | S29: زجاج المقلوب | T29: 300 | V29: 22
A30: 23 | E30: 23 | I30: 23 | M30: 23 | R30: 23 | S30: شمعة جيب ريان | T30: 2000 | V30: 23
A31: 24 | E31: 24 | I31: 24 | M31: 24 | R31: 24 | S31: غداء | T31: 65 | V31: 24
A32: 25 | E32: 25 | I32: 25 | M32: 25 | R32: 25 | S32: بنزين | T32: 30 | V32: 25
A33: 26 | E33: 26 | I33: 26 | M33: 26 | R33: 26 | S33: غداء | T33: 65 | V33: 26
A34: 27 | E34: 27 | I34: 27 | M34: 27 | R34: 27 | S34: سطحة الفورد قديم | T34: 130 | V34: 27
A35: 28 | E35: 28 | I35: 28 | M35: 28 | R35: 28 | S35: الفورد | T35: 616 | V35: 28
A36: 29 | E36: 29 | I36: 29 | M36: 29 | R36: 29 | S36: غداء | T36: 65 | V36: 29
A37: 30 | E37: 30 | I37: 30 | M37: 30 | R37: 30 | S37: بطارية BMW | T37: 1850 | V37: 30
A38: 31 | E38: 31 | I38: 31 | M38: 31 | R38: 31 | S38: غداء | T38: 75 | V38: 31
A39: 32 | E39: 32 | I39: 32 | M39: 32 | R39: 32 | S39: بلاستك | T39: 55 | V39: 32
A40: 33 | E40: 33 | I40: 33 | M40: 33 | R40: 33 | S40: قطع مرسيدس اسود | T40: 50 | V40: 33
A41: 34 | E41: 34 | I41: 34 | M41: 34 | R41: 34 | S41: المازدا | T41: 100 | V41: 34
A42: 35 | E42: 35 | I42: 35 | M42: 35 | R42: 35 | S42: السمكري كورلا | T42: 300 | V42: 35
A43: 36 | E43: 36 | I43: 36 | M43: 36 | R43: 36 | S43: السكري مازدا | T43: 100 | V43: 36
A44: 37 | E44: 37 | I44: 37 | M44: 37 | R44: 37 | S44: ريش دريل | T44: 50 | V44: 37
A45: 38 | E45: 38 | I45: 38 | M45: 38 | R45: 38 | S45: جوال متعب | T45: 344 | V45: 38
A46: 39 | E46: 39 | I46: 39 | M46: 39 | R46: 39 | S46: غداء | T46: 75 | V46: 39
A47: 40 | E47: 40 | I47: 40 | M47: 40 | R47: 40 | S47: فوط كربون | T47: 20 | V47: 40
A48: 41 | E48: 41 | I48: 41 | M48: 41 | R48: 41 | S48: موية | T48: 35 | V48: 41
A49: 42 | E49: 42 | I49: 42 | M49: 42 | R49: 42 | S49: غداء | T49: 58 | V49: 42
A50: 43 | E50: 43 | I50: 43 | M50: 43 | R50: 43 | S50: اكرامية شمس | T50: 50 | V50: 43
A51: 44 | E51: 44 | I51: 44 | M51: 44 | R51: 44 | V51: 44
A52: 45 | E52: 45 | I52: 45 | M52: 45 | R52: 45 | V52: 45
A53: 46 | E53: 46 | I53: 46 | M53: 46 | R53: 46 | V53: 46
A54: 47 | E54: 47 | I54: 47 | M54: 47 | R54: 47 | V54: 47
A55: 48 | E55: 48 | I55: 48 | M55: 48 | R55: 48 | V55: 48
A56: 49 | E56: 49 | I56: 49 | M56: 49 | R56: 49 | V56: 49
A57: 50 | E57: 50 | I57: 50 | M57: 50 | R57: 50 | V57: 50
A58: 51 | E58: 51 | I58: 51 | M58: 51 | R58: 51 | V58: 51
A59: 52 | E59: 52 | I59: 52 | M59: 52 | R59: 52 | V59: 52
A60: 53 | E60: 53 | I60: 53 | M60: 53 | R60: 53 | V60: 53

Sheet حركة شهر3
A1: حـــركـــات شــــهــــر 2025/03
C3: =SUMIF(F8:F50,F3,G8:G50) -> 0 | K3: مصروفات شهر 3 | L3: =C5+G5+K5+T5+Y5 -> 40939
K4: حركة شهر 3 | N4: =P5-C5-G5-K5-T5-Y5 -> 36040 | O4: حركة شهر 2 مرحل | P4: ='حركة شهر 2'!N5 -> 10444
C5: =SUM(C8:C47) -> 620 | G5: =SUM(G8:G47) -> 0 | K5: =SUM(K8:K47) -> 20100 | N5: =P5-C5-G5-K5-T5-Y5+P4 -> 46484 | O5: صافي الدخل | P5: =SUM(P8:P47) -> 76979 | T5: =SUM(T8:T47) -> 10614 | Y5: =SUM(Y8:Y47) -> 9605
A6: مـصــروفات مواد السمكرة | E6: سلفيات العمال | I6: رواتب العمال | M6: الـدخـل الــشــهــري | R6: مـصــروفات متنوعة | V6: ســداد مــوردين
A7: الرقم | B7: الـــبـــــــيـــــــــــــــان | C7: المبلغ | E7: الرقم | F7: اسم العامل | G7: المبلغ | I7: الرقم | J7: اسم العامل | K7: المبلغ | M7: الرقم | N7: رقم الفاتورة | O7: الـــبـــــــيـــــــــــــــان | P7: المبلغ | R7: الرقم | S7: الـــبـــــــيـــــــــــــــان | T7: المبلغ | V7: الرقم | W7: رقم السند | X7: الـــبـــــــيـــــــــــــــان | Y7: المبلغ
A8: 1 | B8: اكسجين | C8: 170 | E8: 1 | I8: 1 | J8: حبيب | K8: 3500 | M8: 1 | O8: كامري2013 | P8: 1500 | R8: 1 | S8: اجرة عامل خارجي كامري | T8: 500 | V8: 1 | X8: صالح | Y8: 1000
A9: 2 | B9: صنفرة | C9: 50 | E9: 2 | I9: 2 | J9: ثامر | K9: 3000 | M9: 2 | O9: كابرس 2006 | P9: 6400 | R9: 2 | S9: اجرة عامل خارجي شاص وكامري | T9: 600 | V9: 2 | X9: باسمير | Y9: 1500
A10: 3 | B10: ورق فرن | C10: 400 | E10: 3 | I10: 3 | J10: يوسف | K10: 3000 | M10: 3 | O10: يارس 2018 | P10: 1600 | R10: 3 | S10: قفزان لي هواء | T10: 15 | V10: 3 | X10: صالح / برادو | Y10: 170
A11: 4 | E11: 4 | I11: 4 | J11: شمس الدين | K11: 2700 | M11: 4 | O11: لاند كروزر 2006 | P11: 600 | R11: 4 | S11: اجرة عامل خارجي vxr | T11: 150 | V11: 4 | X11: صالح / يارس | Y11: 170
A12: 5 | E12: 5 | I12: 5 | J12: عامر | K12: 2700 | M12: 5 | O12: باترول نيسان 2016 | P12: 4079 | R12: 5 | S12: اصلاح فيابر | T12: 350 | V12: 5 | X12: باسمير | Y12: 3000
A13: 6 | E13: 6 | I13: 6 | J13: علمان | K13: 2700 | M13: 6 | O13: BMW 2022 | P13: 6000 | R13: 6 | S13: عامر لزجاج | T13: 880 | V13: 6 | X13: العمودي | Y13: 400
A14: 7 | E14: 7 | I14: 7 | J14: جلال | K14: 2500 | M14: 7 | O14: تورس فورد 2022 | P14: 1500 | R14: 7 | S14: قسط جوال متعب | T14: 500 | V14: 7 | X14: العالمية | Y14: 1365
A15: 8 | E15: 8 | I15: 8 | M15: 8 | O15: كابرس1980 | P15: 1300 | R15: 8 | S15: صابون | T15: 15 | V15: 8 | X15: ابوسلطان | Y15: 1000
A16: 9 | E16: 9 | I16: 9 | M16: 9 | O16: اكورد هوندا 2022 | P16: 2470 | R16: 9 | S16: اجرة عمال خارجيين كيا | T16: 500 | V16: 9 | X16: باسمير | Y16: 1000
A17: 10 | E17: 10 | I17: 10 | M17: 10 | O17: تاهو 2012 | P17: 2000 | R17: 10 | S17: مراية البلاتينيوم | T17: 200 | V17: 10
A18: 11 | E18: 11 | I18: 11 | M18: 11 | O18: كورلا 2015 | P18: 5800 | R18: 11 | S18: دودة شاص | T18: 600 | V18: 11
A19: 12 | E19: 12 | I19: 12 | M19: 12 | O19: سيرا 2018 | P19: 3000 | R19: 12 | S19: رديتر التاندرا | T19: 800 | V19: 12
A20: 13 | E20: 13 | I20: 13 | M20: 13 | O20: كامري 2020 | P20: 3300 | R20: 13 | S20: رديتر شاص | T20: 230 | V20: 13
A21: 14 | E21: 14 | I21: 14 | M21: 14 | O21: لكزس 2020ES | P21: 10900 | R21: 14 | S21: بطانة الحوطي | T21: 230 | V21: 14
A22: 15 | E22: 15 | I22: 15 | M22: 15 | O22: ديفندر لاند روفر 2022 | P22: 800 | R22: 15 | S22: تكملة محبوب لشاص | T22: 800 | V22: 15
A23: 16 | E23: 16 | I23: 16 | M23: 16 | O23: شاص تويوتا 2005 | P23: 8730 | R23: 16 | S23: مقصود الشاص | T23: 300 | V23: 16
A24: 17 | E24: 17 | I24: 17 | M24: 17 | O24: رام دوج 1977 | P24: 17000 | R24: 17 | S24: كلبسات | T24: 35 | V24: 17
A25: 18 | E25: 18 | I25: 18 | M25: 18 | R25: 18 | S25: نيسان يزيد قطع غيار | T25: 1357 | V25: 18
A26: 19 | E26: 19 | I26: 19 | M26: 19 | R26: 19 | S26: نيسلن بلاتنيوم | T26: 379 | V26: 19
A27: 20 | E27: 20 | I27: 20 | M27: 20 | R27: 20 | S27: بنزين للورشة | T27: 30 | V27: 20
A28: 21 | E28: 21 | I28: 21 | M28: 21 | R28: 21 | S28: جوال متعب | T28: 343 | V28: 21
A29: 22 | E29: 22 | I29: 22 | M29: 22 | R29: 22 | S29: حسام | T29: 700 | V29: 22
A30: 23 | E30: 23 | I30: 23 | M30: 23 | R30: 23 | S30: مقصود الجيب | T30: 250 | V30: 23
A31: 24 | E31: 24 | I31: 24 | M31: 24 | R31: 24 | S31: زجاج جيب لكزس | T31: 300 | V31: 24
A32: 25 | E32: 25 | I32: 25 | M32: 25 | R32: 25 | S32: قطع الكرنفال | T32: 550 | V32: 25
A33: 26 | E33: 26 | I33: 26 | M33: 26 | R33: 26 | V33: 26
A34: 27 | E34: 27 | I34: 27 | M34: 27 | R34: 27 | V34: 27
A35: 28 | E35: 28 | I35: 28 | M35: 28 | R35: 28 | V35: 28
A36: 29 | E36: 29 | I36: 29 | M36: 29 | R36: 29 | V36: 29
A37: 30 | E37: 30 | I37: 30 | M37: 30 | R37: 30 | V37: 30
A38: 31 | E38: 31 | I38: 31 | M38: 31 | R38: 31 | V38: 31
A39: 32 | E39: 32 | I39: 32 | M39: 32 | R39: 32 | V39: 32
A40: 33 | E40: 33 | I40: 33 | M40: 33 | R40: 33 | V40: 33
A41: 34 | E41: 34 | I41: 34 | M41: 34 | R41: 34 | V41: 34
A42: 35 | E42: 35 | I42: 35 | M42: 35 | R42: 35 | V42: 35
A43: 36 | E43: 36 | I43: 36 | M43: 36 | R43: 36 | V43: 36
A44: 37 | E44: 37 | I44: 37 | M44: 37 | R44: 37 | V44: 37
A45: 38 | E45: 38 | I45: 38 | M45: 38 | R45: 38 | V45: 38
A46: 39 | E46: 39 | I46: 39 | M46: 39 | R46: 39 | V46: 39
A47: 40 | E47: 40 | I47: 40 | M47: 40 | R47: 40 | V47: 40

Sheet حركة شهر 4
A1: حـــركـــات شــــهــــر 2025/04
C3: =SUMIF(F8:F50,F3,G8:G50) -> 0 | K3: مصروفات شهر 4 | L3: =C5+G5+K5+T5+Y5 -> 37889
K4: حركة شهر 4 | N4: =P5-C5-G5-K5-T5-Y5 -> 20445 | O4: حركة شهر 3 مرحل | P4: ='حركة شهر3'!N5 -> 46484
C5: =SUM(C8:C47) -> 65 | G5: =SUM(G8:G47) -> 810 | K5: =SUM(K8:K47) -> 22900 | N5: =P5-C5-G5-K5-T5-Y5+P4 -> 66929 | O5: صافي الدخل | P5: =SUM(P8:P47) -> 58334 | T5: =SUM(T8:T47) -> 5864 | Y5: =SUM(Y8:Y47) -> 8250
A6: مـصــروفات مواد السمكرة | E6: سلفيات العمال | I6: رواتب العمال | M6: الـدخـل الــشــهــري | R6: مـصــروفات متنوعة | V6: ســداد مــوردين
A7: الرقم | B7: الـــبـــــــيـــــــــــــــان | C7: المبلغ | E7: الرقم | F7: اسم العامل | G7: المبلغ | I7: الرقم | J7: اسم العامل | K7: المبلغ | M7: الرقم | N7: رقم الفاتورة | O7: الـــبـــــــيـــــــــــــــان | P7: المبلغ | R7: الرقم | S7: الـــبـــــــيـــــــــــــــان | T7: المبلغ | V7: الرقم | W7: رقم السند | X7: الـــبـــــــيـــــــــــــــان | Y7: المبلغ
A8: 1 | B8: معجون سيلكون | C8: 65 | E8: 1 | F8: اوفرتايم ثامر | G8: 120 | I8: 1 | J8: دولارسن | K8: 2600 | M8: 1 | N8: 1342 | O8: لكزس RX2023 | P8: 2000 | R8: 1 | S8: موية | T8: 35 | V8: 1 | X8: باسمير | Y8: 1500
A9: 2 | E9: 2 | F9: اوفرتايم ثامر | G9: 120 | I9: 2 | J9: حبيب | K9: 3500 | M9: 2 | N9: 1341 | O9: سكويا 2016 | P9: 1300 | R9: 2 | S9: موية | T9: 40 | V9: 2 | X9: باسمير | Y9: 2000
A10: 3 | E10: 3 | F10: اوفر تايم شمس | G10: 240 | I10: 3 | J10: شمس الدين | K10: 2700 | M10: 3 | N10: 1339 | O10: كرسيدا | P10: 600 | R10: 3 | S10: اصلاح عفريتة | T10: 250 | V10: 3 | X10: ابوسلطان | Y10: 500
A11: 4 | E11: 4 | F11: اوفر تايم جلال | G11: 30 | I11: 4 | J11: جلال | K11: 2700 | M11: 4 | N11: 1340 | O11: لكزس LS 2000 | P11: 2300 | R11: 4 | S11: سطحة الفليكس واجن | T11: 200 | V11: 4 | X11: العالمية | Y11: 1250
A12: 5 | E12: 5 | F12: اوفرتايم علمان | G12: 150 | I12: 5 | J12: يوسف | K12: 3000 | M12: 5 | N12: 1338 | O12: لكزس ES 2023 | P12: 600 | R12: 5 | S12: فيبرالجمس | T12: 1100 | V12: 5 | X12: باسمير | Y12: 3000
A13: 6 | E13: 6 | F13: اوفر تايم عامر | G13: 60 | I13: 6 | J13: علمان | K13: 2700 | M13: 6 | N13: 1334 | O13: ايسوزو | P13: 3000 | R13: 6 | S13: موية | T13: 56 | V13: 6
A14: 7 | E14: 7 | F14: اوفرتايم حبيب | G14: 90 | I14: 7 | J14: ثامر | K14: 3000 | M14: 7 | N14: 1333 | O14: النتراء | P14: 16000 | R14: 7 | S14: عامر القزاز | T14: 1000 | V14: 7
A15: 8 | E15: 8 | I15: 8 | J15: عامر | K15: 2700 | M15: 8 | N15: 1332 | O15: لاندكروزر | P15: 4750 | R15: 8 | S15: ريش دريل | T15: 20 | V15: 8
A16: 9 | E16: 9 | I16: 9 | M16: 9 | N16: 1335 | O16: فان فورد | P16: 4500 | R16: 9 | S16: غدا | T16: 35 | V16: 9
A17: 10 | E17: 10 | I17: 10 | M17: 10 | N17: 1330 | O17: لاندكروزر | P17: 2000 | R17: 10 | S17: مفاتيح لنكية | T17: 25 | V17: 10
A18: 11 | E18: 11 | I18: 11 | M18: 11 | N18: 1329 | O18: اتش وان هيونداي | P18: 700 | R18: 11 | S18: اصلاح ماكينة الغسيل | T18: 280 | V18: 11
A19: 12 | E19: 12 | I19: 12 | M19: 12 | N19: 1331 | O19: اوتلاندر مستوبيشي | P19: 500 | R19: 12 | S19: دفعة كهرباء الورشة | T19: 1500 | V19: 12
A20: 13 | E20: 13 | I20: 13 | M20: 13 | N20: 1328 | O20: لكزس ES2022 | P20: 2000 | R20: 13 | S20: بنزين | T20: 50 | V20: 13
A21: 14 | E21: 14 | I21: 14 | M21: 14 | N21: 1337 | O21: سيرا جمس | P21: 8600 | R21: 14 | S21: مقصود - فادي | T21: 300 | V21: 14
A22: 15 | E22: 15 | I22: 15 | M22: 15 | N22: 1336 | O22: باترول نيسان 2016 | P22: 9484 | R22: 15 | S22: غدا | T22: 35 | V22: 15
A23: 16 | E23: 16 | I23: 16 | M23: 16 | R23: 16 | S23: غدا | T23: 50 | V23: 16
A24: 17 | E24: 17 | I24: 17 | M24: 17 | R24: 17 | S24: موتر عبسي | T24: 100 | V24: 17
A25: 18 | E25: 18 | I25: 18 | M25: 18 | R25: 18 | S25: لحية ابوجابر | T25: 500 | V25: 18
A26: 19 | E26: 19 | I26: 19 | M26: 19 | R26: 19 | S26: موية | T26: 42 | V26: 19
A27: 20 | E27: 20 | I27: 20 | M27: 20 | R27: 20 | S27: مقصود من اللكزس | T27: 200 | V27: 20
A28: 21 | E28: 21 | I28: 21 | M28: 21 | R28: 21 | S28: صنفرة ماكينة | T28: 46 | V28: 21
A29: 22 | E29: 22 | I29: 22 | M29: 22 | R29: 22 | V29: 22
A30: 23 | E30: 23 | I30: 23 | M30: 23 | R30: 23 | V30: 23
A31: 24 | E31: 24 | I31: 24 | M31: 24 | R31: 24 | V31: 24
A32: 25 | E32: 25 | I32: 25 | M32: 25 | R32: 25 | V32: 25
A33: 26 | E33: 26 | I33: 26 | M33: 26 | R33: 26 | V33: 26
A34: 27 | E34: 27 | I34: 27 | M34: 27 | R34: 27 | V34: 27
A35: 28 | E35: 28 | I35: 28 | M35: 28 | R35: 28 | V35: 28
A36: 29 | E36: 29 | I36: 29 | M36: 29 | R36: 29 | V36: 29
A37: 30 | E37: 30 | I37: 30 | M37: 30 | R37: 30 | V37: 30
A38: 31 | E38: 31 | I38: 31 | M38: 31 | R38: 31 | V38: 31
A39: 32 | E39: 32 | I39: 32 | M39: 32 | R39: 32 | V39: 32
A40: 33 | E40: 33 | I40: 33 | M40: 33 | R40: 33 | V40: 33
A41: 34 | E41: 34 | I41: 34 | M41: 34 | R41: 34 | V41: 34
A42: 35 | E42: 35 | I42: 35 | M42: 35 | R42: 35 | V42: 35
A43: 36 | E43: 36 | I43: 36 | M43: 36 | R43: 36 | V43: 36
A44: 37 | E44: 37 | I44: 37 | M44: 37 | R44: 37 | V44: 37
A45: 38 | E45: 38 | I45: 38 | M45: 38 | R45: 38 | V45: 38
A46: 39 | E46: 39 | I46: 39 | M46: 39 | R46: 39 | V46: 39
A47: 40 | E47: 40 | I47: 40 | M47: 40 | R47: 40 | V47: 40

Sheet حركة شهر 5
A1: حـــركـــات شــــهــــر 2025/05
C3: =SUMIF(F8:F50,F3,G8:G50) -> 1100 | F3: ثامر | K3: مصروفات شهر5 | L3: =C5+G5+K5+T5+Y5 -> 58603
K4: حركة شهر 5 | N4: =P5-C5-G5-K5-T5+P4-Y5 -> 36701 | O4: حركة شهر 4 مرحل | P4: ='حركة شهر 4'!N5 -> 66929
C5: =SUM(C8:C47) -> 554 | G5: =SUM(G8:G47) -> 8400 | K5: =SUM(K8:K47) -> 14700 | N5: =P5-C5-G5-K5-T5+P4-Y5 -> 36701 | O5: صافي الدخل | P5: =SUM(P8:P47) -> 28375 | T5: =SUM(T8:T47) -> 17299 | Y5: =SUM(Y8:Y47) -> 17650
A6: مـصــروفات مواد السمكرة | E6: سلفيات العمال | I6: رواتب العمال | M6: الـدخـل الــشــهــري | R6: مـصــروفات متنوعة | V6: ســداد مــوردين
A7: الرقم | B7: الـــبـــــــيـــــــــــــــان | C7: المبلغ | E7: الرقم | F7: اسم العامل | G7: المبلغ | I7: الرقم | J7: اسم العامل | K7: المبلغ | M7: الرقم | N7: رقم الفاتورة | O7: الـــبـــــــيـــــــــــــــان | P7: المبلغ | R7: الرقم | S7: الـــبـــــــيـــــــــــــــان | T7: المبلغ | V7: الرقم | W7: رقم السند | X7: الـــبـــــــيـــــــــــــــان | Y7: المبلغ
A8: 1 | B8: قاعدة ماكينة الصنفرة | C8: 35 | E8: 1 | F8: عامر | G8: 1600 | I8: 1 | J8: ثامر | K8: 1900 | M8: 1 | N8: 1357 | O8: باترول نيسان2014 | P8: 1400 | R8: 1 | S8: اجرة سماكرة خارجي | T8: 400 | V8: 1 | X8: باسمير | Y8: 2000
A9: 2 | B9: اكسجين | C9: 170 | E9: 2 | F9: ثامر | G9: 100 | I9: 2 | J9: شمس الدين | K9: 2700 | M9: 2 | N9: 1355 | O9: كامري تويوتا 2021 | P9: 1000 | R9: 2 | S9: قطع فورد | T9: 350 | V9: 2 | X9: العمودي | Y9: 500
A10: 3 | B10: تيب وبولش وبفر | C10: 175 | E10: 3 | F10: شمس الدين | G10: 600 | I10: 3 | J10: عامر | K10: 300 | M10: 3 | N10: 1354 | O10: سيات 2020 | P10: 200 | R10: 3 | S10: عامر القزاز | T10: 1000 | V10: 3 | X10: ابوسلطان | Y10: 1000
A11: 4 | B11: تنر | C11: 87 | E11: 4 | F11: علمان | G11: 100 | I11: 4 | J11: يوسف | K11: 1800 | M11: 4 | N11: 1353 | O11: سوبارو2018 | P11: 3000 | R11: 4 | S11: غداء | T11: 35 | V11: 4 | X11: باسمير | Y11: 2500
A12: 5 | B12: تنر | C12: 87 | E12: 5 | F12: جلال | G12: 200 | I12: 5 | J12: علمان | K12: 2400 | M12: 5 | N12: 1350 | O12: تاهو شفرليت2015 | P12: 1100 | R12: 5 | S12: موية | T12: 55 | V12: 5 | X12: العمودي | Y12: 350
A13: 6 | E13: 6 | F13: يوسف | G13: 1000 | I13: 6 | J13: حبيب | K13: 3500 | M13: 6 | N13: 1351 | O13: سى كلاس مرسدس 2016 | P13: 1500 | R13: 6 | S13: قطع التورس | T13: 5350 | V13: 6 | X13: باسمير | Y13: 2000
A14: 7 | E14: 7 | F14: عامر | G14: 600 | I14: 7 | J14: جلال | K14: 2100 | M14: 7 | N14: 1349 | O14: توسان هيونداي2014 | P14: 3600 | R14: 7 | S14: قطع التوسان | T14: 750 | V14: 7 | X14: المغلوث | Y14: 500
A15: 8 | E15: 8 | F15: جلال | G15: 300 | I15: 8 | M15: 8 | N15: 1348 | O15: افالون تويوتا 2015 | P15: 2500 | R15: 8 | S15: اجرة سماكرة خارجي | T15: 400 | V15: 8 | X15: ابوسلطان | Y15: 500
A16: 9 | E16: 9 | F16: شمس الدين | G16: 100 | I16: 9 | M16: 9 | N16: 1347 | O16: لكزس 2019 es | P16: 3500 | R16: 9 | S16: زجاج شمعة السنتافي | T16: 100 | V16: 9 | X16: العمودي | Y16: 300
A17: 10 | E17: 10 | F17: علمان | G17: 100 | I17: 10 | M17: 10 | N17: 1346 | O17: اكسبديشن فورد 2019 | P17: 2500 | R17: 10 | S17: غداء | T17: 45 | V17: 10 | X17: العالمية | Y17: 1000
A18: 11 | E18: 11 | F18: عامر | G18: 100 | I18: 11 | M18: 11 | N18: 1345 | O18: النتراء خيونداي 2021 | P18: 2000 | R18: 11 | S18: مقصود | T18: 200 | V18: 11 | X18: باجيل دفعة | Y18: 2000
A19: 12 | E19: 12 | F19: ابوباسل | G19: 2000 | I19: 12 | M19: 12 | N19: 1344 | O19: مازدا6 -2021 | P19: 2000 | R19: 12 | S19: غداء | T19: 35 | V19: 12 | X19: باسمير | Y19: 5000
A20: 13 | E20: 13 | F20: شمس الدين | G20: 100 | I20: 13 | M20: 13 | N20: 1343 | O20: سوناتا خيونداي 2020 | P20: 1000 | R20: 13 | S20: مقصود | T20: 100 | V20: 13
A21: 14 | E21: 14 | F21: علمان | G21: 100 | I21: 14 | M21: 14 | N21: 1356 | O21: يوكن جمس 2014 | P21: 2375 | R21: 14 | S21: غداء | T21: 25 | V21: 14
A22: 15 | E22: 15 | F22: عامر | G22: 100 | I22: 15 | M22: 15 | N22: 1352 | O22: دي ماكس ايشوزو 2021 | P22: 700 | R22: 15 | S22: غداء | T22: 25 | V22: 15
A23: 16 | E23: 16 | F23: جلال | G23: 100 | I23: 16 | M23: 16 | R23: 16 | S23: غداء | T23: 13 | V23: 16
A24: 17 | E24: 17 | F24: يوسف | G24: 200 | I24: 17 | M24: 17 | R24: 17 | S24: برمجة التورس | T24: 450 | V24: 17
A25: 18 | E25: 18 | F25: ثامر | G25: 1000 | I25: 18 | M25: 18 | R25: 18 | S25: فيبر | T25: 50 | V25: 18
A26: 19 | E26: 19 | I26: 19 | M26: 19 | R26: 19 | S26: حنوط السوبارو | T26: 1400 | V26: 19
A27: 20 | E27: 20 | I27: 20 | M27: 20 | R27: 20 | S27: غداء | T27: 45 | V27: 20
A28: 21 | E28: 21 | I28: 21 | M28: 21 | R28: 21 | S28: اجرة سماكرة خارجي | T28: 200 | V28: 21
A29: 22 | E29: 22 | I29: 22 | M29: 22 | R29: 22 | S29: سباك ماصورة الموية | T29: 330 | V29: 22
A30: 23 | E30: 23 | I30: 23 | M30: 23 | R30: 23 | S30: اللبناني باقي 100للتورس | T30: 300 | V30: 23
A31: 24 | E31: 24 | I31: 24 | M31: 24 | R31: 24 | S31: غداء | T31: 27 | V31: 24
A32: 25 | E32: 25 | I32: 25 | M32: 25 | R32: 25 | S32: صابون | T32: 15 | V32: 25
A33: 26 | E33: 26 | I33: 26 | M33: 26 | R33: 26 | S33: احمد الدويل | T33: 1500 | V33: 26
A34: 27 | E34: 27 | I34: 27 | M34: 27 | R34: 27 | S34: اللبناني تكملة زيق الفورد | T34: 400 | V34: 27
A35: 28 | E35: 28 | I35: 28 | M35: 28 | R35: 28 | S35: اجرة سماكرة خارجي | T35: 200 | V35: 28
A36: 29 | E36: 29 | I36: 29 | M36: 29 | R36: 29 | S36: بنزين | T36: 60 | V36: 29
A37: 30 | E37: 30 | I37: 30 | M37: 30 | R37: 30 | S37: جوال متعب | T37: 344 | V37: 30
A38: 31 | E38: 31 | I38: 31 | M38: 31 | R38: 31 | S38: فارس السمكري | T38: 500 | V38: 31
A39: 32 | E39: 32 | I39: 32 | M39: 32 | R39: 32 | S39: عامر القزاز | T39: 150 | V39: 32
A40: 33 | E40: 33 | I40: 33 | M40: 33 | R40: 33 | S40: غداء | T40: 25 | V40: 33
A41: 34 | E41: 34 | I41: 34 | M41: 34 | R41: 34 | S41: السمكري فارس | T41: 500 | V41: 34
A42: 35 | E42: 35 | I42: 35 | M42: 35 | R42: 35 | S42: قطع الكزس | T42: 1450 | V42: 35
A43: 36 | E43: 36 | I43: 36 | M43: 36 | R43: 36 | S43: عظمات كورولا | T43: 200 | V43: 36
A44: 37 | E44: 37 | I44: 37 | M44: 37 | R44: 37 | S44: لحية سوناتا | T44: 270 | V44: 37
A45: 38 | E45: 38 | I45: 38 | M45: 38 | R45: 38 | V45: 38
A46: 39 | E46: 39 | I46: 39 | M46: 39 | R46: 39 | V46: 39
A47: 40 | E47: 40 | I47: 40 | M47: 40 | R47: 40 | V47: 40

Sheet حركة شهر6
A1: حـــركـــات شــــهــــر 2025/06
C3: =SUMIF(F8:F50,F3,G8:G50) -> 700 | F3: ثامر | K3: مصروفات شهر6 | L3: =C5+G5+K5+T5+Y5 -> 43020
K4: حــركة شهر 6 | N4: =P5-C5-G5-K5-T5-Y5 -> -15420 | O4: حركة شهر 5 مرحل | P4: ='حركة شهر 5'!N4 -> 36701
C5: =SUM(C8:C47) -> 600 | G5: =SUM(G8:G47) -> 9390 | K5: =SUM(K8:K47) -> 12500 | N5: =P5-C5-G5-K5-T5-Y5+P4 -> 21281 | O5: صافي الدخل | P5: =SUM(P8:P47) -> 27600 | T5: =SUM(T8:T47) -> 3640 | Y5: =SUM(Y8:Y47) -> 16890
A6: مـصــروفات مواد السمكرة | E6: سلفيات العمال | I6: رواتب العمال | M6: الـدخـل الــشــهــري | R6: مـصــروفات متنوعة | V6: ســداد مــوردين
A7: الرقم | B7: الـــبـــــــيـــــــــــــــان | C7: المبلغ | E7: الرقم | F7: اسم العامل | G7: المبلغ | I7: الرقم | J7: اسم العامل | K7: المبلغ | M7: الرقم | N7: رقم الفاتورة | O7: الـــبـــــــيـــــــــــــــان | P7: المبلغ | R7: الرقم | S7: الـــبـــــــيـــــــــــــــان | T7: المبلغ | V7: الرقم | W7: رقم السند | X7: الـــبـــــــيـــــــــــــــان | Y7: المبلغ
A8: 1 | B8: ورق فرن | C8: 400 | E8: 1 | F8: عامر | G8: 100 | I8: 1 | J8: ثامر | K8: 2300 | M8: 1 | N8: 1833 | O8: لكزس ES2020 | P8: 1400 | R8: 1 | S8: غداء | T8: 70 | V8: 1 | X8: المغلوث | Y8: 1890
A9: 2 | B9: تنر | C9: 200 | E9: 2 | F9: عامر | G9: 200 | I9: 2 | J9: جلال | K9: 2200 | M9: 2 | N9: 1832 | O9: سيات2025 | P9: 3700 | R9: 2 | S9: ماء قوارير | T9: 20 | V9: 2 | X9: ابوسلطان | Y9: 500
A10: 3 | E10: 3 | F10: جلال | G10: 100 | I10: 3 | J10: عامر | K10: 1900 | M10: 3 | N10: 1831 | O10: النتراء هيونداي2021 | P10: 1800 | R10: 3 | S10: غداء | T10: 15 | V10: 3 | X10: باسمير | Y10: 3000
A11: 4 | E11: 4 | F11: يوسف | G11: 100 | I11: 4 | J11: يوسف | K11: 1600 | M11: 4 | N11: 1829 | O11: كامري2020 | P11: 500 | R11: 4 | S11: بطارية الفارة | T11: 3 | V11: 4 | X11: باسمير | Y11: 2000
A12: 5 | E12: 5 | F12: علمان | G12: 100 | I12: 5 | J12: علمان | K12: 1500 | M12: 5 | N12: 1828 | O12: مازدا 2020 | P12: 2000 | R12: 5 | S12: سطحة اللكزس- الاودي | T12: 250 | V12: 5 | X12: العالمية | Y12: 1000
A13: 6 | E13: 6 | F13: شمس الدين | G13: 200 | I13: 6 | J13: حبيب | K13: 3000 | M13: 6 | N13: 1827 | O13: سوناتا2017 | P13: 700 | R13: 6 | S13: الفيبر | T13: 500 | V13: 6 | X13: العمودي | Y13: 500
A14: 7 | E14: 7 | F14: عامر | G14: 100 | I14: 7 | M14: 7 | N14: 1826 | O14: لكزس IS2017 | P14: 3000 | R14: 7 | S14: رول بلاستيك | T14: 42 | V14: 7 | X14: صالح | Y14: 4000
A15: 8 | E15: 8 | F15: علمان | G15: 1000 | I15: 8 | M15: 8 | N15: 1824 | O15: لاند كروزر 2016 | P15: 3200 | R15: 8 | S15: تسيخ لديتر لكزس | T15: 100 | V15: 8 | X15: باسمير | Y15: 4000
A16: 9 | E16: 9 | F16: يوسف | G16: 200 | I16: 9 | M16: 9 | N16: 1823 | O16: كابرس 2013 | P16: 1000 | R16: 9 | S16: ميكنيكا ابوصالح لكزس | T16: 500 | V16: 9
A17: 10 | E17: 10 | F17: عامر | G17: 200 | I17: 10 | M17: 10 | N17: 1822 | O17: كورولا 2017 | P17: 1200 | R17: 10 | S17: سطحة الاودي 2 | T17: 100 | V17: 10
A18: 11 | E18: 11 | F18: جلال | G18: 200 | I18: 11 | M18: 11 | N18: 1821 | O18: هايلكس 2014 | P18: 2700 | R18: 11 | S18: السمكري جيمني والجيب | T18: 350 | V18: 11
A19: 12 | E19: 12 | F19: شمس الدين | G19: 100 | I19: 12 | M19: 12 | N19: 1820 | O19: سيراء 2018 | P19: 1000 | R19: 12 | S19: دركسون الكزس | T19: 700 | V19: 12
A20: 13 | E20: 13 | F20: ثامر | G20: 200 | I20: 13 | M20: 13 | N20: 1819 | O20: النتراء 2017 | P20: 1500 | R20: 13 | S20: غداء | T20: 50 | V20: 13
A21: 14 | E21: 14 | F21: يوسف | G21: 1000 | I21: 14 | M21: 14 | N21: 1818 | O21: جراند شيروكي 2018 | P21: 900 | R21: 14 | S21: موية قوارير | T21: 20 | V21: 14
A22: 15 | E22: 15 | F22: عامر | G22: 100 | I22: 15 | M22: 15 | N22: 1817 | O22: سيراء 2018 | P22: 2000 | R22: 15 | S22: ونش وهمي الشاس | T22: 170 | V22: 15
A23: 16 | E23: 16 | F23: ثامر | G23: 500 | I23: 16 | M23: 16 | N23: 1811 | O23: صني 2017 | P23: 1000 | R23: 16 | S23: ديكورات القنيبط | T23: 600 | V23: 16
A24: 17 | E24: 17 | F24: عامر | G24: 100 | I24: 17 | M24: 17 | R24: 17 | S24: غداء | T24: 50 | V24: 17
A25: 18 | E25: 18 | F25: علمان | G25: 100 | I25: 18 | M25: 18 | R25: 18 | S25: صابون وفاين | T25: 100 | V25: 18
A26: 19 | E26: 19 | F26: يوسف | G26: 100 | I26: 19 | M26: 19 | R26: 19 | V26: 19
A27: 20 | E27: 20 | F27: حبيب | G27: 500 | I27: 20 | M27: 20 | R27: 20 | V27: 20
A28: 21 | E28: 21 | F28: جلال | G28: 200 | I28: 21 | M28: 21 | R28: 21 | V28: 21
A29: 22 | E29: 22 | F29: شمس الدين | G29: 3000 | I29: 22 | M29: 22 | R29: 22 | V29: 22
A30: 23 | E30: 23 | F30: اوفر تايم شمس | G30: 90 | I30: 23 | M30: 23 | R30: 23 | V30: 23
A31: 24 | E31: 24 | F31: اوفر تايم جلال | G31: 180 | I31: 24 | M31: 24 | R31: 24 | V31: 24
A32: 25 | E32: 25 | F32: اوفر تايم عامر | G32: 120 | I32: 25 | M32: 25 | R32: 25 | V32: 25
A33: 26 | E33: 26 | F33: اوفرتايم علمان | G33: 210 | I33: 26 | M33: 26 | R33: 26 | V33: 26
A34: 27 | E34: 27 | F34: اوفرتايم يوسف | G34: 150 | I34: 27 | M34: 27 | R34: 27 | V34: 27
A35: 28 | E35: 28 | F35: اوفرتايم حبيب | G35: 120 | I35: 28 | M35: 28 | R35: 28 | V35: 28
A36: 29 | E36: 29 | F36: اوفرتايم ثامر | G36: 120 | I36: 29 | M36: 29 | R36: 29 | V36: 29
A37: 30 | E37: 30 | I37: 30 | M37: 30 | R37: 30 | V37: 30
A38: 31 | E38: 31 | I38: 31 | M38: 31 | R38: 31 | V38: 31
A39: 32 | E39: 32 | I39: 32 | M39: 32 | R39: 32 | V39: 32
A40: 33 | E40: 33 | I40: 33 | M40: 33 | R40: 33 | V40: 33
A41: 34 | E41: 34 | I41: 34 | M41: 34 | R41: 34 | V41: 34
A42: 35 | E42: 35 | I42: 35 | M42: 35 | R42: 35 | V42: 35
A43: 36 | E43: 36 | I43: 36 | M43: 36 | R43: 36 | V43: 36
A44: 37 | E44: 37 | I44: 37 | M44: 37 | R44: 37 | V44: 37
A45: 38 | E45: 38 | I45: 38 | M45: 38 | R45: 38 | V45: 38
A46: 39 | E46: 39 | I46: 39 | M46: 39 | R46: 39 | V46: 39
A47: 40 | E47: 40 | I47: 40 | M47: 40 | R47: 40 | V47: 40

Sheet حركة شهر 7
A1: حـــركـــات شــــهــــر 2025/07
C3: =SUMIF(F8:F50,F3,G8:G50) -> 700 | F3: ثامر | K3: مصروفات شهر7 | L3: =C5+G5+K5+T5+Y5 -> 59123
K4: حــركة شهر 7 | N4: =P5-C5-G5-K5-T5-Y5 -> -37923 | O4: حركة شهر 6 مرحل | P4: ='حركة شهر6'!N5 -> 21281
C5: =SUM(C8:C47) -> 720 | G5: =SUM(G8:G47) -> 11120 | K5: =SUM(K8:K47) -> 11800 | N5: =P5-C5-G5-K5-T5-Y5+P4 -> -16642 | O5: صافي الدخل | P5: =SUM(P8:P47) -> 21200 | T5: =SUM(T8:T47) -> 15883 | Y5: =SUM(Y8:Y47) -> 19600
A6: مـصــروفات مواد السمكرة | E6: سلفيات العمال | I6: رواتب العمال | M6: الـدخـل الــشــهــري | R6: مـصــروفات متنوعة | V6: ســداد مــوردين
A7: الرقم | B7: الـــبـــــــيـــــــــــــــان | C7: المبلغ | E7: الرقم | F7: اسم العامل | G7: المبلغ | I7: الرقم | J7: اسم العامل | K7: المبلغ | M7: الرقم | N7: رقم الفاتورة | O7: الـــبـــــــيـــــــــــــــان | P7: المبلغ | R7: الرقم | S7: الـــبـــــــيـــــــــــــــان | T7: المبلغ | V7: الرقم | W7: رقم السند | X7: الـــبـــــــيـــــــــــــــان | Y7: المبلغ
A8: 1 | B8: اكسجين | C8: 170 | E8: 1 | F8: شمس الدين | G8: 600 | I8: 1 | J8: ثامر | K8: 2300 | M8: 1 | N8: 1382 | O8: كامري تويوتا2022 | P8: 1700 | R8: 1 | S8: شطرطون | T8: 78 | V8: 1 | X8: ابوسلطان | Y8: 1000
A9: 2 | B9: راس لحام اكسجين | C9: 400 | E9: 2 | F9: ثامر | G9: 100 | I9: 2 | J9: شمس الدين | K9: 500 | M9: 2 | N9: 1381 | O9: سوناتا هيونداي 2020 | P9: 600 | R9: 2 | S9: بنزين | T9: 30 | V9: 2 | X9: العالمية | Y9: 200
A10: 3 | B10: استلين | C10: 150 | E10: 3 | F10: عامر | G10: 1100 | I10: 3 | J10: جلال | K10: 1800 | M10: 3 | N10: 1377 | O10: اكسنت هيونداي 2018 | P10: 2000 | R10: 3 | S10: كاوية +كوبلنق | T10: 150 | V10: 3 | X10: العمودي | Y10: 900
A11: 4 | E11: 4 | F11: جلال | G11: 100 | I11: 4 | J11: عامر | K11: 600 | M11: 4 | N11: 1379 | O11: فورد كراون فكتوريا 2011 | P11: 2400 | R11: 4 | S11: غداء | T11: 55 | V11: 4 | X11: باسمير | Y11: 3000
A12: 5 | E12: 5 | F12: يوسف | G12: 100 | I12: 5 | J12: يوسف | K12: 2200 | M12: 5 | N12: 1374 | O12: جراند شيروكي 2018 | P12: 1500 | R12: 5 | S12: غداء | T12: 50 | V12: 5 | X12: العمودي | Y12: 500
A13: 6 | E13: 6 | F13: حبيب | G13: 100 | I13: 6 | J13: علمان | K13: 1700 | M13: 6 | N13: 1375 | O13: اكسنت هيونداي 2019 | P13: 2000 | R13: 6 | S13: السمكري خارجي | T13: 300 | V13: 6 | X13: صالح دفعة قطع | Y13: 2000
A14: 7 | E14: 7 | F14: علمان | G14: 100 | I14: 7 | J14: حبيب | K14: 2700 | M14: 7 | N14: 1376 | O14: شاص تويوتا 2002 | P14: 1500 | R14: 7 | S14: غداء | T14: 50 | V14: 7 | X14: باسمير | Y14: 3000
A15: 8 | E15: 8 | F15: شمس الدين | G15: 100 | I15: 8 | M15: 8 | N15: 1378 | O15: كامري تويوتا2010 | P15: 5500 | R15: 8 | S15: سمكري الجيب | T15: 400 | V15: 8 | X15: العمودي | Y15: 500
A16: 9 | E16: 9 | F16: جلال | G16: 500 | I16: 9 | M16: 9 | N16: 1380 | O16: سوناتا هيونداي 2020 | P16: 4000 | R16: 9 | S16: غداء | T16: 50 | V16: 9 | X16: ابوسلطان | Y16: 1000
A17: 10 | E17: 10 | F17: عامر | G17: 100 | I17: 10 | M17: 10 | R17: 10 | S17: رول بلاستك | T17: 30 | V17: 10 | X17: صالح قطع | Y17: 2500
A18: 11 | E18: 11 | F18: يوسف | G18: 100 | I18: 11 | M18: 11 | R18: 11 | S18: عامر القزاز | T18: 800 | V18: 11 | X18: بن سلوم | Y18: 5000
A19: 12 | E19: 12 | F19: حبيب | G19: 100 | I19: 12 | M19: 12 | R19: 12 | S19: السمكري خارجي | T19: 300 | V19: 12
A20: 13 | E20: 13 | F20: شمس الدين | G20: 200 | I20: 13 | M20: 13 | R20: 13 | S20: السمكري خارجي | T20: 200 | V20: 13
A21: 14 | E21: 14 | F21: علمان | G21: 200 | I21: 14 | M21: 14 | R21: 14 | S21: عمر | T21: 100 | V21: 14
A22: 15 | E22: 15 | F22: عامر | G22: 100 | I22: 15 | M22: 15 | R22: 15 | S22: ميكانيكي صني كامري | T22: 500 | V22: 15
A23: 16 | E23: 16 | F23: عامر | G23: 100 | I23: 16 | M23: 16 | R23: 16 | S23: تنجيد موتر سلطان | T23: 350 | V23: 16
A24: 17 | E24: 17 | F24: جلال | G24: 100 | I24: 17 | M24: 17 | R24: 17 | S24: غداء | T24: 35 | V24: 17
A25: 18 | E25: 18 | F25: يوسف | G25: 100 | I25: 18 | M25: 18 | R25: 18 | S25: غداء وعشاء | T25: 100 | V25: 18
A26: 19 | E26: 19 | F26: علمان | G26: 100 | I26: 19 | M26: 19 | R26: 19 | S26: غداء | T26: 50 | V26: 19
A27: 20 | E27: 20 | F27: شمس الدين | G27: 100 | I27: 20 | M27: 20 | R27: 20 | S27: الدهان مقاولة | T27: 500 | V27: 20
A28: 21 | E28: 21 | F28: حبيب | G28: 100 | I28: 21 | M28: 21 | R28: 21 | S28: السمكري فارس مقاولة | T28: 500 | V28: 21
A29: 22 | E29: 22 | F29: عامر | G29: 500 | I29: 22 | M29: 22 | R29: 22 | S29: شبك التورس | T29: 920 | V29: 22
A30: 23 | E30: 23 | F30: علمان | G30: 500 | I30: 23 | M30: 23 | R30: 23 | S30: غداء | T30: 50 | V30: 23
A31: 24 | E31: 24 | F31: ثامر | G31: 500 | I31: 24 | M31: 24 | R31: 24 | S31: غداء | T31: 50 | V31: 24
A32: 25 | E32: 25 | F32: جلال | G32: 200 | I32: 25 | M32: 25 | R32: 25 | S32: شقة العمال | T32: 3000 | V32: 25
A33: 26 | E33: 26 | F33: علمان | G33: 100 | I33: 26 | M33: 26 | R33: 26 | S33: الفهيد المحولات | T33: 1160 | V33: 26
A34: 27 | E34: 27 | F34: شمس الدين | G34: 1200 | I34: 27 | M34: 27 | R34: 27 | S34: السمكري يوسف | T34: 400 | V34: 27
A35: 28 | E35: 28 | F35: حبيب | G35: 500 | I35: 28 | M35: 28 | R35: 28 | S35: غداء | T35: 40 | V35: 28
A36: 29 | E36: 29 | F36: يوسف | G36: 500 | I36: 29 | M36: 29 | R36: 29 | S36: غداء | T36: 40 | V36: 29
A37: 30 | E37: 30 | F37: عامر | G37: 200 | I37: 30 | M37: 30 | R37: 30 | S37: غداء | T37: 40 | V37: 30
A38: 31 | E38: 31 | F38: ثامر | G38: 100 | I38: 31 | M38: 31 | R38: 31 | S38: غداء | T38: 55 | V38: 31
A39: 32 | E39: 32 | F39: ابوباسل | G39: 500 | I39: 32 | M39: 32 | R39: 32 | S39: عبدالعزيز قطع الجيب | T39: 4000 | V39: 32
A40: 33 | E40: 33 | F40: اوفرتايم ثامر | G40: 270 | I40: 33 | M40: 33 | R40: 33 | S40: السمكري الرابع | T40: 1000 | V40: 33
A41: 34 | E41: 34 | F41: اوفر تايم جلال | G41: 330 | I41: 34 | M41: 34 | R41: 34 | S41: عامر القزاز | T41: 500 | V41: 34
A42: 35 | E42: 35 | F42: اوفرتايم يوسف | G42: 450 | I42: 35 | M42: 35 | R42: 35 | V42: 35
A43: 36 | E43: 36 | F43: اوفر تايم عامر | G43: 140 | I43: 36 | M43: 36 | R43: 36 | V43: 36
A44: 37 | E44: 37 | F44: اوفرتايم حبيب | G44: 330 | I44: 37 | M44: 37 | R44: 37 | V44: 37
A45: 38 | E45: 38 | F45: اوفرتايم علمان | G45: 600 | I45: 38 | M45: 38 | R45: 38 | V45: 38
A46: 39 | E46: 39 | I46: 39 | M46: 39 | R46: 39 | V46: 39
A47: 40 | E47: 40 | I47: 40 | M47: 40 | R47: 40 | V47: 40

Sheet حركة شهر 8
A1: حـــركـــات شــــهــــر 2025/08
C3: =SUMIF(F8:F50,F3,G8:G50) -> 1700 | F3: ثامر | K3: مصروفات شهر8 | L3: =C5+G5+K5+T5+Y5 -> 49265
K4: حــركة شهر 8 | N4: =P5-C5-G5-K5-T5-Y5 -> 9750 | O4: حركة شهر 7 مرحل | P4: ='حركة شهر 7'!N5 -> -16642
C5: =SUM(C8:C47) -> 690 | G5: =SUM(G8:G47) -> 9850 | K5: =SUM(K8:K47) -> 11750 | N5: =P5-C5-G5-K5-T5-Y5+P4 -> -6892 | O5: صافي الدخل | P5: =SUM(P8:P47) -> 59015 | T5: =SUM(T8:T47) -> 2025 | Y5: =SUM(Y8:Y47) -> 24950
A6: مـصــروفات مواد السمكرة | E6: سلفيات العمال | I6: رواتب العمال | M6: الـدخـل الــشــهــري | R6: مـصــروفات متنوعة | V6: ســداد مــوردين
A7: الرقم | B7: الـــبـــــــيـــــــــــــــان | C7: المبلغ | E7: الرقم | F7: اسم العامل | G7: المبلغ | I7: الرقم | J7: اسم العامل | K7: المبلغ | M7: الرقم | N7: رقم الفاتورة | O7: الـــبـــــــيـــــــــــــــان | P7: المبلغ | R7: الرقم | S7: الـــبـــــــيـــــــــــــــان | T7: المبلغ | V7: الرقم | W7: رقم السند | X7: الـــبـــــــيـــــــــــــــان | Y7: المبلغ
A8: 1 | B8: ورق رالفرن | C8: 500 | E8: 1 | F8: عامر | G8: 1000 | I8: 1 | J8: عامر | K8: 250 | M8: 1 | O8: ماليبو 2020 | P8: 1500 | R8: 1 | S8: كتاوت ماطور الهوا | T8: 300 | V8: 1 | X8: صالح | Y8: 2000
A9: 2 | B9: منشف | C9: 65 | E9: 2 | F9: شمس الدين | G9: 100 | I9: 2 | J9: علمان | K9: 2100 | M9: 2 | O9: اكسنت 2024 | P9: 2000 | R9: 2 | S9: غداء | T9: 25 | V9: 2 | X9: دفعة لعالمية | Y9: 500
A10: 3 | B10: رول بلاستيك | C10: 60 | E10: 3 | F10: علمان | G10: 200 | I10: 3 | J10: يوسف | K10: 2600 | M10: 3 | O10: ام ار في هوندا 2014 | P10: 1185 | R10: 3 | S10: غداء | T10: 65 | V10: 3 | X10: دفعة بن سلوم | Y10: 1000
A11: 4 | B11: صنفرة ماكينة | C11: 65 | E11: 4 | F11: يوسف | G11: 200 | I11: 4 | J11: جلال | K11: 2100 | M11: 4 | O11: لاند كروزر 2004 | P11: 2380 | R11: 4 | S11: بكيل تكملة الربع | T11: 500 | V11: 4 | X11: باسمير | Y11: 1500
A12: 5 | E12: 5 | F12: جلال | G12: 200 | I12: 5 | J12: ثامر | K12: 1300 | M12: 5 | O12: فورد F150 2022 | P12: 1100 | R12: 5 | S12: غداء | T12: 65 | V12: 5 | X12: دفعة صالح قطع | Y12: 4000
A13: 6 | E13: 6 | F13: ثامر | G13: 1000 | I13: 6 | J13: حبيب | K13: 3400 | M13: 6 | O13: لاند كروزر 2004 | P13: 1000 | R13: 6 | S13: مازن نكملة نيسان | T13: 200 | V13: 6 | X13: دفعة بن سلوم | Y13: 500
A14: 7 | E14: 7 | F14: عامر | G14: 600 | I14: 7 | M14: 7 | O14: هايلكس 2017 | P14: 2000 | R14: 7 | S14: عامر القزلز | T14: 500 | V14: 7 | X14: باسمير | Y14: 1500
A15: 8 | E15: 8 | F15: عامر | G15: 100 | I15: 8 | M15: 8 | O15: لكزس 2014 LX | P15: 1000 | R15: 8 | S15: مقصود | T15: 100 | V15: 8 | X15: العمودي | Y15: 500
A16: 9 | E16: 9 | F16: شمس الدين | G16: 100 | I16: 9 | M16: 9 | O16: تورس فورد 2024 | P16: 3000 | R16: 9 | S16: ماء قوارير | T16: 20 | V16: 9 | X16: العالمية | Y16: 535
A17: 10 | E17: 10 | F17: حبيب | G17: 100 | I17: 10 | M17: 10 | O17: لاند كروزر 2022 | P17: 1800 | R17: 10 | S17: الميكانيكي السورى الجمس | T17: 200 | V17: 10 | X17: دفعة باجيل | Y17: 2015
A18: 11 | E18: 11 | F18: جلال | G18: 200 | I18: 11 | M18: 11 | O18: سوناتا هيونداب 2017 | P18: 1400 | R18: 11 | S18: ينزين | T18: 50 | V18: 11 | X18: باسمير | Y18: 2000
A19: 12 | E19: 12 | F19: علمان | G19: 100 | I19: 12 | M19: 12 | O19: تاهو 2028 | P19: 2000 | R19: 12 | V19: 12 | X19: دفعة بن سلوم | Y19: 500
A20: 13 | E20: 13 | F20: عامر | G20: 600 | I20: 13 | M20: 13 | O20: توسان هيونداي 2017 | P20: 1700 | R20: 13 | V20: 13 | X20: صالح قطع | Y20: 4400
A21: 14 | E21: 14 | F21: علمان | G21: 100 | I21: 14 | M21: 14 | O21: هايكس 2018 | P21: 200 | R21: 14 | V21: 14 | X21: باسمير | Y21: 3000
A22: 15 | E22: 15 | F22: جلال | G22: 200 | I22: 15 | M22: 15 | O22: فورتشينر 2015 | P22: 2313 | R22: 15 | V22: 15 | X22: ابوسلطان | Y22: 500
A23: 16 | E23: 16 | F23: يوسف | G23: 200 | I23: 16 | M23: 16 | O23: تورس فورد 2024 | P23: 2800 | R23: 16 | V23: 16 | X23: بنسلوم مواد | Y23: 500
A24: 17 | E24: 17 | F24: علمان | G24: 200 | I24: 17 | M24: 17 | O24: سيرا 2019 | P24: 1200 | R24: 17 | V24: 17
A25: 18 | E25: 18 | F25: عامر | G25: 100 | I25: 18 | M25: 18 | O25: افالون 2016 | P25: 5000 | R25: 18 | V25: 18
A26: 19 | E26: 19 | F26: ثامر | G26: 200 | I26: 19 | M26: 19 | O26: سي كلاسمرسيدس 2020 | P26: 700 | R26: 19 | V26: 19
A27: 20 | E27: 20 | F27: شمس الدين | G27: 100 | I27: 20 | M27: 20 | O27: بوني كي شانجان 2020 | P27: 1800 | R27: 20 | V27: 20
A28: 21 | E28: 21 | F28: ثامر | G28: 500 | I28: 21 | M28: 21 | O28: التيما 2014 | P28: 800 | R28: 21 | V28: 21
A29: 22 | E29: 22 | F29: شمس الدين | G29: 2500 | I29: 22 | M29: 22 | O29: رانجلر 2015 | P29: 3000 | R29: 22 | V29: 22
A30: 23 | E30: 23 | F30: عامر | G30: 50 | I30: 23 | M30: 23 | O30: لاند كروزر 2007 | P30: 19137 | R30: 23 | V30: 23
A31: 24 | E31: 24 | F31: اوفرتايم يوسف | G31: 120 | I31: 24 | M31: 24 | R31: 24 | V31: 24
A32: 25 | E32: 25 | F32: اوفرتايم علمان | G32: 450 | I32: 25 | M32: 25 | R32: 25 | V32: 25
A33: 26 | E33: 26 | F33: اوفرتايم حبيب | G33: 120 | I33: 26 | M33: 26 | R33: 26 | V33: 26
A34: 27 | E34: 27 | F34: اوفر تايم عامر | G34: 60 | I34: 27 | M34: 27 | R34: 27 | V34: 27
A35: 28 | E35: 28 | F35: اوفرتايم علمان | G35: 120 | I35: 28 | M35: 28 | R35: 28 | V35: 28
A36: 29 | E36: 29 | F36: اوفر تايم جلال | G36: 60 | I36: 29 | M36: 29 | R36: 29 | V36: 29
A37: 30 | E37: 30 | F37: اوفر تايم شمس | G37: 150 | I37: 30 | M37: 30 | R37: 30 | V37: 30
A38: 31 | E38: 31 | F38: اوفرتايم ثامر | G38: 120 | I38: 31 | M38: 31 | R38: 31 | V38: 31
A39: 32 | E39: 32 | I39: 32 | M39: 32 | R39: 32 | V39: 32
A40: 33 | E40: 33 | I40: 33 | M40: 33 | R40: 33 | V40: 33
A41: 34 | E41: 34 | I41: 34 | M41: 34 | R41: 34 | V41: 34
A42: 35 | E42: 35 | I42: 35 | M42: 35 | R42: 35 | V42: 35
A43: 36 | E43: 36 | I43: 36 | M43: 36 | R43: 36 | V43: 36
A44: 37 | E44: 37 | I44: 37 | M44: 37 | R44: 37 | V44: 37
A45: 38 | E45: 38 | I45: 38 | M45: 38 | R45: 38 | V45: 38
A46: 39 | E46: 39 | I46: 39 | M46: 39 | R46: 39 | V46: 39
A47: 40 | E47: 40 | I47: 40 | M47: 40 | R47: 40 | V47: 40
D52: الراتب | F52: سلفيات
D53: =1500-F53 -> 1500 | F53: =SUMIF(F8:F47,G53,G8:G47) -> 0 | G53: ابوباسل
D54: =3500-F54 -> 1800 | F54: =SUMIF(F9:F48,G54,G9:G48) -> 1700 | G54: ثامر
D55: =2700-F55 -> -100 | F55: =SUMIF(F8:F49,G55,G8:G49) -> 2800 | G55: شمس الدين
D56: 2100 | F56: 600 | G56: جلال
D57: 1250 | F57: 1450 | G57: عامر
D58: =3000-F58 -> 2800 | F58: 200 | G58: يوسف
D59: =2700-F59 -> 2300 | F59: 400 | G59: علمان
D60: =3500-F60 -> 3400 | F60: 100 | G60: حبيب
F61: 0
F62: 0
D63: =SUM(D54:D62) -> 13550

Sheet حركة شهر 9
A1: حـــركـــات شــــهــــر 2025/09
C3: =SUMIF(F8:F50,F3,G8:G50) -> 900 | F3: شمس الدين | K3: مصروفات شهر9 | L3: =C5+G5+K5+T5+Y5 -> 61959
K4: حــركة شهر 9 | N4: =P5-C5-G5-K5-T5-Y5 -> -42759 | O4: حركة شهر 8 مرحل | P4: ='حركة شهر 8'!N5 -> -6892
C5: =SUM(C8:C47) -> 1146 | G5: =SUM(G8:G47) -> 11920 | K5: =SUM(K8:K47) -> 11100 | N5: =P5-C5-G5-K5-T5-Y5+P4 -> -49651 | O5: صافي الدخل | P5: =SUM(P8:P47) -> 19200 | T5: =SUM(T8:T47) -> 10028 | Y5: =SUM(Y8:Y47) -> 27765
A6: مـصــروفات مواد السمكرة | E6: سلفيات العمال | I6: رواتب العمال | M6: الـدخـل الــشــهــري | R6: مـصــروفات متنوعة | V6: ســداد مــوردين
A7: الرقم | B7: الـــبـــــــيـــــــــــــــان | C7: المبلغ | E7: الرقم | F7: اسم العامل | G7: المبلغ | I7: الرقم | J7: اسم العامل | K7: المبلغ | M7: الرقم | N7: رقم الفاتورة | O7: الـــبـــــــيـــــــــــــــان | P7: المبلغ | R7: الرقم | S7: الـــبـــــــيـــــــــــــــان | T7: المبلغ | V7: الرقم | W7: رقم السند | X7: الـــبـــــــيـــــــــــــــان | Y7: المبلغ
A8: 1 | B8: منشف باسمير | C8: 96 | E8: 1 | F8: عامر | G8: 100 | I8: 1 | J8: ثامر | K8: 300 | M8: 1 | O8: سيراء جمس 2017 | P8: 1500 | R8: 1 | S8: عامر القزاز | T8: 100 | V8: 1 | X8: عبدالعزبز بن منيف قطع انوفا | Y8: 4000
A9: 2 | B9: منشف باسمير | C9: 96 | E9: 2 | F9: ابوباسل | G9: 1000 | I9: 2 | J9: شمس الدين | K9: 1800 | M9: 2 | O9: مازدا6 2023 | P9: 3000 | R9: 2 | S9: عامر القزاز | T9: 100 | V9: 2 | X9: صالح قطع | Y9: 2000
A10: 3 | B10: منشف | C10: 95 | F10: ابوباسل | G10: 90 | I10: 3 | J10: جلال | K10: 1800 | M10: 3 | O10: سكويا 2012 | P10: 1700 | R10: 3 | S10: الفيبر | T10: 500 | V10: 3 | X10: باسمير | Y10: 2000
A11: 4 | B11: منشف باسمير | C11: 96 | E11: 4 | F11: يوسف | G11: 100 | I11: 4 | J11: عامر | K11: 1100 | M11: 4 | O11: رام دوج 2019 | P11: 2500 | R11: 4 | S11: فريون انوفا شعيب | T11: 200 | V11: 4 | X11: اكسجين | Y11: 150
A12: 5 | B12: بولش سائل وبفر | C12: 190 | E12: 5 | F12: عامر | G12: 200 | I12: 5 | J12: يوسف | K12: 2200 | M12: 5 | O12: تاهو شبفرليت 2012 | P12: 6000 | R12: 5 | S12: غدا | T12: 20 | V12: 5 | X12: تيب رش | Y12: 100
A13: 6 | B13: منشف | C13: 95 | E13: 6 | F13: علمان | G13: 100 | I13: 6 | J13: علمان | K13: 1000 | M13: 6 | O13: تور فورد 2016 | P13: 4500 | R13: 6 | S13: غدا | T13: 30 | V13: 6 | X13: باسمير | Y13: 2500
A14: 7 | B14: ورق | C14: 400 | E14: 7 | F14: جلال | G14: 200 | I14: 7 | J14: حبيب | K14: 2900 | M14: 7 | R14: 7 | S14: مقصود | T14: 100 | V14: 7 | X14: بن سلوم | Y14: 475
A15: 8 | B15: تيب | C15: 78 | E15: 8 | F15: شمس الدين | G15: 200 | I15: 8 | M15: 8 | R15: 8 | S15: محبوب موتر باوزير | T15: 200 | V15: 8 | X15: صالح قطع | Y15: 1500
A16: 9 | E16: 9 | F16: علمان | G16: 300 | I16: 9 | M16: 9 | R16: 9 | S16: السوري ميكنيك التاهو | T16: 400 | V16: 9 | X16: العمودي | Y16: 515
A17: 10 | E17: 10 | I17: 10 | M17: 10 | R17: 10 | S17: غدا | T17: 39 | V17: 10 | X17: باسمير | Y17: 2000
A18: 11 | E18: 11 | F18: عامر | G18: 100 | I18: 11 | M18: 11 | R18: 11 | S18: هوابة الحوطي | T18: 300 | V18: 11 | X18: باسمير | Y18: 2000
A19: 12 | E19: 12 | F19: ثامر | G19: 2000 | I19: 12 | M19: 12 | R19: 12 | S19: سطحة فورشنر السبيعي | T19: 170 | V19: 12 | X19: ابوسلطان | Y19: 1000
A20: 13 | E20: 13 | F20: حبيب | G20: 500 | I20: 13 | M20: 13 | R20: 13 | S20: بلاستيك | T20: 30 | V20: 13 | X20: العالمية | Y20: 240
A21: 14 | E21: 14 | F21: جلال | G21: 100 | I21: 14 | M21: 14 | R21: 14 | S21: غدا | T21: 28 | V21: 14 | X21: صالح قطع | Y21: 2000
A22: 15 | E22: 15 | F22: علمان | G22: 100 | I22: 15 | M22: 15 | R22: 15 | S22: دهان تجربة | T22: 70 | V22: 15 | X22: باسمير | Y22: 2500
A23: 16 | E23: 16 | F23: عامر | G23: 100 | I23: 16 | M23: 16 | R23: 16 | S23: فير وبرمجة | T23: 300 | V23: 16 | X23: العالمية | Y23: 860
A24: 17 | E24: 17 | F24: يوسف | G24: 200 | I24: 17 | M24: 17 | R24: 17 | S24: غدا | T24: 30 | V24: 17 | X24: العمودي | Y24: 625
A25: 18 | E25: 18 | F25: علمان | G25: 1000 | I25: 18 | M25: 18 | R25: 18 | S25: رديتر الجمس | T25: 400 | V25: 18 | X25: صالح قطع | Y25: 800
A26: 19 | E26: 19 | F26: عامر | G26: 500 | I26: 19 | M26: 19 | R26: 19 | S26: عمر الطويل طبلون الربع | T26: 400 | V26: 19 | X26: باسمير | Y26: 2500
A27: 20 | E27: 20 | F27: ثامر | G27: 200 | I27: 20 | M27: 20 | R27: 20 | S27: شجن باب الكزس | T27: 80 | V27: 20
A28: 21 | E28: 21 | F28: عامر | G28: 100 | I28: 21 | M28: 21 | R28: 21 | S28: غدا | T28: 50 | V28: 21
A29: 22 | E29: 22 | F29: جلال | G29: 100 | I29: 22 | M29: 22 | R29: 22 | S29: غدا | T29: 23 | V29: 22
A30: 23 | E30: 23 | F30: حبيب | G30: 100 | I30: 23 | M30: 23 | R30: 23 | S30: عامر القزاز | T30: 500 | V30: 23
A31: 24 | E31: 24 | F31: شمس الدين | G31: 100 | I31: 24 | M31: 24 | R31: 24 | S31: غدا | T31: 54 | V31: 24
A32: 25 | E32: 25 | F32: يوسف | G32: 100 | I32: 25 | M32: 25 | R32: 25 | S32: بنزين | T32: 70 | V32: 25
A33: 26 | E33: 26 | F33: علمان | G33: 100 | I33: 26 | M33: 26 | R33: 26 | S33: غدا | T33: 34 | V33: 26
A34: 27 | E34: 27 | F34: شمس الدين | G34: 500 | I34: 27 | M34: 27 | R34: 27 | S34: فيبر صدامات | T34: 500 | V34: 27
A35: 28 | E35: 28 | F35: عامر | G35: 500 | I35: 28 | M35: 28 | R35: 28 | S35: غدا | T35: 13 | V35: 28
A36: 29 | E36: 29 | F36: ثامر | G36: 1000 | I36: 29 | M36: 29 | R36: 29 | S36: تجديد ابشر اعمال | T36: 287 | V36: 29
A37: 30 | E37: 30 | F37: جلال | G37: 500 | I37: 30 | M37: 30 | R37: 30 | S37: تامين عامر وشمس | T37: 1200 | V37: 30
A38: 31 | E38: 31 | F38: شمس الدين | G38: 100 | I38: 31 | M38: 31 | R38: 31 | S38: تامين متعب | T38: 750 | V38: 31
A39: 32 | E39: 32 | F39: عامر | G39: 100 | I39: 32 | M39: 32 | R39: 32 | S39: تجديد الاقامة | T39: 1650 | V39: 32
A40: 33 | E40: 33 | F40: علمان | G40: 100 | I40: 33 | M40: 33 | R40: 33 | S40: زجاج المازدا | T40: 800 | V40: 33
A41: 34 | E41: 34 | F41: يوسف | G41: 500 | I41: 34 | M41: 34 | R41: 34 | S41: تلميع شمعات جمس ولكزس جيب | T41: 600 | V41: 34
A42: 35 | E42: 35 | F42: اوفرتايم حبيب | G42: 120 | I42: 35 | M42: 35 | R42: 35 | V42: 35
A43: 36 | E43: 36 | F43: اوفر تايم شمس | G43: 150 | I43: 36 | M43: 36 | R43: 36 | V43: 36
A44: 37 | E44: 37 | F44: اوفرتايم علمان | G44: 210 | I44: 37 | M44: 37 | R44: 37 | V44: 37
A45: 38 | E45: 38 | F45: اوفر تايم عامر | G45: 120 | I45: 38 | M45: 38 | R45: 38 | V45: 38
A46: 39 | E46: 39 | F46: اوفرتايم يوسف | G46: 150 | I46: 39 | M46: 39 | R46: 39 | V46: 39
A47: 40 | E47: 40 | F47: اوفر تايم جلال | G47: 180 | I47: 40 | M47: 40 | R47: 40 | V47: 40
E48: 41 | F48: اوفرتايم ثامر | G48: 150
H50: الراتب | J50: سلفيات | N50: اجمالي المبلغ | O50: الموردين
H51: =1500-J51 -> 410 | J51: =SUMIF(F7:F49,K51,G7:G49) -> 1090 | K51: ابوباسل | N51: =SUMIF(X8:X47,O51,Y8:Y47) -> 4000 | O51: عبدالعزبز بن منيف قطع انوفا
H52: =3000-J52 -> -200 | J52: =SUMIF(F8:F50,K52,G8:G50) -> 3200 | K52: ثامر | N52: =SUMIF(X9:X48,O52,Y9:Y48) -> 6300 | O52: صالح قطع
H53: =2700-J53 -> 1800 | J53: =SUMIF(F9:F51,K53,G9:G51) -> 900 | K53: شمس الدين | N53: 13500 | O53: باسمير
H54: =2700-J54 -> 1800 | J54: 900 | K54: جلال | N54: 475 | O54: بن سلوم
H55: =2700-J55 -> 1100 | J55: 1600 | K55: عامر | N55: 1140 | O55: العمودي
H56: =3000-J56 -> 2200 | J56: 800 | K56: يوسف | N56: 1000 | O56: ابوسلطان
H57: =2700-J57 -> 1000 | J57: 1700 | K57: علمان | N57: 1100 | O57: العالمية
H58: =3500-J58 -> 2900 | J58: 600 | K58: حبيب
H61: =SUM(H52:H60) -> 10600

Sheet حركة شهر 10
A1: حـــركـــات شــــهــــر 2025/10
C3: =SUMIF(F8:F50,F3,G8:G50) -> 500 | F3: ثامر | K3: مصروفات شهر10 | L3: =C5+G5+K5+T5+Y5 -> 500
K4: حــركة شهر 10 | N4: =P5-C5-G5-K5-T5-Y5 -> -500 | O4: حركة شهر 9 مرحل | P4: ='حركة شهر 9'!N5 -> -49651
C5: =SUM(C8:C47) -> 0 | G5: =SUM(G8:G47) -> 500 | K5: =SUM(K8:K47) -> 0 | N5: =P5-C5-G5-K5-T5-Y5+P4 -> -50151 | O5: صافي الدخل | P5: =SUM(P8:P47) -> 0 | T5: =SUM(T8:T47) -> 0 | Y5: =SUM(Y8:Y47) -> 0
A6: مـصــروفات مواد السمكرة | E6: سلفيات العمال | I6: رواتب العمال | M6: الـدخـل الــشــهــري | R6: مـصــروفات متنوعة | V6: ســداد مــوردين
A7: الرقم | B7: الـــبـــــــيـــــــــــــــان | C7: المبلغ | E7: الرقم | F7: اسم العامل | G7: المبلغ | I7: الرقم | J7: اسم العامل | K7: المبلغ | M7: الرقم | N7: رقم الفاتورة | O7: الـــبـــــــيـــــــــــــــان | P7: المبلغ | R7: الرقم | S7: الـــبـــــــيـــــــــــــــان | T7: المبلغ | V7: الرقم | W7: رقم السند | X7: الـــبـــــــيـــــــــــــــان | Y7: المبلغ
A8: 1 | E8: 1 | F8: ثامر | G8: 500 | I8: 1 | M8: 1 | R8: 1 | V8: 1
A9: 2 | E9: 2 | I9: 2 | M9: 2 | R9: 2 | V9: 2
A10: 3 | E10: 3 | I10: 3 | M10: 3 | R10: 3 | V10: 3
A11: 4 | E11: 4 | I11: 4 | M11: 4 | R11: 4 | V11: 4
A12: 5 | E12: 5 | I12: 5 | M12: 5 | R12: 5 | V12: 5
A13: 6 | E13: 6 | I13: 6 | M13: 6 | R13: 6 | V13: 6
A14: 7 | E14: 7 | I14: 7 | M14: 7 | R14: 7 | V14: 7
A15: 8 | E15: 8 | I15: 8 | M15: 8 | R15: 8 | V15: 8
A16: 9 | E16: 9 | I16: 9 | M16: 9 | R16: 9 | V16: 9
A17: 10 | E17: 10 | I17: 10 | M17: 10 | R17: 10 | V17: 10
A18: 11 | E18: 11 | I18: 11 | M18: 11 | R18: 11 | V18: 11
A19: 12 | E19: 12 | I19: 12 | M19: 12 | R19: 12 | V19: 12
A20: 13 | E20: 13 | I20: 13 | M20: 13 | R20: 13 | V20: 13
A21: 14 | E21: 14 | I21: 14 | M21: 14 | R21: 14 | V21: 14
A22: 15 | E22: 15 | I22: 15 | M22: 15 | R22: 15 | V22: 15
A23: 16 | E23: 16 | I23: 16 | M23: 16 | R23: 16 | V23: 16
A24: 17 | E24: 17 | I24: 17 | M24: 17 | R24: 17 | V24: 17
A25: 18 | E25: 18 | I25: 18 | M25: 18 | R25: 18 | V25: 18
A26: 19 | E26: 19 | I26: 19 | M26: 19 | R26: 19 | V26: 19
A27: 20 | E27: 20 | I27: 20 | M27: 20 | R27: 20 | V27: 20
A28: 21 | E28: 21 | I28: 21 | M28: 21 | R28: 21 | V28: 21
A29: 22 | E29: 22 | I29: 22 | M29: 22 | R29: 22 | V29: 22
A30: 23 | E30: 23 | I30: 23 | M30: 23 | R30: 23 | V30: 23
A31: 24 | E31: 24 | I31: 24 | M31: 24 | R31: 24 | V31: 24
A32: 25 | E32: 25 | I32: 25 | M32: 25 | R32: 25 | V32: 25
A33: 26 | E33: 26 | I33: 26 | M33: 26 | R33: 26 | V33: 26
A34: 27 | E34: 27 | I34: 27 | M34: 27 | R34: 27 | V34: 27
A35: 28 | E35: 28 | I35: 28 | M35: 28 | R35: 28 | V35: 28
A36: 29 | E36: 29 | I36: 29 | M36: 29 | R36: 29 | V36: 29
A37: 30 | E37: 30 | I37: 30 | M37: 30 | R37: 30 | V37: 30
A38: 31 | E38: 31 | I38: 31 | M38: 31 | R38: 31 | V38: 31
A39: 32 | E39: 32 | I39: 32 | M39: 32 | R39: 32 | V39: 32
A40: 33 | E40: 33 | I40: 33 | M40: 33 | R40: 33 | V40: 33
A41: 34 | E41: 34 | I41: 34 | M41: 34 | R41: 34 | V41: 34
A42: 35 | E42: 35 | I42: 35 | M42: 35 | R42: 35 | V42: 35
A43: 36 | E43: 36 | I43: 36 | M43: 36 | R43: 36 | V43: 36
A44: 37 | E44: 37 | I44: 37 | M44: 37 | R44: 37 | V44: 37
A45: 38 | E45: 38 | I45: 38 | M45: 38 | R45: 38 | V45: 38
A46: 39 | E46: 39 | I46: 39 | M46: 39 | R46: 39 | V46: 39
A47: 40 | E47: 40 | I47: 40 | M47: 40 | R47: 40 | V47: 40
H50: الراتب | J50: سلفيات | N50: اجمالي المبلغ | O50: الموردين
H51: =1500-J51 -> 1500 | J51: =SUMIF(F7:F49,K51,G7:G49) -> 0 | K51: ابوباسل | N51: =SUMIF(X8:X47,O51,Y8:Y47) -> 0 | O51: عبدالعزبز بن منيف قطع انوفا
H52: =3000-J52 -> 2500 | J52: 500 | K52: ثامر | N52: 0 | O52: صالح قطع
H53: =2700-J53 -> 2700 | J53: 0 | K53: شمس الدين | N53: 0 | O53: باسمير
H54: 2700 | J54: 0 | K54: جلال | N54: 0 | O54: بن سلوم
H55: 2700 | J55: 0 | K55: عامر | N55: 0 | O55: العمودي
H56: =3000-J56 -> 3000 | J56: 0 | K56: يوسف | N56: 0 | O56: ابوسلطان
H57: =2700-J57 -> 2700 | J57: 0 | K57: علمان | N57: 0 | O57: العالمية
H58: =3500-J58 -> 3500 | J58: 0 | K58: حبيب
H61: =SUM(H52:H60) -> 19800

Sheet حركة شهر 11
A1: حـــركـــات شــــهــــر 2025/11
C3: =SUMIF(F8:F50,F3,G8:G50) -> 0 | K3: مصروفات شهر11 | L3: =C5+G5+K5+T5+Y5 -> 0
K4: حــركة شهر 11 | N4: =P5-C5-G5-K5-T5-Y5 -> 0 | O4: حركة شهر 10مرحل | P4: ='حركة شهر 10'!N5 -> -50151
C5: =SUM(C8:C47) -> 0 | G5: =SUM(G8:G47) -> 0 | K5: =SUM(K8:K47) -> 0 | N5: =P5-C5-G5-K5-T5-Y5+P4 -> -50151 | O5: صافي الدخل | P5: =SUM(P8:P47) -> 0 | T5: =SUM(T8:T47) -> 0 | Y5: =SUM(Y8:Y47) -> 0
A6: مـصــروفات مواد السمكرة | E6: سلفيات العمال | I6: رواتب العمال | M6: الـدخـل الــشــهــري | R6: مـصــروفات متنوعة | V6: ســداد مــوردين
A7: الرقم | B7: الـــبـــــــيـــــــــــــــان | C7: المبلغ | E7: الرقم | F7: اسم العامل | G7: المبلغ | I7: الرقم | J7: اسم العامل | K7: المبلغ | M7: الرقم | N7: رقم الفاتورة | O7: الـــبـــــــيـــــــــــــــان | P7: المبلغ | R7: الرقم | S7: الـــبـــــــيـــــــــــــــان | T7: المبلغ | V7: الرقم | W7: رقم السند | X7: الـــبـــــــيـــــــــــــــان | Y7: المبلغ
A8: 1 | E8: 1 | I8: 1 | M8: 1 | R8: 1 | V8: 1
A9: 2 | E9: 2 | I9: 2 | M9: 2 | R9: 2 | V9: 2
A10: 3 | E10: 3 | I10: 3 | M10: 3 | R10: 3 | V10: 3
A11: 4 | E11: 4 | I11: 4 | M11: 4 | R11: 4 | V11: 4
A12: 5 | E12: 5 | I12: 5 | M12: 5 | R12: 5 | V12: 5
A13: 6 | E13: 6 | I13: 6 | M13: 6 | R13: 6 | V13: 6
A14: 7 | E14: 7 | I14: 7 | M14: 7 | R14: 7 | V14: 7
A15: 8 | E15: 8 | I15: 8 | M15: 8 | R15: 8 | V15: 8
A16: 9 | E16: 9 | I16: 9 | M16: 9 | R16: 9 | V16: 9
A17: 10 | E17: 10 | I17: 10 | M17: 10 | R17: 10 | V17: 10
A18: 11 | E18: 11 | I18: 11 | M18: 11 | R18: 11 | V18: 11
A19: 12 | E19: 12 | I19: 12 | M19: 12 | R19: 12 | V19: 12
A20: 13 | E20: 13 | I20: 13 | M20: 13 | R20: 13 | V20: 13
A21: 14 | E21: 14 | I21: 14 | M21: 14 | R21: 14 | V21: 14
A22: 15 | E22: 15 | I22: 15 | M22: 15 | R22: 15 | V22: 15
A23: 16 | E23: 16 | I23: 16 | M23: 16 | R23: 16 | V23: 16
A24: 17 | E24: 17 | I24: 17 | M24: 17 | R24: 17 | V24: 17
A25: 18 | E25: 18 | I25: 18 | M25: 18 | R25: 18 | V25: 18
A26: 19 | E26: 19 | I26: 19 | M26: 19 | R26: 19 | V26: 19
A27: 20 | E27: 20 | I27: 20 | M27: 20 | R27: 20 | V27: 20
A28: 21 | E28: 21 | I28: 21 | M28: 21 | R28: 21 | V28: 21
A29: 22 | E29: 22 | I29: 22 | M29: 22 | R29: 22 | V29: 22
A30: 23 | E30: 23 | I30: 23 | M30: 23 | R30: 23 | V30: 23
A31: 24 | E31: 24 | I31: 24 | M31: 24 | R31: 24 | V31: 24
A32: 25 | E32: 25 | I32: 25 | M32: 25 | R32: 25 | V32: 25
A33: 26 | E33: 26 | I33: 26 | M33: 26 | R33: 26 | V33: 26
A34: 27 | E34: 27 | I34: 27 | M34: 27 | R34: 27 | V34: 27
A35: 28 | E35: 28 | I35: 28 | M35: 28 | R35: 28 | V35: 28
A36: 29 | E36: 29 | I36: 29 | M36: 29 | R36: 29 | V36: 29
A37: 30 | E37: 30 | I37: 30 | M37: 30 | R37: 30 | V37: 30
A38: 31 | E38: 31 | I38: 31 | M38: 31 | R38: 31 | V38: 31
A39: 32 | E39: 32 | I39: 32 | M39: 32 | R39: 32 | V39: 32
A40: 33 | E40: 33 | I40: 33 | M40: 33 | R40: 33 | V40: 33
A41: 34 | E41: 34 | I41: 34 | M41: 34 | R41: 34 | V41: 34
A42: 35 | E42: 35 | I42: 35 | M42: 35 | R42: 35 | V42: 35
A43: 36 | E43: 36 | I43: 36 | M43: 36 | R43: 36 | V43: 36
A44: 37 | E44: 37 | I44: 37 | M44: 37 | R44: 37 | V44: 37
A45: 38 | E45: 38 | I45: 38 | M45: 38 | R45: 38 | V45: 38
A46: 39 | E46: 39 | I46: 39 | M46: 39 | R46: 39 | V46: 39
A47: 40 | E47: 40 | I47: 40 | M47: 40 | R47: 40 | V47: 40

Sheet حركة شهر 12
A1: حـــركـــات شــــهــــر 2025/12
C3: =SUMIF(F8:F50,F3,G8:G50) -> 0 | K3: مصروفات شهر12 | L3: =C5+G5+K5+T5+Y5 -> 0
K4: حــركة شهر 12 | N4: =P5-C5-G5-K5-T5-Y5 -> 0 | O4: حركة شهر 11 مرحل | P4: ='حركة شهر 11'!N5 -> -50151
C5: =SUM(C8:C47) -> 0 | G5: =SUM(G8:G47) -> 0 | K5: =SUM(K8:K47) -> 0 | N5: =P5-C5-G5-K5-T5-Y5+P4 -> -50151 | O5: صافي الدخل | P5: =SUM(P8:P47) -> 0 | T5: =SUM(T8:T47) -> 0 | Y5: =SUM(Y8:Y47) -> 0
A6: مـصــروفات مواد السمكرة | E6: سلفيات العمال | I6: رواتب العمال | M6: الـدخـل الــشــهــري | R6: مـصــروفات متنوعة | V6: ســداد مــوردين
A7: الرقم | B7: الـــبـــــــيـــــــــــــــان | C7: المبلغ | E7: الرقم | F7: اسم العامل | G7: المبلغ | I7: الرقم | J7: اسم العامل | K7: المبلغ | M7: الرقم | N7: رقم الفاتورة | O7: الـــبـــــــيـــــــــــــــان | P7: المبلغ | R7: الرقم | S7: الـــبـــــــيـــــــــــــــان | T7: المبلغ | V7: الرقم | W7: رقم السند | X7: الـــبـــــــيـــــــــــــــان | Y7: المبلغ
A8: 1 | E8: 1 | I8: 1 | M8: 1 | R8: 1 | V8: 1
A9: 2 | E9: 2 | I9: 2 | M9: 2 | R9: 2 | V9: 2
A10: 3 | E10: 3 | I10: 3 | M10: 3 | R10: 3 | V10: 3
A11: 4 | E11: 4 | I11: 4 | M11: 4 | R11: 4 | V11: 4
A12: 5 | E12: 5 | I12: 5 | M12: 5 | R12: 5 | V12: 5
A13: 6 | E13: 6 | I13: 6 | M13: 6 | R13: 6 | V13: 6
A14: 7 | E14: 7 | I14: 7 | M14: 7 | R14: 7 | V14: 7
A15: 8 | E15: 8 | I15: 8 | M15: 8 | R15: 8 | V15: 8
A16: 9 | E16: 9 | I16: 9 | M16: 9 | R16: 9 | V16: 9
A17: 10 | E17: 10 | I17: 10 | M17: 10 | R17: 10 | V17: 10
A18: 11 | E18: 11 | I18: 11 | M18: 11 | R18: 11 | V18: 11
A19: 12 | E19: 12 | I19: 12 | M19: 12 | R19: 12 | V19: 12
A20: 13 | E20: 13 | I20: 13 | M20: 13 | R20: 13 | V20: 13
A21: 14 | E21: 14 | I21: 14 | M21: 14 | R21: 14 | V21: 14
A22: 15 | E22: 15 | I22: 15 | M22: 15 | R22: 15 | V22: 15
A23: 16 | E23: 16 | I23: 16 | M23: 16 | R23: 16 | V23: 16
A24: 17 | E24: 17 | I24: 17 | M24: 17 | R24: 17 | V24: 17
A25: 18 | E25: 18 | I25: 18 | M25: 18 | R25: 18 | V25: 18
A26: 19 | E26: 19 | I26: 19 | M26: 19 | R26: 19 | V26: 19
A27: 20 | E27: 20 | I27: 20 | M27: 20 | R27: 20 | V27: 20
A28: 21 | E28: 21 | I28: 21 | M28: 21 | R28: 21 | V28: 21
A29: 22 | E29: 22 | I29: 22 | M29: 22 | R29: 22 | V29: 22
A30: 23 | E30: 23 | I30: 23 | M30: 23 | R30: 23 | V30: 23
A31: 24 | E31: 24 | I31: 24 | M31: 24 | R31: 24 | V31: 24
A32: 25 | E32: 25 | I32: 25 | M32: 25 | R32: 25 | V32: 25
A33: 26 | E33: 26 | I33: 26 | M33: 26 | R33: 26 | V33: 26
A34: 27 | E34: 27 | I34: 27 | M34: 27 | R34: 27 | V34: 27
A35: 28 | E35: 28 | I35: 28 | M35: 28 | R35: 28 | V35: 28
A36: 29 | E36: 29 | I36: 29 | M36: 29 | R36: 29 | V36: 29
A37: 30 | E37: 30 | I37: 30 | M37: 30 | R37: 30 | V37: 30
A38: 31 | E38: 31 | I38: 31 | M38: 31 | R38: 31 | V38: 31
A39: 32 | E39: 32 | I39: 32 | M39: 32 | R39: 32 | V39: 32
A40: 33 | E40: 33 | I40: 33 | M40: 33 | R40: 33 | V40: 33
A41: 34 | E41: 34 | I41: 34 | M41: 34 | R41: 34 | V41: 34
A42: 35 | E42: 35 | I42: 35 | M42: 35 | R42: 35 | V42: 35
A43: 36 | E43: 36 | I43: 36 | M43: 36 | R43: 36 | V43: 36
A44: 37 | E44: 37 | I44: 37 | M44: 37 | R44: 37 | V44: 37
A45: 38 | E45: 38 | I45: 38 | M45: 38 | R45: 38 | V45: 38
A46: 39 | E46: 39 | I46: 39 | M46: 39 | R46: 39 | V46: 39
A47: 40 | E47: 40 | I47: 40 | M47: 40 | R47: 40 | V47: 40

Sheet حركة سنة 2023
A1: حركة سنة 2023
K3: مصروفات سنة 2023 | L3: =C5+G5+K5+T5+Y5 -> 136528
K4: صافي الخل | N4: =P5-C5-G5-K5-T5-Y5 -> -13140 | P4: =N5 -> -13140
C5: =SUM(C8:C107) -> 52118 | G5: =SUM(G8:G47) -> 0 | K5: =SUM(K8:K47) -> 84410 | N5: =P5-C5-G5-K5-T5-Y5 -> -13140 | O5: صافي الدخل | P5: =SUM(P8:P47) -> 123388 | T5: =SUM(T8:T47) -> 0 | Y5: =SUM(Y8:Y47) -> 0
A6: مـصــروفات مواد السمكرة | E6: سلفيات العمال | I6: رواتب العمال | M6: الـدخـل الــشــهــري | R6: مـصــروفات متنوعة | V6: ســداد مــوردين
A7: الرقم | B7: الـــبـــــــيـــــــــــــــان | C7: المبلغ | E7: الرقم | F7: اسم العامل | G7: المبلغ | I7: الرقم | J7: اسم العامل | K7: المبلغ | M7: الرقم | N7: رقم الفاتورة | O7: الـــبـــــــيـــــــــــــــان | P7: المبلغ | R7: الرقم | S7: الـــبـــــــيـــــــــــــــان | T7: المبلغ | V7: الرقم | W7: رقم السند | X7: الـــبـــــــيـــــــــــــــان | Y7: المبلغ
A8: 1 | B8: حسب الفواتير سنة 2023 | C8: 52118 | E8: 1 | G8: 0 | I8: 1 | J8: شمس الدين | K8: 1250 | M8: 1 | O8: هايلكس 2016 | P8: 2800 | R8: 1 | V8: 1
A9: 2 | E9: 2 | I9: 2 | J9: عامر | K9: 1250 | M9: 2 | O9: فتك نيسان 2019 | P9: 1200 | R9: 2 | V9: 2
A10: 3 | E10: 3 | I10: 3 | J10: شمس الدين | K10: 2500 | M10: 3 | O10: ام بوكس ايسوزو2022 | P10: 3700 | R10: 3 | V10: 3
A11: 4 | E11: 4 | I11: 4 | J11: عامر | K11: 2500 | M11: 4 | O11: بي ام دبليو 2012 | P11: 4300 | R11: 4 | V11: 4
A12: 5 | E12: 5 | I12: 5 | J12: ثامر | K12: 1250 | M12: 5 | O12: يوكن جمس 2010 | P12: 2600 | R12: 5 | S12: . | V12: 5
A13: 6 | E13: 6 | I13: 6 | J13: جلال | K13: 320 | M13: 6 | O13: باترول نيسان 2016 | P13: 11000 | R13: 6 | V13: 6
A14: 7 | E14: 7 | I14: 7 | J14: ثامر | K14: 2500 | M14: 7 | O14: هايلكس2014 | P14: 3000 | R14: 7 | V14: 7
A15: 8 | E15: 8 | I15: 8 | J15: عامر | K15: 2500 | M15: 8 | O15: جمني سوزوكي 2021 | P15: 1570 | R15: 8 | V15: 8
A16: 9 | E16: 9 | I16: 9 | J16: شمس الدين | K16: 2500 | M16: 9 | O16: كامري 2015 | P16: 1700 | R16: 9 | V16: 9
A17: 10 | E17: 10 | I17: 10 | J17: جلال | K17: 2500 | M17: 10 | O17: لاند كروزر 2015 | P17: 10660 | R17: 10 | V17: 10
A18: 11 | E18: 11 | I18: 11 | J18: جلال | K18: 2500 | M18: 11 | O18: لاند كروزر 2015 | P18: 7500 | R18: 11 | V18: 11
A19: 12 | E19: 12 | I19: 12 | J19: شمس الدين | K19: 2500 | M19: 12 | O19: تشارجر دوج 2021 | P19: 3535 | R19: 12 | V19: 12
A20: 13 | E20: 13 | I20: 13 | J20: عامر | K20: 2500 | M20: 13 | O20: كابرس 1984 | P20: 7500 | R20: 13 | V20: 13
A21: 14 | E21: 14 | I21: 14 | J21: ثامر | K21: 2500 | M21: 14 | O21: سيكويا 2011 | P21: 8000 | R21: 14 | V21: 14
A22: 15 | E22: 15 | I22: 15 | J22: شمس الدين | K22: 2500 | M22: 15 | O22: ماليبو 2018 | P22: 3535 | R22: 15 | V22: 15
A23: 16 | E23: 16 | I23: 16 | J23: عامر | K23: 2500 | M23: 16 | O23: لاند كروزر 2005 | P23: 700 | R23: 16 | V23: 16
A24: 17 | E24: 17 | I24: 17 | J24: جلال | K24: 2500 | M24: 17 | O24: توسان هيونداي 2022 | P24: 600 | R24: 17 | V24: 17
A25: 18 | E25: 18 | I25: 18 | J25: عامر | K25: 2500 | M25: 18 | O25: كابتيفيا شفرولية 2021 | P25: 1150 | R25: 18 | V25: 18
A26: 19 | E26: 19 | I26: 19 | J26: شمس الدين | K26: 2500 | M26: 19 | O26: سكويا 2009 | P26: 3570 | R26: 19 | V26: 19
A27: 20 | E27: 20 | I27: 20 | J27: جلال | K27: 2500 | M27: 20 | O27: مونتيرو سبورت مستوبيشي 2019 | P27: 3700 | R27: 20 | V27: 20
A28: 21 | E28: 21 | I28: 21 | J28: ثامر | K28: 3000 | M28: 21 | O28: جيتا فلوكس 2016 | P28: 2200 | R28: 21 | V28: 21
A29: 22 | E29: 22 | I29: 22 | J29: جلال | K29: 2500 | M29: 22 | O29: سيرا 80 | P29: 7770 | R29: 22 | V29: 22
A30: 23 | E30: 23 | I30: 23 | J30: عامر | K30: 2500 | M30: 23 | O30: النتراء 2016 | P30: 2000 | R30: 23 | V30: 23
A31: 24 | E31: 24 | I31: 24 | J31: شمس الدين | K31: 2500 | M31: 24 | O31: كورولاا 2011 | P31: 2794 | R31: 24 | V31: 24
A32: 25 | E32: 25 | I32: 25 | J32: علمان | K32: 840 | M32: 25 | O32: كورولاا 2011 | P32: 2815 | R32: 25 | V32: 25
A33: 26 | E33: 26 | I33: 26 | J33: ثامر | K33: 3000 | M33: 26 | O33: كورولاا 2011 | P33: 2674 | R33: 26 | V33: 26
A34: 27 | E34: 27 | I34: 27 | J34: عامر | K34: 2500 | M34: 27 | O34: كامري2006 | P34: 4225 | R34: 27 | V34: 27
A35: 28 | E35: 28 | I35: 28 | J35: جلال | K35: 2500 | M35: 28 | O35: ددسن نيسان 2015 | P35: 1500 | R35: 28 | V35: 28
A36: 29 | E36: 29 | I36: 29 | J36: ثامر | K36: 3000 | M36: 29 | O36: سوبرمان جمس 1993 | P36: 5100 | R36: 29 | V36: 29
A37: 30 | E37: 30 | I37: 30 | J37: شمس الدين | K37: 2500 | M37: 30 | O37: كامري2006 | P37: 4000 | R37: 30 | V37: 30
A38: 31 | E38: 31 | I38: 31 | J38: علمان | K38: 2500 | M38: 31 | O38: هايلكس 2010 | P38: 900 | R38: 31 | V38: 31
A39: 32 | E39: 32 | I39: 32 | J39: عامر | K39: 2500 | M39: 32 | O39: كورولاا 2017 | P39: 2190 | R39: 32 | V39: 32
A40: 33 | E40: 33 | I40: 33 | J40: شمس الدين | K40: 2500 | M40: 33 | O40: سوبرمان جمس 2020 | P40: 1900 | R40: 33 | V40: 33
A41: 34 | E41: 34 | I41: 34 | J41: جلال | K41: 2500 | M41: 34 | O41: لكزس ES2020 | P41: 1000 | R41: 34 | V41: 34
A42: 35 | E42: 35 | I42: 35 | J42: ثامر | K42: 3000 | M42: 35 | R42: 35 | V42: 35
A43: 36 | E43: 36 | I43: 36 | J43: علمان | K43: 2500 | M43: 36 | R43: 36 | V43: 36
A44: 37 | E44: 37 | I44: 37 | M44: 37 | R44: 37 | V44: 37
A45: 38 | E45: 38 | I45: 38 | M45: 38 | R45: 38 | V45: 38
A46: 39 | E46: 39 | I46: 39 | M46: 39 | R46: 39 | V46: 39
A47: 40 | E47: 40 | I47: 40 | M47: 40 | R47: 40 | V47: 40
A48: 41
A49: 42
A50: 43
A51: 44
A52: 45
A53: 46
A54: 47
A55: 48
A56: 49
A57: 50
A58: 51
A59: 52
A60: 53
A61: 54
A62: 55
A63: 56
A64: 57
A65: 58
A66: 59
A67: 60
A68: 61
A69: 62
A70: 63
A71: 64
A72: 65
A73: 66
A74: 67
A75: 68
A76: 69
A77: 70
A78: 71
A79: 72
A80: 73
A81: 74
A82: 75
A83: 76
A84: 77
A85: 78
A86: 79
A87: 80
A88: 81

Sheet حركة سنة 2024
A1: حركة سنة 2024
K3: مصروفات سنة 2023 | L3: =C5+G5+K5+T5+Y5 -> 298811
K4: صافي الخل | N4: =P5-C5-G5-K5-T5-Y5 -> 66460.5 | P4: ='حركة سنة 2023'!N5 -> -13140
C5: =SUM(C8:C107) -> 0 | G5: =SUM(G8:G47) -> 1890 | K5: =SUM(K8:K69) -> 143841 | N5: =P5-C5-G5-K5-T5-Y5+P4 -> 53320.5 | O5: صافي دخل السنوات23-24 | P5: =SUM(P8:P47) -> 365271.5 | T5: =SUM(T8:T47) -> 153080 | Y5: =SUM(Y8:Y47) -> 0
A6: مـصــروفات مواد السمكرة | E6: سلفيات العمال | I6: رواتب العمال | M6: الـدخـل الــشــهــري | R6: مـصــروفات متنوعة | V6: ســداد مــوردين
A7: الرقم | B7: الـــبـــــــيـــــــــــــــان | C7: المبلغ | E7: الرقم | F7: اسم العامل | G7: المبلغ | I7: الرقم | J7: اسم العامل | K7: المبلغ | M7: الرقم | N7: رقم الفاتورة | O7: الـــبـــــــيـــــــــــــــان | P7: المبلغ | R7: الرقم | S7: الـــبـــــــيـــــــــــــــان | T7: المبلغ | V7: الرقم | W7: رقم السند | X7: الـــبـــــــيـــــــــــــــان | Y7: المبلغ
A8: 1 | E8: 1 | F8: اوفر تايم عامر | G8: 90 | I8: 1 | J8: ثامر | K8: 3000 | M8: 1 | O8: حسب الكشف المرفق من البرنامج | P8: 365271.5 | R8: 1 | S8: حسب فواتير الملف | T8: 153080 | V8: 1
A9: 2 | E9: 2 | F9: اوفر تايم جلال | G9: 90 | I9: 2 | J9: جلال | K9: 2500 | M9: 2 | R9: 2 | V9: 2
A10: 3 | E10: 3 | F10: اوفرتايم علمان | G10: 90 | I10: 3 | J10: شمس الدين | K10: 2500 | M10: 3 | R10: 3 | V10: 3
A11: 4 | E11: 4 | F11: اوفر تايم جلال | G11: 210 | I11: 4 | J11: عامر | K11: 2500 | M11: 4 | R11: 4 | V11: 4
A12: 5 | E12: 5 | F12: اوفرتايم ثامر | G12: 60 | I12: 5 | J12: علمان | K12: 2500 | M12: 5 | R12: 5 | S12: . | V12: 5
A13: 6 | E13: 6 | F13: اوفر تايم شمس | G13: 210 | I13: 6 | J13: عامر | K13: 2500 | M13: 6 | R13: 6 | V13: 6
A14: 7 | E14: 7 | F14: اوفرتايم يوسف | G14: 90 | I14: 7 | J14: جلال | K14: 2500 | M14: 7 | R14: 7 | V14: 7
A15: 8 | E15: 8 | F15: اوفرتايم يوسف | G15: 270 | I15: 8 | J15: ثامر | K15: 3000 | M15: 8 | R15: 8 | V15: 8
A16: 9 | E16: 9 | F16: اوفر تايم عامر | G16: 300 | I16: 9 | J16: شمس الدين | K16: 2500 | M16: 9 | R16: 9 | V16: 9
A17: 10 | E17: 10 | F17: اوفر تايم عامر | G17: 30 | I17: 10 | J17: يوسف | K17: 2000 | M17: 10 | R17: 10 | V17: 10
A18: 11 | E18: 11 | F18: اوفر تايم جلال | G18: 210 | I18: 11 | J18: علمان | K18: 2500 | M18: 11 | R18: 11 | V18: 11
A19: 12 | E19: 12 | F19: اوفر تايم كمال | G19: 120 | I19: 12 | J19: شمس الدين | K19: 2500 | M19: 12 | R19: 12 | V19: 12
A20: 13 | E20: 13 | F20: اوفرتايم ثامر | G20: 120 | I20: 13 | J20: جلال | K20: 2500 | M20: 13 | R20: 13 | V20: 13
A21: 14 | E21: 14 | I21: 14 | J21: يوسف | K21: 3000 | M21: 14 | R21: 14 | V21: 14
A22: 15 | E22: 15 | I22: 15 | J22: عامر | K22: 420 | M22: 15 | R22: 15 | V22: 15
A23: 16 | E23: 16 | I23: 16 | J23: علمان | K23: 2500 | M23: 16 | R23: 16 | V23: 16
A24: 17 | E24: 17 | I24: 17 | J24: ثامر | K24: 3000 | M24: 17 | R24: 17 | V24: 17
A25: 18 | E25: 18 | I25: 18 | J25: شمس الدين | K25: 3000 | M25: 18 | R25: 18 | V25: 18
A26: 19 | E26: 19 | I26: 19 | J26: عامر | K26: 2500 | M26: 19 | R26: 19 | V26: 19
A27: 20 | E27: 20 | I27: 20 | J27: علمان | K27: 2500 | M27: 20 | R27: 20 | V27: 20
A28: 21 | E28: 21 | I28: 21 | J28: جلال | K28: 2500 | M28: 21 | R28: 21 | V28: 21
A29: 22 | E29: 22 | I29: 22 | J29: يوسف | K29: 3000 | M29: 22 | R29: 22 | V29: 22
A30: 23 | E30: 23 | I30: 23 | J30: حبيب | K30: 1521 | M30: 23 | R30: 23 | V30: 23
A31: 24 | E31: 24 | I31: 24 | J31: ثامر | K31: 3000 | M31: 24 | R31: 24 | V31: 24
A32: 25 | E32: 25 | I32: 25 | J32: عامر | K32: 2700 | M32: 25 | R32: 25 | V32: 25
A33: 26 | E33: 26 | I33: 26 | J33: علمان | K33: 2700 | M33: 26 | R33: 26 | V33: 26
A34: 27 | E34: 27 | I34: 27 | J34: جلال | K34: 2500 | M34: 27 | R34: 27 | V34: 27
A35: 28 | E35: 28 | I35: 28 | J35: يوسف | K35: 3000 | M35: 28 | R35: 28 | V35: 28
A36: 29 | E36: 29 | I36: 29 | J36: حبيب | K36: 3500 | M36: 29 | R36: 29 | V36: 29
A37: 30 | E37: 30 | I37: 30 | J37: ثامر | K37: 3000 | M37: 30 | R37: 30 | V37: 30
A38: 31 | E38: 31 | I38: 31 | J38: يوسف | K38: 3000 | M38: 31 | R38: 31 | V38: 31
A39: 32 | E39: 32 | I39: 32 | J39: عامر | K39: 2700 | M39: 32 | R39: 32 | V39: 32
A40: 33 | E40: 33 | I40: 33 | J40: علمان | K40: 2500 | M40: 33 | R40: 33 | V40: 33
A41: 34 | E41: 34 | I41: 34 | J41: حبيب | K41: 3500 | M41: 34 | R41: 34 | V41: 34
A42: 35 | E42: 35 | I42: 35 | J42: جلال | K42: 2500 | M42: 35 | R42: 35 | V42: 35
A43: 36 | E43: 36 | I43: 36 | J43: عامر | K43: 2700 | M43: 36 | R43: 36 | V43: 36
A44: 37 | E44: 37 | I44: 37 | J44: علمان | K44: 2500 | M44: 37 | R44: 37 | V44: 37
A45: 38 | E45: 38 | I45: 38 | J45: جلال | K45: 2500 | M45: 38 | R45: 38 | V45: 38
A46: 39 | E46: 39 | I46: 39 | J46: شمس الدين | K46: 2700 | M46: 39 | R46: 39 | V46: 39
A47: 40 | E47: 40 | I47: 40 | J47: يوسف | K47: 3000 | M47: 40 | R47: 40 | V47: 40
A48: 41 | I48: 41 | J48: حبيب | K48: 3500
A49: 42 | I49: 42 | J49: عامر | K49: 2700
A50: 43 | I50: 43 | J50: علمان | K50: 2500
A51: 44 | I51: 44 | J51: شمس الدين | K51: 2700
A52: 45 | I52: 45 | J52: يوسف | K52: 3000
A53: 46 | I53: 46 | J53: جلال | K53: 2500
A54: 47 | I54: 47 | J54: ثامر | K54: 3000
A55: 48 | I55: 48 | J55: ثامر | K55: 3000 | L55: 30/7/2024 | N55: بدون سند
A56: 49 | I56: 49 | J56: شمس الدين | K56: 2500 | L56: 30/7/2024 | N56: بدون سند
A57: 50 | I57: 50 | J57: جلال | K57: 2500 | L57: 30/7/2024 | N57: بدون سند
A58: 51 | I58: 51 | J58: عامر | K58: 2500 | L58: 30/7/2024 | N58: بدون سند
A59: 52 | I59: 52 | J59: يوسف | K59: 3000 | L59: 30/7/2024 | N59: بدون سند
A60: 53 | I60: 53 | J60: علمان | K60: 2500 | L60: 30/7/2024 | N60: بدون سند
A61: 54 | I61: 54 | J61: ثامر | K61: 3000 | L61: 30/8/2024 | N61: بدون سند
A62: 55
A63: 56
A64: 57
A65: 58
A66: 59
A67: 60
A68: 61
A69: 62
A70: 63
A71: 64
A72: 65
A73: 66
A74: 67
A75: 68
A76: 69
A77: 70
A78: 71
A79: 72
A80: 73
A81: 74
A82: 75
A83: 76
A84: 77
A85: 78
A86: 79
A87: 80
A88: 81

Sheet ميزانية عامة
I6: =G7-K7 -> 3169.5
G7: =SUM(H9:H23) -> 885077.5 | K7: =SUM(L9:L22) -> 881908
G8: الدخل الشهري | K8: المصروفات الشهرية
G9: دخل سنة 2023 | H9: ='حركة سنة 2023'!P5 -> 123388 | K9: مصزوفات سنة 2023 | L9: ='حركة سنة 2023'!L3 -> 136528
G10: دخل سنة 2024 | H10: ='حركة سنة 2024 '!P5 -> 365271.5 | K10: مصزوفات سنة 2024 | L10: ='حركة سنة 2024 '!L3 -> 298811
G11: دخل شهر 1 | H11: ='حركة شهر 1'!$P$5 -> 64350 | K11: مصروف شهر 1 | L11: ='حركة شهر 1'!$L$3 -> 31305
G12: دخل شهر 2 | H12: ='حركة شهر 2'!$P$5 -> 41365 | K12: مصروف شهر 2 | L12: ='حركة شهر 2'!$L$3 -> 63966
G13: دخل شهر 3 | H13: ='حركة شهر3'!$P$5 -> 76979 | K13: مصروف شهر 3 | L13: ='حركة شهر3'!$L$3 -> 40939
G14: دخل شهر 4 | H14: ='حركة شهر 4'!$P$5 -> 58334 | K14: مصروف شهر 4 | L14: ='حركة شهر 4'!$L$3 -> 37889
G15: دخل شهر 5 | H15: ='حركة شهر 5'!$P$5 -> 28375 | K15: مصروف شهر 5 | L15: ='حركة شهر 5'!$L$3 -> 58603
G16: دخل شهر 6 | H16: ='حركة شهر6'!$P$5 -> 27600 | K16: مصروف شهر 6 | L16: ='حركة شهر6'!$L$3 -> 43020
G17: دخل شهر 7 | H17: ='حركة شهر 7'!P5 -> 21200 | K17: مصروف شهر 7 | L17: ='حركة شهر 7'!L3 -> 59123
G18: دخل شهر 8 | H18: ='حركة شهر 8'!P5 -> 59015 | K18: مصروف شهر 8 | L18: ='حركة شهر 8'!L3 -> 49265
G19: دخل شهر 9 | H19: ='حركة شهر 9'!P5 -> 19200 | K19: مصروف شهر 9 | L19: ='حركة شهر 9'!L3 -> 61959
G20: دخل شهر 10 | H20: ='حركة شهر 10'!P5 -> 0 | K20: مصروف شهر 10 | L20: ='حركة شهر 10'!L3 -> 500
G21: دخل شهر 11 | H21: ='حركة شهر 11'!P5 -> 0 | K21: مصروف شهر 11 | L21: ='حركة شهر 11'!L3 -> 0
G22: دخل شهر 12 | H22: ='حركة شهر 12'!P5 -> 0 | K22: مصروف شهر 12 | L22: ='حركة شهر 12'!L3 -> 0
P24: حركة سنوات 2023 /2024 مصروفات والدخل
G25: =SUM(H26:H37) -> 396418 | I25: =G25-K25 -> -50151 | K25: =SUM(L26:L38) -> 446569 | P25: حركة دخل السنوات 2023/2024 | R25: =Q26-U26 ->  | T25: حركة مصروفات السنوات 2023/2024
G26: دخل شهر 1 | H26: ='حركة شهر 1'!$P$5 -> 64350 | K26: مصروف شهر 1 | L26: ='حركة شهر 1'!$L$3 -> 31305 | P26: اجمالي دخل السنوات | Q26: =SUM(Q27:Q28) ->  | T26: اجمالي مصروفات السنوات | U26: =SUM(U27:U28) -> 
G27: دخل شهر 2 | H27: ='حركة شهر 2'!$P$5 -> 41365 | K27: مصروف شهر 2 | L27: ='حركة شهر 2'!$L$3 -> 63966 | P27: دخل سنوات سابقة1 | Q27: 166834 | T27: مصروف سنوات سابقة 1 | U27: 369429
G28: دخل شهر 3 | H28: ='حركة شهر3'!$P$5 -> 76979 | K28: مصروف شهر 3 | L28: ='حركة شهر3'!$L$3 -> 40939 | P28: دخل سنوات سابقة2 | Q28: =#REF! ->  | T28: مصروف سنوات سابقة 2 | U28: =#REF! -> 
G29: دخل شهر 4 | H29: ='حركة شهر 4'!$P$5 -> 58334 | K29: مصروف شهر 4 | L29: ='حركة شهر 4'!$L$3 -> 37889
G30: دخل شهر 5 | H30: ='حركة شهر 5'!$P$5 -> 28375 | K30: مصروف شهر 5 | L30: ='حركة شهر 5'!$L$3 -> 58603
G31: دخل شهر 6 | H31: ='حركة شهر6'!$P$5 -> 27600 | K31: مصروف شهر 6 | L31: ='حركة شهر6'!$L$3 -> 43020
G32: دخل شهر 7 | H32: ='حركة شهر 7'!P5 -> 21200 | K32: مصروف شهر 7 | L32: ='حركة شهر 7'!L3 -> 59123
G33: دخل شهر 8 | H33: ='حركة شهر 8'!P5 -> 59015 | K33: مصروف شهر 8 | L33: ='حركة شهر 8'!L3 -> 49265
G34: دخل شهر 9 | H34: ='حركة شهر 9'!P5 -> 19200 | K34: مصروف شهر 9 | L34: ='حركة شهر 9'!L3 -> 61959
G35: دخل شهر 10 | H35: ='حركة شهر 10'!P5 -> 0 | K35: مصروف شهر 10 | L35: ='حركة شهر 10'!L3 -> 500
G36: دخل شهر 11 | H36: ='حركة شهر 11'!P5 -> 0 | K36: مصروف شهر 11 | L36: ='حركة شهر 11'!L3 -> 0
G37: دخل شهر 12 | H37: ='حركة شهر 12'!P5 -> 0 | K37: مصروف شهر 12 | L37: ='حركة شهر 12'!L3 -> 0

Sheet مسير رواتب
A1: كشف رواتب الموظفين عن شهر 12/2017 رواتب الادارة (611202)
L5: عدد ايام الشهر | Q5: 240
A6: م | C6: رقم الحساب | D6: الإسم | E6: المهنه | F6: الراتب الاساسي | G6: البدلات | M6: إجمالي الراتب | P6: إستقطاعات | S6: صافي الراتب بعد خصم ساعات الغياب | T6: السلفيات | U6: خصم السلفيه | V6: صافي الراتب بعد خصم السلفية | W6: رصيد السلفيه المتبقي | X6: عدد ايام الشهر
G7: السكن | H7: مواصلات | I7: إجازه | J7: اضافي | K7: مكافأة | L7: حافز البيع | N7: قيمة الاضافي ساعه | O7: عدد ساعات الاضافي | P7: خصم | Q7: ساعة الغياب | R7: خصم ساعات الغياب | X7: =P5 -> 0
A8: 1 | C8: 11030105 | D8: ثامر | E8: عامل | F8: 3000 | G8: 0 | H8: 0 | I8: 0 | J8: =N8*O8 -> 0 | K8: 0 | L8: 0 | M8: =SUM(F8:L8) -> 3000 | N8: =(3000/Q5)*1 -> 12.5 | O8: 0 | P8: 0 | Q8: 0 | R8: =(M8/Q5)*Q8 -> 0 | S8: =M8-P8-R8 -> 3000 | T8: 700 | U8: 700 | V8: =S8-U8 -> 2300 | W8: =T8-U8 -> 0 | X8: =P5 -> 0
A9: 2 | C9: 11030115 | D9: عامر | E9: عامل | F9: 2700 | G9: 0 | H9: 0 | I9: 0 | J9: =N9*O9 -> 0 | K9: 0 | L9: 0 | M9: 2700 | N9: =(1500/Q5)*1 -> 6.25 | O9: 0 | P9: 0 | Q9: 0 | R9: =(M9/Q5)*Q9 -> 0 | S9: 2700 | T9: 2100 | U9: 2100 | V9: 600 | W9: 0 | X9: =P5 -> 0
A10: 3 | C10: 11030101 | D10: شمس | E10: عامل | F10: 2700 | G10: 0 | H10: 0 | I10: 0 | J10: 0 | K10: 0 | L10: 0 | M10: 2700 | N10: =F10/Q5*1.5 -> 16.875 | O10: 0 | P10: 0 | Q10: 0 | R10: =(M10/Q5)*Q10 -> 0 | S10: 2700 | T10: 2200 | U10: 2200 | V10: 500 | W10: 0
A11: 4 | C11: 1130151 | D11: جلال | E11: عامل | F11: 2700 | G11: 0 | H11: 0 | I11: 0 | J11: 0 | K11: 0 | L11: 0 | M11: 2700 | N11: =F11/Q5*1.5 -> 16.875 | O11: 0 | P11: 0 | Q11: 0 | R11: =(M11/Q5)*Q11 -> 0 | S11: 2700 | T11: 900 | U11: 900 | V11: 1800 | W11: 0
A12: 4 | C12: 1130151 | D12: علمان | E12: عامل | F12: 2700 | G12: 0 | H12: 0 | I12: 0 | J12: 0 | K12: 0 | L12: 0 | M12: 2700 | N12: =F12/Q5*1.5 -> 16.875 | O12: 0 | P12: 0 | Q12: 0 | R12: =(M12/Q5)*Q12 -> 0 | S12: 2700 | T12: 1000 | U12: 1000 | V12: 1700 | W12: 0
A13: 4 | C13: 1130151 | D13: يوسف | E13: عامل | F13: 3000 | G13: 0 | H13: 0 | I13: 0 | J13: 0 | K13: 0 | L13: 0 | M13: 3000 | N13: =F13/Q5*1.5 -> 18.75 | O13: 0 | P13: 0 | Q13: 0 | R13: =(M13/Q5)*Q13 -> 0 | S13: 3000 | T13: 800 | U13: 800 | V13: 2200 | W13: 0
A14: 4 | C14: 1130151 | D14: حبيب | E14: عامل | F14: 3500 | G14: 0 | H14: 0 | I14: 0 | J14: 0 | K14: 0 | L14: 0 | M14: 3500 | N14: =F14/Q5*1.5 -> 21.875 | O14: 0 | P14: 0 | Q14: 0 | R14: =(M14/Q5)*Q14 -> 0 | S14: 3500 | T14: 800 | U14: 800 | V14: 2700 | W14: 0
C15: الإجمالي | F15: =SUM(F8:F14) -> 20300 | G15: 0 | H15: 0 | I15: 0 | J15: 0 | K15: 0 | L15: 0 | M15: 20300 | N15: 110 | O15: 0 | P15: 0 | Q15: 0 | R15: 0 | S15: 20300 | T15: 8500 | U15: 8500 | V15: 11800 | W15: =SUM(W8:W11) -> 0 | X15: =SUM(X8:X11) -> 0
D18: المحاسب | J18: المدير التنفيذي | Q18: المدير العام

Sheet رواتب ومستحقات العمال
B10: اسم الموظف | C10: مسمى الوظيفه | D10: إضافي | E10: مكافئات | F10: حافز البيع | G10: خصم | H10: عدد ساعات الغياب | I10: خصم ساعات الغياب | J10: السلفيات | K10: خصم السلفيه | L10: أستحقاق
B13: ثامر | C13: =[1]ورقة1!E8 ->  | D13: =[1]ورقة1!J8 ->  | E13: =[1]ورقة1!K8 ->  | F13: =[1]ورقة1!L8 ->  | G13: =[1]ورقة1!P8 ->  | H13: =[1]ورقة1!Q8 ->  | I13: =[1]ورقة1!R8 ->  | J13: ='مسير رواتب'!T8 -> 700 | K13: ='مسير رواتب'!U8 -> 700 | L13: ='مسير رواتب'!V8 -> 2300
B15: =[1]ورقة1!D8 -> 
B18: المتبقي من السلفية | D18: ='مسير رواتب'!W8 -> 0
B21: راتب أساسي | C21: بدل سكن | E21: بدل مواصلات | F21: بدل إجازه | G21: إضافي ساعه | H21: حافز البيع | I21: ساعات الدوام | J21: ساعه / ريال
B23: =[1]ورقة1!M8 ->  | C23: =[1]ورقة1!G8 ->  | E23: =[1]ورقة1!H8 ->  | F23: =[1]ورقة1!I8 ->  | G23: =[1]ورقة1!O8 ->  | H23: =[1]ورقة1!L8 ->  | I23: =([1]ورقة1!Q5-[1]ورقة1!Q8) ->  | J23: =B23/[1]ورقة1!Q5 -> 
B26: أسم وتوقيع الموظف | H26: الإداره الماليه
B30: ملاحظه : لا يسمح للموظفين بأخذ أي إيجازة قبل سداد كل ماعليهم من سلفيات
B34: عامر | C34: عامل | D34: 0 | E34: 0 | F34: 0 | G34: 0 | H34: 0 | I34: 0 | J34: ='مسير رواتب'!T9 -> 2100 | K34: ='مسير رواتب'!U9 -> 2100 | L34: 3000
B36: =[1]ورقة1!D9 -> 
B39: المتبقي من السلفية | D39: ='مسير رواتب'!W9 -> 0
B42: راتب أساسي | C42: بدل سكن | E42: بدل مواصلات | F42: بدل إجازه | G42: إضافي ساعه | H42: حافز البيع | I42: ساعات الدوام | J42: ساعه / ريال
B44: =[1]ورقة1!M9 ->  | C44: =[1]ورقة1!G9 ->  | E44: =[1]ورقة1!H9 ->  | F44: =[1]ورقة1!I9 ->  | G44: =[1]ورقة1!J9 ->  | H44: =[1]ورقة1!L9 ->  | I44: =([1]ورقة1!Q5-[1]ورقة1!Q9) ->  | J44: =[1]ورقة1!N9 -> 
B47: أسم وتوقيع الموظف | H47: الإداره الماليه
B51: ملاحظه : لا يسمح للموظفين بأخذ أي إيجازة قبل سداد كل ماعليهم من سلفيات
B61: شمس | C61: =[1]ورقة1!E10 ->  | D61: =[1]ورقة1!J40 ->  | E61: =[1]ورقة1!K43 ->  | F61: =[1]ورقة1!L43 ->  | G61: =[1]ورقة1!P43 ->  | H61: =[1]ورقة1!Q43 ->  | I61: =[1]ورقة1!R43 ->  | J61: ='مسير رواتب'!T10 -> 2200 | K61: ='مسير رواتب'!U10 -> 2200 | L61: =[1]ورقة1!V10 -> 
B63: =[1]ورقة1!D10 -> 
B66: المتبقي من السلفية | D66: ='مسير رواتب'!W10 -> 0
B69: راتب أساسي | C69: بدل سكن | E69: بدل مواصلات | F69: بدل إجازه | G69: إضافي ساعه | H69: حافز البيع | I69: ساعات الدوام | J69: ساعه / ريال
B71: =[1]ورقة1!M10 ->  | C71: =[1]ورقة1!G43 ->  | E71: =[1]ورقة1!H43 ->  | F71: =[1]ورقة1!I43 ->  | G71: =[1]ورقة1!O43 ->  | H71: =[1]ورقة1!L43 ->  | I71: =[1]ورقة1!Q37-[1]ورقة1!Q43 ->  | J71: =[1]ورقة1!N10 -> 
B74: أسم وتوقيع الموظف | H74: الإداره الماليه
B78: ملاحظه : لا يسمح للموظفين بأخذ أي إيجازة قبل سداد كل ماعليهم من سلفيات
B85: جلال | C85: =[1]ورقة1!E11 ->  | D85: =[1]ورقة1!J11 ->  | E85: =[1]ورقة1!K11 ->  | F85: =[1]ورقة1!L11 ->  | G85: =[1]ورقة1!P11 ->  | H85: =[1]ورقة1!Q11 ->  | I85: =[1]ورقة1!R11 ->  | J85: ='مسير رواتب'!T11 -> 900 | K85: ='مسير رواتب'!U11 -> 900 | L85: =[1]ورقة1!V11 -> 
B87: =[1]ورقة1!D11 -> 
B90: المتبقي من السلفية | D90: ='مسير رواتب'!W11 -> 0
B93: راتب أساسي | C93: بدل سكن | E93: بدل مواصلات | F93: بدل إجازه | G93: إضافي ساعه | H93: حافز البيع | I93: ساعات الدوام | J93: ساعه / ريال
B95: =[1]ورقة1!F11 ->  | C95: =[1]ورقة1!G11 ->  | E95: =[1]ورقة1!H11 ->  | F95: =[1]ورقة1!I11 ->  | G95: =[1]ورقة1!O11 ->  | H95: =[1]ورقة1!L11 ->  | I95: =240-H85 ->  | J95: =[1]ورقة1!N11 -> 
B98: أسم وتوقيع الموظف | H98: الإداره الماليه
B102: ملاحظه : لا يسمح للموظفين بأخذ أي إيجازة قبل سداد كل ماعليهم من سلفيات
B106: علمان | C106: =[1]ورقة1!E101 ->  | D106: =[1]ورقة1!J101 ->  | E106: =[1]ورقة1!K101 ->  | F106: =[1]ورقة1!L101 ->  | G106: =[1]ورقة1!P101 ->  | H106: =[1]ورقة1!Q101 ->  | I106: =[1]ورقة1!R101 ->  | J106: ='مسير رواتب'!T12 -> 1000 | K106: ='مسير رواتب'!U12 -> 1000 | L106: =[1]ورقة1!V101 -> 
B108: =[1]ورقة1!D12 -> 
B111: المتبقي من السلفية | D111: ='مسير رواتب'!W12 -> 0
B114: راتب أساسي | C114: بدل سكن | E114: بدل مواصلات | F114: بدل إجازه | G114: إضافي ساعه | H114: حافز البيع | I114: ساعات الدوام | J114: ساعه / ريال
B116: =[1]ورقة1!F12 ->  | C116: =[1]ورقة1!G101 ->  | E116: =[1]ورقة1!H101 ->  | F116: =[1]ورقة1!I101 ->  | G116: =[1]ورقة1!O101 ->  | H116: =[1]ورقة1!L101 ->  | I116: =([1]ورقة1!Q98-[1]ورقة1!Q101) ->  | J116: =B116/[1]ورقة1!Q98 -> 
B119: أسم وتوقيع الموظف | H119: الإداره الماليه
B123: ملاحظه : لا يسمح للموظفين بأخذ أي إيجازة قبل سداد كل ماعليهم من سلفيات
B127: يوسف | C127: =[1]ورقة1!E122 ->  | D127: =[1]ورقة1!J122 ->  | E127: =[1]ورقة1!K122 ->  | F127: =[1]ورقة1!L122 ->  | G127: =[1]ورقة1!P122 ->  | H127: =[1]ورقة1!Q122 ->  | I127: =[1]ورقة1!R122 ->  | J127: ='مسير رواتب'!T13 -> 800 | K127: ='مسير رواتب'!U13 -> 800 | L127: =[1]ورقة1!V122 -> 
B129: =[1]ورقة1!D13 -> 
B132: المتبقي من السلفية | D132: ='مسير رواتب'!W13 -> 0
B135: راتب أساسي | C135: بدل سكن | E135: بدل مواصلات | F135: بدل إجازه | G135: إضافي ساعه | H135: حافز البيع | I135: ساعات الدوام | J135: ساعه / ريال
B137: =[1]ورقة1!F13 ->  | C137: =[1]ورقة1!G122 ->  | E137: =[1]ورقة1!H122 ->  | F137: =[1]ورقة1!I122 ->  | G137: =[1]ورقة1!O122 ->  | H137: =[1]ورقة1!L122 ->  | I137: =([1]ورقة1!Q119-[1]ورقة1!Q122) ->  | J137: =B137/[1]ورقة1!Q119 -> 
B140: أسم وتوقيع الموظف | H140: الإداره الماليه
B144: ملاحظه : لا يسمح للموظفين بأخذ أي إيجازة قبل سداد كل ماعليهم من سلفيات
B148: حبيب | C148: =[1]ورقة1!E143 ->  | D148: =[1]ورقة1!J143 ->  | E148: =[1]ورقة1!K143 ->  | F148: =[1]ورقة1!L143 ->  | G148: =[1]ورقة1!P143 ->  | H148: =[1]ورقة1!Q143 ->  | I148: =[1]ورقة1!R143 ->  | J148: ='مسير رواتب'!T14 -> 800 | K148: ='مسير رواتب'!U14 -> 800 | L148: =[1]ورقة1!V143 -> 
B150: =[1]ورقة1!D14 -> 
B153: المتبقي من السلفية | D153: ='مسير رواتب'!W14 -> 0
B156: راتب أساسي | C156: بدل سكن | E156: بدل مواصلات | F156: بدل إجازه | G156: إضافي ساعه | H156: حافز البيع | I156: ساعات الدوام | J156: ساعه / ريال
B158: =[1]ورقة1!F14 ->  | C158: =[1]ورقة1!G143 ->  | E158: =[1]ورقة1!H143 ->  | F158: =[1]ورقة1!I143 ->  | G158: =[1]ورقة1!O143 ->  | H158: =[1]ورقة1!L143 ->  | I158: =([1]ورقة1!Q140-[1]ورقة1!Q143) ->  | J158: =B158/[1]ورقة1!Q140 -> 
B161: أسم وتوقيع الموظف | H161: الإداره الماليه
B165: ملاحظه : لا يسمح للموظفين بأخذ أي إيجازة قبل سداد كل ماعليهم من سلفيات

Sheet بيانات
C4: ثامر
C5: شمس الدين
C6: جلال
C7: عامر
C8: يوسف
C9: علمان
C10: حبيب
C11: اوفرتايم ثامر
C12: اوفر تايم شمس
C13: اوفر تايم جلال
C14: اوفر تايم عامر
C15: اوفرتايم يوسف
C16: اوفرتايم علمان
C17: اوفرتايم حبيب
C18: ابوباسل
C19: اوفر تايم كمال

Sheet تسجيل سنوات سابقة 1
A1: حركة سنوات سابقة1
H4: =SUM(H6:H21) -> 24960 | K4: 1 | L4: =SUM(L6:L18) -> 16400 | P4: 2 | Q4: =SUM(Q6:Q18) -> 12711
E5: مصروفات عمال | G5: التاسيس للورشة | H5: المبلغ | J5: الدخل | L5: المبلغ | M5: المتبقي | O5: الدخل | Q5: المبلغ | R5: المتبقي | T5: الدخل | U5: المصروف
D6: ورقة 1 | E6: 6750 | G6: اغلاق الحفرة مع تعديل الأرضية | H6: 3500 | J6: هونداي النترا | L6: 500 | O6: تعئة فريون | Q6: 650 | R6: 650 | T6: =Q4+L4 -> 29111 | U6: =H4+E6+E7+E8+AC7 -> 40983
D7: ورقة 2 | E7: 3420 | G7: اجرة حداد مع عمل درج المكتب | H7: 1700 | J7: جيب لكزس | L7: 1500 | O7: رش صدامات جيب لكزس | Q7: 1500 | R7: 1500 | Z7: مصروفات فواتير من ابو صالح | AC7: =SUM(AC9:AC22) -> 5853
E8: 0 | G8: باب المنيوم مستعمل للمكتب | H8: 300 | J8: جمس صالون1993 | L8: 5000 | O8: رش تندة السافانة | Q8: 1500 | R8: 1500 | Z8: مصروفات مسجلة على الورق | AC8: المبلغ
G9: اجرة مكيف لمكتب مستعمل مع فرشة للمكتب | H9: 1100 | J9: انفنتي | L9: 3000 | M9: 3000 | O9: رش فيابر | Q9: 1500 | R9: 1000 | Z9: 2023 | AC9: 240
G10: اجرة عامل كهربا تمديتات افياش مع تعديل لمبات المكتب | H10: 250 | J10: تعئبة فريون | L10: 200 | M10: 300 | O10: رش جمس الأخضر | Q10: 1500 | R10: 1500 | Z10: 2023 | AC10: 150
G11: ثلاجة للمطبخ جديدة | H11: 760 | J11: رش كرسيطاولة 4 | L11: 200 | O11: رش دعسات لكزس | Q11: 900 | R11: 900 | Z11: 2023 | AC11: 42
G12: انارة لقسم السمكرة | H12: 1500 | J12: جمس | L12: 0 | O12: رش صدام لكزس | Q12: 800 | R12: 800 | V12: المصروفات | W12: الدخل | Z12: 2023 | AC12: 43
G13: تعديل أرضية قسم التربيط مع اغلاق الحفر | H13: 3200 | J13: هايلكس | L13: 0 | O13: رش صدام امامي رابتر | Q13: 200 | R13: 200 | V13: =U6+J23 -> 367318 | W13: =T6+K23 -> 166834 | Z13: 2025 | AC13: 140
G14: رسوم نقل كفالة العامل عامر مع شمس | H14: 4000 | J14: كامري | L14: 4000 | O14: رش بابين يسار جمس | Q14: 1500 | R14: 1500 | Z14: 2023 | AC14: 965
G15: ايجار غرفة العمال لمدة سنة | H15: 5900 | J15: كورلا | L15: 2000 | Q15: 100 | Z15: 2023 | AC15: 700
G16: مكيف لغرفة العمال | H16: 700 | Q16: 50 | Z16: 2023 | AC16: 30
G17: برادة للورشة قسم السمكرة | H17: 350 | Q17: 400 | Z17: 2024 | AC17: 30
G18: مسدس فرن إيطالي | H18: 1700 | Q18: 2111 | R18: 2111 | Z18: 2023 | AC18: 304
R19: =SUM(R6:R18) -> 11661 | Z19: 2024 | AC19: 2468
Z20: 2023 | AC20: 555
Z21: 2023 | AC21: 154
J22: المصروفات | K22: الدخل | Z22: 2023 | AC22: 32
G23: اجمالي المعلم بالخضر الفاتح | J23: =H27+M27+R27+W27+AC27-K27 -> 326335 | K23: =E27 -> 137723 | O23: =M31+M35+M36+M37+M38+M39+M41+M42+M44+M45+M46+M48+M51+M52+M54+M55+M56+M57+M63+M64+M65+M66+M67+M68+M69+M71+M72+M73+M74+M76+H54+H55+H56+H57+H58+H59+H60+H61+H62+H63+H64++H65+H66+H67+H68+H69+H70+H71+H72+H73 -> 37180
G24: =R29+R30+R34+R38+R47+R53+R54+R55+R58+R61+R67+R75+R79+R81+M29+M30+H33+H35+H37+H44+H45+H47+H48+H51+H52+W43+W45+W46+W47+W48 -> 47900
E27: =SUM(E29:E77) -> 137723 | H27: =SUM(H29:H77) -> 48750 | K27: =M31+M35+M36+M37+M38+M39+M41+M42+M44+M45+M46+M48+M51+M52+M54+M55+M56+M57+M63+M64+M65+M66+M67+M68+M69+M71+M72+M73+M74+M76+H54+H55+H56+H57+H58+H59+H60+H61+H62+H63+H64+H65+H66+H67+H68+H69+H70+H71+H72+H73 -> 37180 | M27: =SUM(M29:M77) -> 26842 | R27: =SUM(R29:R80) -> 31265 | W27: =SUM(W29:W80) -> 15458 | AA27: رواتب سنة 2024 | AC27: =SUM(AC29:AC35) -> 241200
B28: إيرادات سنوات سابقة | E28: المبلغ | G28: مصروفات مسجلة على الورق | H28: المبلغ | J28: مصروفات مسجلة على الورق | M28: المبلغ | O28: مصروفات مسجلة على الورق | R28: المبلغ | T28: مصروفات مسجلة على الورق | W28: المبلغ | Y28: رواتب عمال | Z28: الراتب | AA28: السلفيات | AB28: افر تايم | AC28: صافي الراتب
B29: ماليبو الحربي | E29: 3535 | G29: السمكري شكيل | H29: 1200 | J29: باجيل | M29: 2781 | O29: العالمية | R29: 355 | T29: قطع المرسيدس | W29: 2158 | Y29: عامر | Z29: 2700 | AA29: 12 | AC29: =Z29*AA29 -> 32400
B30: جيب الطويل | E30: 3000 | G30: محبوب الشاص | H30: 500 | J30: العالمية | M30: 555 | O30: العمودي | R30: 910 | T30: قطع التشاليح | W30: 1865 | Y30: شمس الدين | Z30: 2700 | AA30: 12 | AC30: =Z30*AA30 -> 32400
B31: من ثامرحوالة عبدالمحسن | E31: 850 | G31: منشف | H31: 55 | J31: عامر | M31: 100 | O31: عامر القزاز | R31: 350 | T31: قطع التشاليح | W31: 110 | Y31: ثامر | Z31: 3000 | AA31: 12 | AC31: 36000
B32: الجمس الحوض | E32: 500 | G32: الدويل | H32: 3500 | J32: موية | M32: 26 | O32: صالح | R32: 900 | T32: صالح جيب السهلي | W32: 1545 | Y32: جلال | Z32: 2500 | AA32: 12 | AC32: 30000
B33: حوالة من عبدالمحسن | E33: 1000 | G33: باسمير | H33: 2000 | J33: ريشة دريل | M33: 10 | O33: هيتر و كاوية بلاستيك | R33: 286 | T33: تيب | W33: 78 | Y33: يوسف | Z33: 3000 | AA33: 12 | AC33: 36000
B34: هايلكس | E34: 3600 | G34: ورق فرن | H34: 400 | J34: معجون | M34: 240 | O34: باسمير | R34: 4030 | T34: فارس سعيد | W34: 300 | Y34: علمان | Z34: 2700 | AA34: 12 | AC34: 32400
B35: الحماد | E35: 600 | G35: باجيل | H35: 2000 | J35: ثامر | M35: 200 | O35: نيكل الدباب | R35: 375 | T35: غداء | W35: 50 | Y35: حبيب | Z35: 3500 | AA35: 12 | AC35: 42000
B36: جنوط | E36: 250 | G36: اف جي | H36: 1700 | J36: شمس | M36: 200 | O36: بفرات | R36: 90 | T36: وزن السكويا | W36: 150 | Z36: اجرة الاضافي | AA36: الايام | AB36: المبلغ
B37: بيد متعب | E37: 1000 | G37: المغلوث | H37: 1200 | J37: عامر | M37: 150 | O37: مسدس بوية | R37: 600 | T37: ماء | W37: 70 | Z37: 30 | AA37: 3 | AB37: =Z37*AA37 -> 90
B38: هايلكس تويوتا 2016 | E38: 2800 | G38: ماء | H38: 35 | J38: جلال | M38: 100 | O38: باسمير | R38: 1500 | T38: ورق فرن | W38: 40 | Z38: 30 | AA38: 10 | AB38: =Z38*AA38 -> 300
B39: فتك نيسان 2019 | E39: 1200 | G39: مقصود | H39: 200 | J39: علمان | M39: 100 | O39: باجيل | R39: 2000 | T39: قطع نيسان | W39: 3151 | Z39: 30 | AA39: 14 | AB39: =Z39*AA39 -> 420
B40: ام بواكس ابسوزو2022 | E40: 3700 | G40: علمان | H40: 20 | J40: لحام لديتر | M40: 50 | O40: بلاستك رول | R40: 40 | T40: رول بلاستك | W40: 70 | Z40: 30 | AA40: 14 | AB40: =Z40*AA40 -> 420
B41: الفئة الثالة بى ام دبليو 2012 | E41: 4300 | G41: تشليح | H41: 550 | J41: عامر | M41: 100 | O41: صالح | R41: 145 | T41: غداء | W41: 50 | Z41: 30 | AA41: 12 | AB41: =Z41*AA41 -> 360
B42: يوكن جمس 2010 | E42: 2600 | G42: قطع نيسان | H42: 600 | J42: علمان | M42: 100 | O42: غداء | R42: 30 | T42: معجون | W42: 35 | Z42: 30 | AA42: 7 | AB42: =Z42*AA42 -> 210
B43: باترول نيسان 2016 | E43: 11000 | G43: قطع نيسان | H43: 770 | J43: قطع غيار بلاتينيوم | M43: 414 | O43: مقصود | R43: 50 | T43: باسمير | W43: 10 | Z43: 30 | AA43: 7 | AB43: 210
B44: هايلكس تويوتا 2014 | E44: 3000 | G44: العمودي | H44: 300 | J44: شمس | M44: 2430 | O44: غداء | R44: 78 | T44: تعديل بارد فارس | W44: 300 | Z44: 30 | AA44: 13 | AB44: 390
B45: جيمني سوزوكي 2021 | E45: 1570 | G45: باسمير | H45: 1500 | J45: عامر | M45: 1680 | O45: توصيلة كهرباء | R45: 230 | T45: باسمير | W45: 2000 | Z45: 30 | AA45: 10 | AB45: 300
B46: كامري تويوتا 2015 | E46: 1700 | G46: فير | H46: 250 | J46: جلال | M46: 2350 | O46: غداء | R46: 40 | T46: العمودي | W46: 270 | Z46: 30 | AA46: 9 | AB46: 270
B47: لاند كروزر تويوتا 2015 | E47: 10660 | G47: العالمية | H47: 500 | J47: معجون وكالة | M47: 15 | O47: باسمير | R47: 1500 | T47: باجيل | W47: 1500 | Z47: 30 | AA47: 10 | AB47: 300
B48: لاند كروزر تويوتا 2015 | E48: 7500 | G48: أبو سلطان | H48: 1500 | J48: ثامر | M48: 100 | O48: ورق فرن | R48: 400 | T48: العالمية | W48: 826 | Z48: 30 | AA48: 3 | AB48: 90
B49: تشارجر دودج 2021 | E49: 3535 | G49: جوال متعب | H49: 200 | J49: غداء | M49: 30 | O49: صنفرة | R49: 45 | T49: عدة مصر | W49: 880 | Z49: 30 | AA49: 1 | AB49: 30
B50: كابرس شيفروليه 1984 | E50: 7500 | G50: محبوب | H50: 100 | J50: غداء | M50: 30 | O50: مناديل مع قماش رول | R50: 146 | Z50: 30 | AA50: 3 | AB50: 90
B51: سيكويا تويوتا 2011 | E51: 8000 | G51: باسمير | H51: 4500 | J51: علمان | M51: 2260 | O51: غداء | R51: 65 | Z51: 30 | AA51: 7 | AB51: 210
B52: ماليبو شيفروليه 2018 | E52: 3535 | G52: باسمير | H52: 4000 | J52: عامر | M52: 100 | O52: ديزل الفرن | R52: 650 | Z52: 30 | AA52: 6 | AB52: 180
B53: لاند كروزر تويوتا 2005 | E53: 700 | G53: مقصود | H53: 300 | J53: غداء | M53: 30 | O53: العمودي | R53: 565 | Z53: 30 | AA53: 7 | AB53: 210
B54: توسان هونداي 2022 | E54: 600 | G54: ثامر | H54: 200 | J54: ثامر | M54: 300 | O54: باجيل | R54: 2000 | Z54: 30 | AA54: 7 | AB54: 210
B55: كابتيفا شيفروليه 2021 | E55: 1150 | G55: ثامر | H55: 100 | J55: شمس | M55: 100 | O55: باسمير | R55: 3198 | Z55: 30 | AA55: 5 | AB55: 150
B56: سيكويا تويوتا 2009 | E56: 3570 | G56: عامر | H56: 180 | J56: عامر | M56: 100 | O56: موية | R56: 42 | Z56: 30 | AA56: 15 | AB56: 450
B57: مونتيرو سبورت ميتسوبيشي 2019 | E57: 3700 | G57: شمس | H57: 1000 | J57: جلال | M57: 100 | O57: فير | R57: 300 | Z57: 30 | AA57: 10 | AB57: 300
B58: جيتا فولكس فاجن 2016 | E58: 2200 | G58: عامر | H58: 100 | J58: الجديد | M58: 100 | O58: ابوسلطان | R58: 500 | Z58: 30 | AB58: 0
B59: سييرا جمس 80 | E59: 7770 | G59: جلال | H59: 100 | J59: غداء | M59: 30 | O59: قطع النترا | R59: 2400 | Z59: 30 | AB59: 0
B60: النترا هونداي 2015 | E60: 2000 | G60: شمس | H60: 100 | J60: غداء | M60: 30 | O60: صالح | R60: 500 | Z60: 30 | AB60: 0
B61: كورولا تويوتا 2011 | E61: 2794 | G61: علمان | H61: 100 | J61: غداء | M61: 28 | O61: ابوسلطان | R61: 400 | Z61: 30 | AB61: 0
B62: كورولا تويوتا 2011 | E62: 2815 | G62: عامر | H62: 500 | J62: ماء للبرادة | M62: 26 | O62: موية | R62: 42 | Z62: 30 | AB62: 0
B63: كورولا تويوتا 2011 | E63: 2674 | G63: يوسف | H63: 1000 | J63: عامر | M63: 100 | O63: موية | R63: 35 | Z63: 30 | AB63: 0
B64: كامري تويوتا 2006 | E64: 4225 | G64: عامر | H64: 10 | J64: ثامر | M64: 500 | O64: فير سيارات | R64: 210 | Z64: 30 | AB64: 0
B65: ددسن نيسان 2015 | E65: 1500 | G65: ثامر | H65: 3000 | J65: محبوب | M65: 150 | O65: تيب اصفر | R65: 78 | Z65: 30 | AB65: 0
B66: سوبربان جمس 1993 | E66: 5100 | G66: يوسف | H66: 500 | J66: عامر | M66: 200 | O66: غداء 3 أيام | R66: 100 | Z66: 30 | AB66: 0
B67: كامري تويوتا 2006 | E67: 4000 | G67: عامر | H67: 500 | J67: ثامر | M67: 200 | O67: باسمير | R67: 1500 | Z67: 30 | AB67: 0
B68: هايلكس تويوتا 2011 | E68: 900 | G68: جلال | H68: 2500 | J68: شمس | M68: 200 | O68: الفزاز نيسان | R68: 200 | Z68: 30 | AB68: 0
B69: كورولا تويوتا 2011 | E69: 2190 | G69: عامر | H69: 1410 | J69: جلال | M69: 400 | O69: غداء | R69: 40 | Z69: 30 | AB69: 0
B70: سوبربان جمس 2020 | E70: 1900 | G70: علمان | H70: 2600 | J70: قصة جيب رفرف | M70: 2400 | O70: مسدس غراء | R70: 70 | Z70: 30 | AB70: 0
B71: ES لكزس 2020 | E71: 1000 | G71: شمس | H71: 1920 | J71: وصل لثامر | M71: 700 | O71: اكسجين | R71: 40 | Z71: 30 | AB71: 0
G72: يوسف | H72: 1500 | J72: واصل لعامر | M72: 300 | O72: غداء | R72: 25 | Z72: 30 | AB72: 0
G73: حبيب | H73: 3550 | J73: واصل لشمس | M73: 200 | O73: مقصود | R73: 150 | Z73: 30 | AB73: 0
J74: واصل لجلال | M74: 400 | O74: جوال متعب | R74: 350 | Z74: 30 | AB74: 0
J75: بدون بيانات مسجلة | M75: 1095 | O75: باسمير | R75: 2000 | Z75: 30 | AB75: 0
J76: سلفيات | M76: 2390 | O76: قطع الكامري مع الصني | R76: 535 | Z76: 30 | AB76: 0
J77: مصروفات أخرى | M77: 2642 | O77: غداء | R77: 40 | Z77: 30 | AB77: 0
O78: موية | R78: 20 | Z78: 30 | AB78: 0
O79: ابوسلطان | R79: 1000 | Z79: 30 | AB79: 0
O80: سيور موتر متعب | R80: 110 | Z80: 30 | AB80: 0
O81: باجيل | R81: 3000 | AB81: =SUM(AB37:AB80) -> 5190
O82: تشليح النترا | R82: 200
O83: مقصود | R83: 150
O84: غداء | R84: 30

Sheet 2023 تعديل
K1: حركة سنة 2023
E4: =SUM(E6:E21) -> 24960
D5: التاسيس للورشة | E5: المبلغ | J5: 1 | K5: =SUM(K7:K19) -> 16400 | P5: 2 | Q5: =SUM(Q7:Q19) -> 12711
D6: اغلاق الحفرة مع تعديل الأرضية | E6: 3500 | I6: الدخل | K6: المبلغ | L6: المتبقي | O6: الدخل | Q6: المبلغ | R6: المتبقي | T6: مصروفات فواتير من ابو صالح | W6: =SUM(W8:W21) -> 5853
D7: اجرة حداد مع عمل درج المكتب | E7: 1700 | I7: هونداي النترا | K7: 500 | O7: تعئة فريون | Q7: 650 | R7: 650 | T7: مصروفات مسجلة على الورق | W7: المبلغ
D8: باب المنيوم مستعمل للمكتب | E8: 300 | I8: جيب لكزس | K8: 1500 | O8: رش صدامات جيب لكزس | Q8: 1500 | R8: 1500 | T8: 2023 | W8: 240
D9: اجرة مكيف لمكتب مستعمل مع فرشة للمكتب | E9: 1100 | I9: جمس صالون1993 | K9: 5000 | O9: رش تندة السافانة | Q9: 1500 | R9: 1500 | T9: 2023 | W9: 150
D10: اجرة عامل كهربا تمديتات افياش مع تعديل لمبات المكتب | E10: 250 | I10: انفنتي | K10: 3000 | L10: 3000 | O10: رش فيابر | Q10: 1500 | R10: 1000 | T10: 2023 | W10: 42
D11: ثلاجة للمطبخ جديدة | E11: 760 | I11: تعئبة فريون | K11: 200 | L11: 300 | O11: رش جمس الأخضر | Q11: 1500 | R11: 1500 | T11: 2023 | W11: 43
D12: انارة لقسم السمكرة | E12: 1500 | I12: رش كرسيطاولة 4 | K12: 200 | O12: رش دعسات لكزس | Q12: 900 | R12: 900 | T12: 2025 | W12: 140
D13: تعديل أرضية قسم التربيط مع اغلاق الحفر | E13: 3200 | I13: جمس | K13: 0 | O13: رش صدام لكزس | Q13: 800 | R13: 800 | T13: 2023 | W13: 965
D14: رسوم نقل كفالة العامل عامر مع شمس | E14: 4000 | I14: هايلكس | K14: 0 | O14: رش صدام امامي رابتر | Q14: 200 | R14: 200 | T14: 2023 | W14: 700
D15: ايجار غرفة العمال لمدة سنة | E15: 5900 | I15: كامري | K15: 4000 | O15: رش بابين يسار جمس | Q15: 1500 | R15: 1500 | T15: 2023 | W15: 30
D16: مكيف لغرفة العمال | E16: 700 | I16: كورلا | K16: 2000 | Q16: 100 | T16: 2024 | W16: 30
D17: برادة للورشة قسم السمكرة | E17: 350 | Q17: 50 | T17: 2023 | W17: 304
D18: مسدس فرن إيطالي | E18: 1700 | Q18: 400 | T18: 2024 | W18: 2468
Q19: 2111 | R19: 2111 | T19: 2023 | W19: 555
T20: 2023 | W20: 154
T21: 2023 | W21: 32
D22: مصروفات حسب ملف الفواتير 2023 | F22: الدخل حسب الاوراق | I22: =SUM(I24:I78) -> 14335 | L22: الدخل حسب الكشف 2023 | O22: =SUM(O23:O62) -> 123388 | Q22: مصروفات حسب الورق2023 | T22: =SUM(T23:T30) -> 10127
D23: 46921 | F23: إيرادات سنوات سابقة | I23: المبلغ | L23: هايلكس تويوتا 2016 | O23: 2800 | Q23: قصة جيب رفرف | T23: 2400
F24: ماليبو الحربي | I24: 3535 | L24: فتك نيسان 2019 | O24: 1200 | Q24: وصل لثامر | T24: 700
F25: جيب الطويل | I25: 3000 | L25: ام بواكس ابسوزو2022 | O25: 3700 | Q25: واصل لعامر | T25: 300
F26: من ثامرحوالة عبدالمحسن | I26: 850 | L26: الفئة الثالة بى ام دبليو 2012 | O26: 4300 | Q26: واصل لشمس | T26: 200
F27: الجمس الحوض | I27: 500 | L27: يوكن جمس 2010 | O27: 2600 | Q27: واصل لجلال | T27: 400
F28: حوالة من عبدالمحسن | I28: 1000 | L28: باترول نيسان 2016 | O28: 11000 | Q28: بدون بيانات مسجلة | T28: 1095
F29: هايلكس | I29: 3600 | L29: هايلكس تويوتا 2014 | O29: 3000 | Q29: سلفيات | T29: 2390
F30: الحماد | I30: 600 | L30: جيمني سوزوكي 2021 | O30: 1570 | Q30: مصروفات أخرى | T30: 2642
F31: جنوط | I31: 250 | L31: كامري تويوتا 2015 | O31: 1700
F32: بيد متعب | I32: 1000 | L32: لاند كروزر تويوتا 2015 | O32: 10660
L33: لاند كروزر تويوتا 2015 | O33: 7500
L34: تشارجر دودج 2021 | O34: 3535
L35: كابرس شيفروليه 1984 | O35: 7500
L36: سيكويا تويوتا 2011 | O36: 8000
L37: ماليبو شيفروليه 2018 | O37: 3535
L38: لاند كروزر تويوتا 2005 | O38: 700
L39: توسان هونداي 2022 | O39: 600
L40: كابتيفا شيفروليه 2021 | O40: 1150
L41: سيكويا تويوتا 2009 | O41: 3570
L42: مونتيرو سبورت ميتسوبيشي 2019 | O42: 3700
L43: جيتا فولكس فاجن 2016 | O43: 2200
L44: سييرا جمس 80 | O44: 7770
L45: النترا هونداي 2015 | O45: 2000
L46: كورولا تويوتا 2011 | O46: 2794
L47: كورولا تويوتا 2011 | O47: 2815
L48: كورولا تويوتا 2011 | O48: 2674
L49: كامري تويوتا 2006 | O49: 4225
L50: ددسن نيسان 2015 | O50: 1500
L51: سوبربان جمس 1993 | O51: 5100
L52: كامري تويوتا 2006 | O52: 4000
L53: هايلكس تويوتا 2011 | O53: 900
L54: كورولا تويوتا 2011 | O54: 2190
L55: سوبربان جمس 2020 | O55: 1900
L56: ES لكزس 2020 | O56: 1000

Sheet رواتب العمال لسنة 23-24
J2: رواتب سنة 2023 وسنة 2024
E5: 84410 | K5: 124841 | R5: 19000
C6: سند | D6: الاسم | E6: الراتب | F6: الشهر | G6: ملاحظات | I6: سند | J6: الاسم | K6: الراتب | L6: الشهر | M6: ملاحظات | Q6: الاسم | R6: الراتب | S6: الشهر | T6: ملاحظات
D7: شمس الدين | E7: 1250 | F7: 30/07/2023 | G7: دوام 15 يوم | I7: 38 | J7: ثامر | K7: 3000 | L7: 30/4/2024 | Q7: ثامر | R7: 3000 | S7: 30/7/2024 | T7: بدون سند
D8: عامر | E8: 1250 | F8: 30/07/2023 | G8: دوام 15 يوم | I8: 39 | J8: جلال | K8: 2500 | L8: 30/4/2024 | Q8: شمس الدين | R8: 2500 | S8: 30/7/2024 | T8: بدون سند
D9: شمس الدين | E9: 2500 | F9: 30/08/2023 | I9: 40 | J9: شمس الدين | K9: 2500 | L9: 30/4/2024 | Q9: جلال | R9: 2500 | S9: 30/7/2024 | T9: بدون سند
D10: عامر | E10: 2500 | F10: 30/08/2023 | I10: 41 | J10: عامر | K10: 2500 | L10: 30/4/2024 | Q10: عامر | R10: 2500 | S10: 30/7/2024 | T10: بدون سند
D11: ثامر | E11: 1250 | F11: 30/08/2023 | G11: دوام 15 يوم | I11: 42 | J11: علمان | K11: 2500 | L11: 30/4/2024 | Q11: يوسف | R11: 3000 | S11: 30/7/2024 | T11: بدون سند
C12: 5 | D12: جلال | E12: 320 | F12: 30/08/2023 | G12: دوام 4 ايام | I12: 43 | J12: عامر | K12: 2500 | L12: 30/5/2024 | Q12: علمان | R12: 2500 | S12: 30/7/2024 | T12: بدون سند
C13: 1 | D13: ثامر | E13: 2500 | F13: 30/09/2023 | I13: 44 | J13: جلال | K13: 2500 | L13: 30/5/2024 | Q13: ثامر | R13: 3000 | S13: 30/8/2024 | T13: بدون سند
C14: 2 | D14: عامر | E14: 2500 | F14: 30/09/2023 | I14: 45 | J14: ثامر | K14: 3000 | L14: 30/5/2024
C15: 3 | D15: شمس الدين | E15: 2500 | F15: 30/09/2023 | I15: 46 | J15: شمس الدين | K15: 2500 | L15: 30/5/2024
C16: 4 | D16: جلال | E16: 2500 | F16: 30/09/2023 | I16: 47 | J16: يوسف | K16: 2000 | L16: 30/5/2024 | M16: دوام 20 يوم
C17: 8 | D17: جلال | E17: 2500 | F17: 30/10/2023 | I17: 48 | J17: علمان | K17: 2500 | L17: 30/5/2024
C18: 9 | D18: شمس الدين | E18: 2500 | F18: 30/10/2023 | I18: 49 | J18: شمس الدين | K18: 2500 | L18: 30/6/2024
C19: 10 | D19: عامر | E19: 2500 | F19: 30/10/2023 | I19: 50 | J19: جلال | K19: 2500 | L19: 30/6/2024
C20: 11 | D20: ثامر | E20: 2500 | F20: 30/10/2023 | I20: 51 | J20: يوسف | K20: 3000 | L20: 30/6/2024
C21: 12 | D21: شمس الدين | E21: 2500 | F21: 30/11/2023 | I21: 52 | J21: عامر | K21: 420 | L21: 30/6/2024 | M21: دوام 5ايام
C22: 13 | D22: عامر | E22: 2500 | F22: 30/11/2023 | I22: 53 | J22: علمان | K22: 2500 | L22: 30/6/2024
C23: 14 | D23: جلال | E23: 2500 | F23: 30/11/2023 | I23: 54 | J23: ثامر | K23: 3000 | L23: 30/6/2024
C24: 17 | D24: عامر | E24: 2500 | F24: 30/12/2023 | I24: 55 | J24: شمس الدين | K24: 3000 | L24: 30/8/2024
C25: 18 | D25: شمس الدين | E25: 2500 | F25: 30/12/2023 | I25: 56 | J25: عامر | K25: 2500 | L25: 30/8/2024
C26: 19 | D26: جلال | E26: 2500 | F26: 30/12/2023 | I26: 57 | J26: علمان | K26: 2500 | L26: 30/8/2024
C27: 22 | D27: ثامر | E27: 3000 | F27: 30/12/2023 | I27: 58 | J27: جلال | K27: 2500 | L27: 30/8/2024
C28: 23 | D28: جلال | E28: 2500 | F28: 30/1/2024 | I28: 59 | J28: يوسف | K28: 3000 | L28: 30/8/2024
C29: 24 | D29: عامر | E29: 2500 | F29: 30/1/2024 | I29: 60 | J29: حبيب | K29: 1521 | L29: 30/8/2024 | M29: دوام 13 يوم
C30: 25 | D30: شمس الدين | E30: 2500 | F30: 30/1/2024 | I30: 61 | J30: ثامر | K30: 3000 | L30: 30/9/2024
C31: 26 | D31: علمان | E31: 840 | F31: 30/1/2024 | G31: 10ايام عمل في 12/2023 | I31: 62 | J31: عامر | K31: 2700 | L31: 30/9/2024
C32: 27 | D32: ثامر | E32: 3000 | F32: 30/1 /2024 | I32: 63 | J32: علمان | K32: 2700 | L32: 30/9/2024
C33: 28 | D33: عامر | E33: 2500 | F33: 30/2/2024 | I33: 64 | J33: جلال | K33: 2500 | L33: 30/9/2024
C34: 29 | D34: جلال | E34: 2500 | F34: 30/2/2024 | I34: 65 | J34: يوسف | K34: 3000 | L34: 30/9/2024
C35: 30 | D35: ثامر | E35: 3000 | F35: 30/2/2024 | I35: 66 | J35: حبيب | K35: 3500 | L35: 30/9/2024
C36: 31 | D36: شمس الدين | E36: 2500 | F36: 30/2/2024 | I36: 67 | J36: ثامر | K36: 3000 | L36: 30/10/2024
C37: 32 | D37: علمان | E37: 2500 | F37: 30/2/2024 | I37: 68 | J37: يوسف | K37: 3000 | L37: 30/10/2024
C38: 33 | D38: عامر | E38: 2500 | F38: 30/3/2024 | I38: 69 | J38: عامر | K38: 2700 | L38: 30/10/2024
C39: 34 | D39: شمس الدين | E39: 2500 | F39: 30/3/2024 | I39: 70 | J39: علمان | K39: 2500 | L39: 30/10/2024
C40: 35 | D40: جلال | E40: 2500 | F40: 30/3/2024 | I40: 71 | J40: حبيب | K40: 3500 | L40: 30/10/2024
C41: 36 | D41: ثامر | E41: 3000 | F41: 30/3/2024 | I41: 72 | J41: جلال | K41: 2500 | L41: 30/10/2024
C42: 37 | D42: علمان | E42: 2500 | F42: 30/3/2024 | I42: 73 | J42: عامر | K42: 2700 | L42: 30/11/2024
I43: 74 | J43: علمان | K43: 2500 | L43: 30/11/2024 | M43: تاكد من اراتب
I44: 75 | J44: جلال | K44: 2500 | L44: 30/11/2024
I45: 76 | J45: شمس الدين | K45: 2700 | L45: 30/11/2024
I46: 77 | J46: يوسف | K46: 3000 | L46: 30/11/2024
I47: 78 | J47: حبيب | K47: 3500 | L47: 30/11/2024
I48: 79 | J48: عامر | K48: 2700 | L48: 30/12/2024
I49: 80 | J49: علمان | K49: 2500 | L49: 30/12/2024 | M49: تاكد من اراتب
I50: 81 | J50: شمس الدين | K50: 2700 | L50: 30/12/2024
I51: 82 | J51: يوسف | K51: 3000 | L51: 30/12/2024
I52: 83 | J52: جلال | K52: 2500 | L52: 30/12/2024
I53: 84 | J53: ثامر | K53: 3000 | L53: 30/12/2024

Sheet الريسية

Sheet السلفية
C7: شهر 1 | E7: شهر 2 | G7: شهر 3 | I7: شهر 4 | K7: شهر 5 | M7: شهر 6 | O7: شهر 7 | Q7: شهر 8 | S7: شهر 9 | U7: شهر 10 | W7: شهر 11 | Y7: شهر 12
B8: الاسم | C8: الراتب | D8: السلفية | E8: الراتب | F8: السلفية | G8: الراتب | H8: السلفية | I8: الراتب | J8: السلفية | K8: الراتب | L8: السلفية | M8: الراتب | N8: السلفية | O8: الراتب | P8: السلفية | Q8: الراتب | R8: السلفية | S8: الراتب | T8: السلفية | U8: الراتب | V8: السلفية | W8: الراتب | X8: السلفية | Y8: الراتب | Z8: السلفية
B9: عامر | C9: =IFERROR(1/(1/SUMIF('حركة شهر 1'!$J$8:$J$100,السلفية!$B9,'حركة شهر 1'!$K$8:$K$100)),"") -> 800 | D9: =IFERROR(1/(1/SUMIF('حركة شهر 1'!$F$8:$F$100,السلفية!$B9,'حركة شهر 1'!$G$8:$G$100)),"") -> 1900 | E9: =IFERROR(1/(1/SUMIF('حركة شهر 2'!$J$8:$J$100,السلفية!$B9,'حركة شهر 2'!$K$8:$K$100)),"") -> 1700 | F9: =IFERROR(1/(1/SUMIF('حركة شهر 2'!$F$8:$F$100,السلفية!$B9,'حركة شهر 2'!$G$8:$G$100)),"") -> 1000 | G9: =IFERROR(1/(1/SUMIF('حركة شهر3'!$J$8:$J$100,السلفية!$B9,'حركة شهر3'!$K$8:$K$100)),"") -> 2700 | H9: =IFERROR(1/(1/SUMIF('حركة شهر3'!$F$8:$F$100,السلفية!$B9,'حركة شهر3'!$G$8:$G$100)),"") ->  | I9: =IFERROR(1/(1/SUMIF('حركة شهر 4'!$J$8:$J$100,السلفية!$B9,'حركة شهر 4'!$K$8:$K$100)),"") -> 2700 | J9: =IFERROR(1/(1/SUMIF('حركة شهر 4'!$F$8:$F$100,السلفية!$B9,'حركة شهر 4'!$G$8:$G$100)),"") ->  | K9: =IFERROR(1/(1/SUMIF('حركة شهر 5'!$J$8:$J$100,السلفية!$B9,'حركة شهر 5'!$K$8:$K$100)),"") -> 300 | L9: =IFERROR(1/(1/SUMIF('حركة شهر 5'!$F$8:$F$100,السلفية!$B9,'حركة شهر 5'!$G$8:$G$100)),"") -> 2400 | M9: =IFERROR(1/(1/SUMIF('حركة شهر6'!$J$8:$J$100,السلفية!$B9,'حركة شهر6'!$K$8:$K$100)),"") -> 1900 | N9: =IFERROR(1/(1/SUMIF('حركة شهر6'!$F$8:$F$100,السلفية!$B9,'حركة شهر6'!$G$8:$G$100)),"") -> 800 | O9: =IFERROR(1/(1/SUMIF('حركة شهر 7'!$J$8:$J$100,السلفية!$B9,'حركة شهر 7'!$K$8:$K$100)),"") -> 600 | P9: =IFERROR(1/(1/SUMIF('حركة شهر 7'!$F$8:$F$100,السلفية!$B9,'حركة شهر 7'!$G$8:$G$100)),"") -> 2100 | Q9: =IFERROR(1/(1/SUMIF('حركة شهر 8'!$J$8:$J$100,السلفية!$B9,'حركة شهر 8'!$K$8:$K$100)),"") -> 250 | R9: =IFERROR(1/(1/SUMIF('حركة شهر 8'!$F$8:$F$100,السلفية!$B9,'حركة شهر 8'!$G$8:$G$100)),"") -> 2450 | S9: =IFERROR(1/(1/SUMIF('حركة شهر 9'!$J$8:$J$100,السلفية!$B9,'حركة شهر 9'!$K$8:$K$100)),"") -> 1100 | T9: =IFERROR(1/(1/SUMIF('حركة شهر 9'!$F$8:$F$100,السلفية!$B9,'حركة شهر 9'!$G$8:$G$100)),"") -> 1700 | U9: =IFERROR(1/(1/SUMIF('حركة شهر 10'!$J$8:$J$100,السلفية!$B9,'حركة شهر 10'!$K$8:$K$100)),"") ->  | V9: =IFERROR(1/(1/SUMIF('حركة شهر 10'!$F$8:$F$100,السلفية!$B9,'حركة شهر 10'!$G$8:$G$100)),"") ->  | W9: =IFERROR(1/(1/SUMIF('حركة شهر 11'!$J$8:$J$100,السلفية!$B9,'حركة شهر 11'!$K$8:$K$100)),"") ->  | X9: =IFERROR(1/(1/SUMIF('حركة شهر 11'!$F$8:$F$100,السلفية!$B9,'حركة شهر 11'!$G$8:$G$100)),"") ->  | Y9: =IFERROR(1/(1/SUMIF('حركة شهر 12'!$J$8:$J$100,السلفية!$B9,'حركة شهر 12'!$K$8:$K$100)),"") ->  | Z9: =IFERROR(1/(1/SUMIF('حركة شهر 12'!$F$8:$F$100,السلفية!$B9,'حركة شهر 12'!$G$8:$G$100)),"") -> 
B10: شمس الدين | C10: =IFERROR(1/(1/SUMIF('حركة شهر 1'!$J$8:$J$100,السلفية!$B10,'حركة شهر 1'!$K$8:$K$100)),"") -> 2500 | D10: =IFERROR(1/(1/SUMIF('حركة شهر 1'!$F$8:$F$100,السلفية!$B10,'حركة شهر 1'!$G$8:$G$100)),"") -> 200 | E10: =IFERROR(1/(1/SUMIF('حركة شهر 2'!$J$8:$J$100,السلفية!$B10,'حركة شهر 2'!$K$8:$K$100)),"") -> 2700 | F10: =IFERROR(1/(1/SUMIF('حركة شهر 2'!$F$8:$F$100,السلفية!$B10,'حركة شهر 2'!$G$8:$G$100)),"") ->  | G10: =IFERROR(1/(1/SUMIF('حركة شهر3'!$J$8:$J$100,السلفية!$B10,'حركة شهر3'!$K$8:$K$100)),"") -> 2700 | H10: =IFERROR(1/(1/SUMIF('حركة شهر3'!$F$8:$F$100,السلفية!$B10,'حركة شهر3'!$G$8:$G$100)),"") ->  | I10: =IFERROR(1/(1/SUMIF('حركة شهر 4'!$J$8:$J$100,السلفية!$B10,'حركة شهر 4'!$K$8:$K$100)),"") -> 2700 | J10: =IFERROR(1/(1/SUMIF('حركة شهر 4'!$F$8:$F$100,السلفية!$B10,'حركة شهر 4'!$G$8:$G$100)),"") ->  | K10: =IFERROR(1/(1/SUMIF('حركة شهر 5'!$J$8:$J$100,السلفية!$B10,'حركة شهر 5'!$K$8:$K$100)),"") -> 2700 | L10: =IFERROR(1/(1/SUMIF('حركة شهر 5'!$F$8:$F$100,السلفية!$B10,'حركة شهر 5'!$G$8:$G$100)),"") -> 800 | M10: =IFERROR(1/(1/SUMIF('حركة شهر6'!$J$8:$J$100,السلفية!$B10,'حركة شهر6'!$K$8:$K$100)),"") ->  | N10: =IFERROR(1/(1/SUMIF('حركة شهر6'!$F$8:$F$100,السلفية!$B10,'حركة شهر6'!$G$8:$G$100)),"") -> 3300 | O10: =IFERROR(1/(1/SUMIF('حركة شهر 7'!$J$8:$J$100,السلفية!$B10,'حركة شهر 7'!$K$8:$K$100)),"") -> 500 | P10: =IFERROR(1/(1/SUMIF('حركة شهر 7'!$F$8:$F$100,السلفية!$B10,'حركة شهر 7'!$G$8:$G$100)),"") -> 2200 | Q10: =IFERROR(1/(1/SUMIF('حركة شهر 8'!$J$8:$J$100,السلفية!$B10,'حركة شهر 8'!$K$8:$K$100)),"") ->  | R10: =IFERROR(1/(1/SUMIF('حركة شهر 8'!$F$8:$F$100,السلفية!$B10,'حركة شهر 8'!$G$8:$G$100)),"") -> 2800 | S10: =IFERROR(1/(1/SUMIF('حركة شهر 9'!$J$8:$J$100,السلفية!$B10,'حركة شهر 9'!$K$8:$K$100)),"") -> 1800 | T10: =IFERROR(1/(1/SUMIF('حركة شهر 9'!$F$8:$F$100,السلفية!$B10,'حركة شهر 9'!$G$8:$G$100)),"") -> 900 | U10: =IFERROR(1/(1/SUMIF('حركة شهر 10'!$J$8:$J$100,السلفية!$B10,'حركة شهر 10'!$K$8:$K$100)),"") ->  | V10: =IFERROR(1/(1/SUMIF('حركة شهر 10'!$F$8:$F$100,السلفية!$B10,'حركة شهر 10'!$G$8:$G$100)),"") ->  | W10: =IFERROR(1/(1/SUMIF('حركة شهر 11'!$J$8:$J$100,السلفية!$B10,'حركة شهر 11'!$K$8:$K$100)),"") ->  | X10: =IFERROR(1/(1/SUMIF('حركة شهر 11'!$F$8:$F$100,السلفية!$B10,'حركة شهر 11'!$G$8:$G$100)),"") ->  | Y10: =IFERROR(1/(1/SUMIF('حركة شهر 12'!$J$8:$J$100,السلفية!$B10,'حركة شهر 12'!$K$8:$K$100)),"") ->  | Z10: =IFERROR(1/(1/SUMIF('حركة شهر 12'!$F$8:$F$100,السلفية!$B10,'حركة شهر 12'!$G$8:$G$100)),"") -> 
B11: جلال | C11: =IFERROR(1/(1/SUMIF('حركة شهر 1'!$J$8:$J$100,السلفية!$B11,'حركة شهر 1'!$K$8:$K$100)),"") -> 2000 | D11: =IFERROR(1/(1/SUMIF('حركة شهر 1'!$F$8:$F$100,السلفية!$B11,'حركة شهر 1'!$G$8:$G$100)),"") -> 500 | E11: =IFERROR(1/(1/SUMIF('حركة شهر 2'!$J$8:$J$100,السلفية!$B11,'حركة شهر 2'!$K$8:$K$100)),"") -> 2500 | F11: =IFERROR(1/(1/SUMIF('حركة شهر 2'!$F$8:$F$100,السلفية!$B11,'حركة شهر 2'!$G$8:$G$100)),"") ->  | G11: =IFERROR(1/(1/SUMIF('حركة شهر3'!$J$8:$J$100,السلفية!$B11,'حركة شهر3'!$K$8:$K$100)),"") -> 2500 | H11: =IFERROR(1/(1/SUMIF('حركة شهر3'!$F$8:$F$100,السلفية!$B11,'حركة شهر3'!$G$8:$G$100)),"") ->  | I11: =IFERROR(1/(1/SUMIF('حركة شهر 4'!$J$8:$J$100,السلفية!$B11,'حركة شهر 4'!$K$8:$K$100)),"") -> 2700 | J11: =IFERROR(1/(1/SUMIF('حركة شهر 4'!$F$8:$F$100,السلفية!$B11,'حركة شهر 4'!$G$8:$G$100)),"") ->  | K11: =IFERROR(1/(1/SUMIF('حركة شهر 5'!$J$8:$J$100,السلفية!$B11,'حركة شهر 5'!$K$8:$K$100)),"") -> 2100 | L11: =IFERROR(1/(1/SUMIF('حركة شهر 5'!$F$8:$F$100,السلفية!$B11,'حركة شهر 5'!$G$8:$G$100)),"") -> 600 | M11: =IFERROR(1/(1/SUMIF('حركة شهر6'!$J$8:$J$100,السلفية!$B11,'حركة شهر6'!$K$8:$K$100)),"") -> 2200 | N11: =IFERROR(1/(1/SUMIF('حركة شهر6'!$F$8:$F$100,السلفية!$B11,'حركة شهر6'!$G$8:$G$100)),"") -> 500 | O11: =IFERROR(1/(1/SUMIF('حركة شهر 7'!$J$8:$J$100,السلفية!$B11,'حركة شهر 7'!$K$8:$K$100)),"") -> 1800 | P11: =IFERROR(1/(1/SUMIF('حركة شهر 7'!$F$8:$F$100,السلفية!$B11,'حركة شهر 7'!$G$8:$G$100)),"") -> 900 | Q11: =IFERROR(1/(1/SUMIF('حركة شهر 8'!$J$8:$J$100,السلفية!$B11,'حركة شهر 8'!$K$8:$K$100)),"") -> 2100 | R11: =IFERROR(1/(1/SUMIF('حركة شهر 8'!$F$8:$F$100,السلفية!$B11,'حركة شهر 8'!$G$8:$G$100)),"") -> 600 | S11: =IFERROR(1/(1/SUMIF('حركة شهر 9'!$J$8:$J$100,السلفية!$B11,'حركة شهر 9'!$K$8:$K$100)),"") -> 1800 | T11: =IFERROR(1/(1/SUMIF('حركة شهر 9'!$F$8:$F$100,السلفية!$B11,'حركة شهر 9'!$G$8:$G$100)),"") -> 900 | U11: =IFERROR(1/(1/SUMIF('حركة شهر 10'!$J$8:$J$100,السلفية!$B11,'حركة شهر 10'!$K$8:$K$100)),"") ->  | V11: =IFERROR(1/(1/SUMIF('حركة شهر 10'!$F$8:$F$100,السلفية!$B11,'حركة شهر 10'!$G$8:$G$100)),"") ->  | W11: =IFERROR(1/(1/SUMIF('حركة شهر 11'!$J$8:$J$100,السلفية!$B11,'حركة شهر 11'!$K$8:$K$100)),"") ->  | X11: =IFERROR(1/(1/SUMIF('حركة شهر 11'!$F$8:$F$100,السلفية!$B11,'حركة شهر 11'!$G$8:$G$100)),"") ->  | Y11: =IFERROR(1/(1/SUMIF('حركة شهر 12'!$J$8:$J$100,السلفية!$B11,'حركة شهر 12'!$K$8:$K$100)),"") ->  | Z11: =IFERROR(1/(1/SUMIF('حركة شهر 12'!$F$8:$F$100,السلفية!$B11,'حركة شهر 12'!$G$8:$G$100)),"") -> 
B12: يوسف | C12: =IFERROR(1/(1/SUMIF('حركة شهر 1'!$J$8:$J$100,السلفية!$B12,'حركة شهر 1'!$K$8:$K$100)),"") -> 1800 | D12: =IFERROR(1/(1/SUMIF('حركة شهر 1'!$F$8:$F$100,السلفية!$B12,'حركة شهر 1'!$G$8:$G$100)),"") -> 1200 | E12: =IFERROR(1/(1/SUMIF('حركة شهر 2'!$J$8:$J$100,السلفية!$B12,'حركة شهر 2'!$K$8:$K$100)),"") -> 3000 | F12: =IFERROR(1/(1/SUMIF('حركة شهر 2'!$F$8:$F$100,السلفية!$B12,'حركة شهر 2'!$G$8:$G$100)),"") ->  | G12: =IFERROR(1/(1/SUMIF('حركة شهر3'!$J$8:$J$100,السلفية!$B12,'حركة شهر3'!$K$8:$K$100)),"") -> 3000 | H12: =IFERROR(1/(1/SUMIF('حركة شهر3'!$F$8:$F$100,السلفية!$B12,'حركة شهر3'!$G$8:$G$100)),"") ->  | I12: =IFERROR(1/(1/SUMIF('حركة شهر 4'!$J$8:$J$100,السلفية!$B12,'حركة شهر 4'!$K$8:$K$100)),"") -> 3000 | J12: =IFERROR(1/(1/SUMIF('حركة شهر 4'!$F$8:$F$100,السلفية!$B12,'حركة شهر 4'!$G$8:$G$100)),"") ->  | K12: =IFERROR(1/(1/SUMIF('حركة شهر 5'!$J$8:$J$100,السلفية!$B12,'حركة شهر 5'!$K$8:$K$100)),"") -> 1800 | L12: =IFERROR(1/(1/SUMIF('حركة شهر 5'!$F$8:$F$100,السلفية!$B12,'حركة شهر 5'!$G$8:$G$100)),"") -> 1200 | M12: =IFERROR(1/(1/SUMIF('حركة شهر6'!$J$8:$J$100,السلفية!$B12,'حركة شهر6'!$K$8:$K$100)),"") -> 1600 | N12: =IFERROR(1/(1/SUMIF('حركة شهر6'!$F$8:$F$100,السلفية!$B12,'حركة شهر6'!$G$8:$G$100)),"") -> 1400 | O12: =IFERROR(1/(1/SUMIF('حركة شهر 7'!$J$8:$J$100,السلفية!$B12,'حركة شهر 7'!$K$8:$K$100)),"") -> 2200 | P12: =IFERROR(1/(1/SUMIF('حركة شهر 7'!$F$8:$F$100,السلفية!$B12,'حركة شهر 7'!$G$8:$G$100)),"") -> 800 | Q12: =IFERROR(1/(1/SUMIF('حركة شهر 8'!$J$8:$J$100,السلفية!$B12,'حركة شهر 8'!$K$8:$K$100)),"") -> 2600 | R12: =IFERROR(1/(1/SUMIF('حركة شهر 8'!$F$8:$F$100,السلفية!$B12,'حركة شهر 8'!$G$8:$G$100)),"") -> 400 | S12: =IFERROR(1/(1/SUMIF('حركة شهر 9'!$J$8:$J$100,السلفية!$B12,'حركة شهر 9'!$K$8:$K$100)),"") -> 2200 | T12: =IFERROR(1/(1/SUMIF('حركة شهر 9'!$F$8:$F$100,السلفية!$B12,'حركة شهر 9'!$G$8:$G$100)),"") -> 900 | U12: =IFERROR(1/(1/SUMIF('حركة شهر 10'!$J$8:$J$100,السلفية!$B12,'حركة شهر 10'!$K$8:$K$100)),"") ->  | V12: =IFERROR(1/(1/SUMIF('حركة شهر 10'!$F$8:$F$100,السلفية!$B12,'حركة شهر 10'!$G$8:$G$100)),"") ->  | W12: =IFERROR(1/(1/SUMIF('حركة شهر 11'!$J$8:$J$100,السلفية!$B12,'حركة شهر 11'!$K$8:$K$100)),"") ->  | X12: =IFERROR(1/(1/SUMIF('حركة شهر 11'!$F$8:$F$100,السلفية!$B12,'حركة شهر 11'!$G$8:$G$100)),"") ->  | Y12: =IFERROR(1/(1/SUMIF('حركة شهر 12'!$J$8:$J$100,السلفية!$B12,'حركة شهر 12'!$K$8:$K$100)),"") ->  | Z12: =IFERROR(1/(1/SUMIF('حركة شهر 12'!$F$8:$F$100,السلفية!$B12,'حركة شهر 12'!$G$8:$G$100)),"") -> 
B13: علمان | C13: =IFERROR(1/(1/SUMIF('حركة شهر 1'!$J$8:$J$100,السلفية!$B13,'حركة شهر 1'!$K$8:$K$100)),"") -> 1800 | D13: =IFERROR(1/(1/SUMIF('حركة شهر 1'!$F$8:$F$100,السلفية!$B13,'حركة شهر 1'!$G$8:$G$100)),"") -> 900 | E13: =IFERROR(1/(1/SUMIF('حركة شهر 2'!$J$8:$J$100,السلفية!$B13,'حركة شهر 2'!$K$8:$K$100)),"") -> 2700 | F13: =IFERROR(1/(1/SUMIF('حركة شهر 2'!$F$8:$F$100,السلفية!$B13,'حركة شهر 2'!$G$8:$G$100)),"") ->  | G13: =IFERROR(1/(1/SUMIF('حركة شهر3'!$J$8:$J$100,السلفية!$B13,'حركة شهر3'!$K$8:$K$100)),"") -> 2700 | H13: =IFERROR(1/(1/SUMIF('حركة شهر3'!$F$8:$F$100,السلفية!$B13,'حركة شهر3'!$G$8:$G$100)),"") ->  | I13: =IFERROR(1/(1/SUMIF('حركة شهر 4'!$J$8:$J$100,السلفية!$B13,'حركة شهر 4'!$K$8:$K$100)),"") -> 2700 | J13: =IFERROR(1/(1/SUMIF('حركة شهر 4'!$F$8:$F$100,السلفية!$B13,'حركة شهر 4'!$G$8:$G$100)),"") ->  | K13: =IFERROR(1/(1/SUMIF('حركة شهر 5'!$J$8:$J$100,السلفية!$B13,'حركة شهر 5'!$K$8:$K$100)),"") -> 2400 | L13: =IFERROR(1/(1/SUMIF('حركة شهر 5'!$F$8:$F$100,السلفية!$B13,'حركة شهر 5'!$G$8:$G$100)),"") -> 300 | M13: =IFERROR(1/(1/SUMIF('حركة شهر6'!$J$8:$J$100,السلفية!$B13,'حركة شهر6'!$K$8:$K$100)),"") -> 1500 | N13: =IFERROR(1/(1/SUMIF('حركة شهر6'!$F$8:$F$100,السلفية!$B13,'حركة شهر6'!$G$8:$G$100)),"") -> 1200 | O13: =IFERROR(1/(1/SUMIF('حركة شهر 7'!$J$8:$J$100,السلفية!$B13,'حركة شهر 7'!$K$8:$K$100)),"") -> 1700 | P13: =IFERROR(1/(1/SUMIF('حركة شهر 7'!$F$8:$F$100,السلفية!$B13,'حركة شهر 7'!$G$8:$G$100)),"") -> 1000 | Q13: =IFERROR(1/(1/SUMIF('حركة شهر 8'!$J$8:$J$100,السلفية!$B13,'حركة شهر 8'!$K$8:$K$100)),"") -> 2100 | R13: =IFERROR(1/(1/SUMIF('حركة شهر 8'!$F$8:$F$100,السلفية!$B13,'حركة شهر 8'!$G$8:$G$100)),"") -> 600 | S13: =IFERROR(1/(1/SUMIF('حركة شهر 9'!$J$8:$J$100,السلفية!$B13,'حركة شهر 9'!$K$8:$K$100)),"") -> 1000 | T13: =IFERROR(1/(1/SUMIF('حركة شهر 9'!$F$8:$F$100,السلفية!$B13,'حركة شهر 9'!$G$8:$G$100)),"") -> 1700 | U13: =IFERROR(1/(1/SUMIF('حركة شهر 10'!$J$8:$J$100,السلفية!$B13,'حركة شهر 10'!$K$8:$K$100)),"") ->  | V13: =IFERROR(1/(1/SUMIF('حركة شهر 10'!$F$8:$F$100,السلفية!$B13,'حركة شهر 10'!$G$8:$G$100)),"") ->  | W13: =IFERROR(1/(1/SUMIF('حركة شهر 11'!$J$8:$J$100,السلفية!$B13,'حركة شهر 11'!$K$8:$K$100)),"") ->  | X13: =IFERROR(1/(1/SUMIF('حركة شهر 11'!$F$8:$F$100,السلفية!$B13,'حركة شهر 11'!$G$8:$G$100)),"") ->  | Y13: =IFERROR(1/(1/SUMIF('حركة شهر 12'!$J$8:$J$100,السلفية!$B13,'حركة شهر 12'!$K$8:$K$100)),"") ->  | Z13: =IFERROR(1/(1/SUMIF('حركة شهر 12'!$F$8:$F$100,السلفية!$B13,'حركة شهر 12'!$G$8:$G$100)),"") -> 
B14: حبيب | C14: =IFERROR(1/(1/SUMIF('حركة شهر 1'!$J$8:$J$100,السلفية!$B14,'حركة شهر 1'!$K$8:$K$100)),"") -> 2900 | D14: =IFERROR(1/(1/SUMIF('حركة شهر 1'!$F$8:$F$100,السلفية!$B14,'حركة شهر 1'!$G$8:$G$100)),"") -> 600 | E14: =IFERROR(1/(1/SUMIF('حركة شهر 2'!$J$8:$J$100,السلفية!$B14,'حركة شهر 2'!$K$8:$K$100)),"") -> 3500 | F14: =IFERROR(1/(1/SUMIF('حركة شهر 2'!$F$8:$F$100,السلفية!$B14,'حركة شهر 2'!$G$8:$G$100)),"") ->  | G14: =IFERROR(1/(1/SUMIF('حركة شهر3'!$J$8:$J$100,السلفية!$B14,'حركة شهر3'!$K$8:$K$100)),"") -> 3500 | H14: =IFERROR(1/(1/SUMIF('حركة شهر3'!$F$8:$F$100,السلفية!$B14,'حركة شهر3'!$G$8:$G$100)),"") ->  | I14: =IFERROR(1/(1/SUMIF('حركة شهر 4'!$J$8:$J$100,السلفية!$B14,'حركة شهر 4'!$K$8:$K$100)),"") -> 3500 | J14: =IFERROR(1/(1/SUMIF('حركة شهر 4'!$F$8:$F$100,السلفية!$B14,'حركة شهر 4'!$G$8:$G$100)),"") ->  | K14: =IFERROR(1/(1/SUMIF('حركة شهر 5'!$J$8:$J$100,السلفية!$B14,'حركة شهر 5'!$K$8:$K$100)),"") -> 3500 | L14: =IFERROR(1/(1/SUMIF('حركة شهر 5'!$F$8:$F$100,السلفية!$B14,'حركة شهر 5'!$G$8:$G$100)),"") ->  | M14: =IFERROR(1/(1/SUMIF('حركة شهر6'!$J$8:$J$100,السلفية!$B14,'حركة شهر6'!$K$8:$K$100)),"") -> 3000 | N14: =IFERROR(1/(1/SUMIF('حركة شهر6'!$F$8:$F$100,السلفية!$B14,'حركة شهر6'!$G$8:$G$100)),"") -> 500 | O14: =IFERROR(1/(1/SUMIF('حركة شهر 7'!$J$8:$J$100,السلفية!$B14,'حركة شهر 7'!$K$8:$K$100)),"") -> 2700 | P14: =IFERROR(1/(1/SUMIF('حركة شهر 7'!$F$8:$F$100,السلفية!$B14,'حركة شهر 7'!$G$8:$G$100)),"") -> 800 | Q14: =IFERROR(1/(1/SUMIF('حركة شهر 8'!$J$8:$J$100,السلفية!$B14,'حركة شهر 8'!$K$8:$K$100)),"") -> 3400 | R14: =IFERROR(1/(1/SUMIF('حركة شهر 8'!$F$8:$F$100,السلفية!$B14,'حركة شهر 8'!$G$8:$G$100)),"") -> 100 | S14: =IFERROR(1/(1/SUMIF('حركة شهر 9'!$J$8:$J$100,السلفية!$B14,'حركة شهر 9'!$K$8:$K$100)),"") -> 2900 | T14: =IFERROR(1/(1/SUMIF('حركة شهر 9'!$F$8:$F$100,السلفية!$B14,'حركة شهر 9'!$G$8:$G$100)),"") -> 600 | U14: =IFERROR(1/(1/SUMIF('حركة شهر 10'!$J$8:$J$100,السلفية!$B14,'حركة شهر 10'!$K$8:$K$100)),"") ->  | V14: =IFERROR(1/(1/SUMIF('حركة شهر 10'!$F$8:$F$100,السلفية!$B14,'حركة شهر 10'!$G$8:$G$100)),"") ->  | W14: =IFERROR(1/(1/SUMIF('حركة شهر 11'!$J$8:$J$100,السلفية!$B14,'حركة شهر 11'!$K$8:$K$100)),"") ->  | X14: =IFERROR(1/(1/SUMIF('حركة شهر 11'!$F$8:$F$100,السلفية!$B14,'حركة شهر 11'!$G$8:$G$100)),"") ->  | Y14: =IFERROR(1/(1/SUMIF('حركة شهر 12'!$J$8:$J$100,السلفية!$B14,'حركة شهر 12'!$K$8:$K$100)),"") ->  | Z14: =IFERROR(1/(1/SUMIF('حركة شهر 12'!$F$8:$F$100,السلفية!$B14,'حركة شهر 12'!$G$8:$G$100)),"") -> 
B15: ثامر | C15: =IFERROR(1/(1/SUMIF('حركة شهر 1'!$J$8:$J$100,السلفية!$B15,'حركة شهر 1'!$K$8:$K$100)),"") ->  | D15: =IFERROR(1/(1/SUMIF('حركة شهر 1'!$F$8:$F$100,السلفية!$B15,'حركة شهر 1'!$G$8:$G$100)),"") ->  | E15: =IFERROR(1/(1/SUMIF('حركة شهر 2'!$J$8:$J$100,السلفية!$B15,'حركة شهر 2'!$K$8:$K$100)),"") -> 2500 | F15: =IFERROR(1/(1/SUMIF('حركة شهر 2'!$F$8:$F$100,السلفية!$B15,'حركة شهر 2'!$G$8:$G$100)),"") -> 500 | G15: =IFERROR(1/(1/SUMIF('حركة شهر3'!$J$8:$J$100,السلفية!$B15,'حركة شهر3'!$K$8:$K$100)),"") -> 3000 | H15: =IFERROR(1/(1/SUMIF('حركة شهر3'!$F$8:$F$100,السلفية!$B15,'حركة شهر3'!$G$8:$G$100)),"") ->  | I15: =IFERROR(1/(1/SUMIF('حركة شهر 4'!$J$8:$J$100,السلفية!$B15,'حركة شهر 4'!$K$8:$K$100)),"") -> 3000 | J15: =IFERROR(1/(1/SUMIF('حركة شهر 4'!$F$8:$F$100,السلفية!$B15,'حركة شهر 4'!$G$8:$G$100)),"") ->  | K15: =IFERROR(1/(1/SUMIF('حركة شهر 5'!$J$8:$J$100,السلفية!$B15,'حركة شهر 5'!$K$8:$K$100)),"") -> 1900 | L15: =IFERROR(1/(1/SUMIF('حركة شهر 5'!$F$8:$F$100,السلفية!$B15,'حركة شهر 5'!$G$8:$G$100)),"") -> 1100 | M15: =IFERROR(1/(1/SUMIF('حركة شهر6'!$J$8:$J$100,السلفية!$B15,'حركة شهر6'!$K$8:$K$100)),"") -> 2300 | N15: =IFERROR(1/(1/SUMIF('حركة شهر6'!$F$8:$F$100,السلفية!$B15,'حركة شهر6'!$G$8:$G$100)),"") -> 700 | O15: =IFERROR(1/(1/SUMIF('حركة شهر 7'!$J$8:$J$100,السلفية!$B15,'حركة شهر 7'!$K$8:$K$100)),"") -> 2300 | P15: =IFERROR(1/(1/SUMIF('حركة شهر 7'!$F$8:$F$100,السلفية!$B15,'حركة شهر 7'!$G$8:$G$100)),"") -> 700 | Q15: =IFERROR(1/(1/SUMIF('حركة شهر 8'!$J$8:$J$100,السلفية!$B15,'حركة شهر 8'!$K$8:$K$100)),"") -> 1300 | R15: =IFERROR(1/(1/SUMIF('حركة شهر 8'!$F$8:$F$100,السلفية!$B15,'حركة شهر 8'!$G$8:$G$100)),"") -> 1700 | S15: =IFERROR(1/(1/SUMIF('حركة شهر 9'!$J$8:$J$100,السلفية!$B15,'حركة شهر 9'!$K$8:$K$100)),"") -> 300 | T15: =IFERROR(1/(1/SUMIF('حركة شهر 9'!$F$8:$F$100,السلفية!$B15,'حركة شهر 9'!$G$8:$G$100)),"") -> 3200 | U15: =IFERROR(1/(1/SUMIF('حركة شهر 10'!$J$8:$J$100,السلفية!$B15,'حركة شهر 10'!$K$8:$K$100)),"") ->  | V15: =IFERROR(1/(1/SUMIF('حركة شهر 10'!$F$8:$F$100,السلفية!$B15,'حركة شهر 10'!$G$8:$G$100)),"") -> 500 | W15: =IFERROR(1/(1/SUMIF('حركة شهر 11'!$J$8:$J$100,السلفية!$B15,'حركة شهر 11'!$K$8:$K$100)),"") ->  | X15: =IFERROR(1/(1/SUMIF('حركة شهر 11'!$F$8:$F$100,السلفية!$B15,'حركة شهر 11'!$G$8:$G$100)),"") ->  | Y15: =IFERROR(1/(1/SUMIF('حركة شهر 12'!$J$8:$J$100,السلفية!$B15,'حركة شهر 12'!$K$8:$K$100)),"") ->  | Z15: =IFERROR(1/(1/SUMIF('حركة شهر 12'!$F$8:$F$100,السلفية!$B15,'حركة شهر 12'!$G$8:$G$100)),"") -> 
B16: ابوباسل | C16: =IFERROR(1/(1/SUMIF('حركة شهر 1'!$J$8:$J$100,السلفية!$B16,'حركة شهر 1'!$K$8:$K$100)),"") ->  | D16: =IFERROR(1/(1/SUMIF('حركة شهر 1'!$F$8:$F$100,السلفية!$B16,'حركة شهر 1'!$G$8:$G$100)),"") ->  | E16: =IFERROR(1/(1/SUMIF('حركة شهر 2'!$J$8:$J$100,السلفية!$B16,'حركة شهر 2'!$K$8:$K$100)),"") ->  | F16: =IFERROR(1/(1/SUMIF('حركة شهر 2'!$F$8:$F$100,السلفية!$B16,'حركة شهر 2'!$G$8:$G$100)),"") ->  | G16: =IFERROR(1/(1/SUMIF('حركة شهر3'!$J$8:$J$100,السلفية!$B16,'حركة شهر3'!$K$8:$K$100)),"") ->  | H16: =IFERROR(1/(1/SUMIF('حركة شهر3'!$F$8:$F$100,السلفية!$B16,'حركة شهر3'!$G$8:$G$100)),"") ->  | I16: =IFERROR(1/(1/SUMIF('حركة شهر 4'!$J$8:$J$100,السلفية!$B16,'حركة شهر 4'!$K$8:$K$100)),"") ->  | J16: =IFERROR(1/(1/SUMIF('حركة شهر 4'!$F$8:$F$100,السلفية!$B16,'حركة شهر 4'!$G$8:$G$100)),"") ->  | K16: =IFERROR(1/(1/SUMIF('حركة شهر 5'!$J$8:$J$100,السلفية!$B16,'حركة شهر 5'!$K$8:$K$100)),"") ->  | L16: =IFERROR(1/(1/SUMIF('حركة شهر 5'!$F$8:$F$100,السلفية!$B16,'حركة شهر 5'!$G$8:$G$100)),"") -> 2000 | M16: =IFERROR(1/(1/SUMIF('حركة شهر6'!$J$8:$J$100,السلفية!$B16,'حركة شهر6'!$K$8:$K$100)),"") ->  | N16: =IFERROR(1/(1/SUMIF('حركة شهر6'!$F$8:$F$100,السلفية!$B16,'حركة شهر6'!$G$8:$G$100)),"") ->  | O16: =IFERROR(1/(1/SUMIF('حركة شهر 7'!$J$8:$J$100,السلفية!$B16,'حركة شهر 7'!$K$8:$K$100)),"") ->  | P16: =IFERROR(1/(1/SUMIF('حركة شهر 7'!$F$8:$F$100,السلفية!$B16,'حركة شهر 7'!$G$8:$G$100)),"") -> 500 | Q16: =IFERROR(1/(1/SUMIF('حركة شهر 8'!$J$8:$J$100,السلفية!$B16,'حركة شهر 8'!$K$8:$K$100)),"") ->  | R16: =IFERROR(1/(1/SUMIF('حركة شهر 8'!$F$8:$F$100,السلفية!$B16,'حركة شهر 8'!$G$8:$G$100)),"") ->  | S16: =IFERROR(1/(1/SUMIF('حركة شهر 9'!$J$8:$J$100,السلفية!$B16,'حركة شهر 9'!$K$8:$K$100)),"") ->  | T16: =IFERROR(1/(1/SUMIF('حركة شهر 9'!$F$8:$F$100,السلفية!$B16,'حركة شهر 9'!$G$8:$G$100)),"") -> 1090 | U16: =IFERROR(1/(1/SUMIF('حركة شهر 10'!$J$8:$J$100,السلفية!$B16,'حركة شهر 10'!$K$8:$K$100)),"") ->  | V16: =IFERROR(1/(1/SUMIF('حركة شهر 10'!$F$8:$F$100,السلفية!$B16,'حركة شهر 10'!$G$8:$G$100)),"") ->  | W16: =IFERROR(1/(1/SUMIF('حركة شهر 11'!$J$8:$J$100,السلفية!$B16,'حركة شهر 11'!$K$8:$K$100)),"") ->  | X16: =IFERROR(1/(1/SUMIF('حركة شهر 11'!$F$8:$F$100,السلفية!$B16,'حركة شهر 11'!$G$8:$G$100)),"") ->  | Y16: =IFERROR(1/(1/SUMIF('حركة شهر 12'!$J$8:$J$100,السلفية!$B16,'حركة شهر 12'!$K$8:$K$100)),"") ->  | Z16: =IFERROR(1/(1/SUMIF('حركة شهر 12'!$F$8:$F$100,السلفية!$B16,'حركة شهر 12'!$G$8:$G$100)),"") -> 
C17: =IFERROR(1/(1/SUMIF('[3]حركة شهر 1'!$J$8:$J$100,[3]السلفيات!$B17,'[3]حركة شهر 1'!$K$8:$K$100)),"") ->  | D17: =IFERROR(1/(1/SUMIF('[3]حركة شهر 1'!$F$8:$F$100,[3]السلفيات!$B17,'[3]حركة شهر 1'!$G$8:$G$100)),"") ->  | E17: =IFERROR(1/(1/SUMIF('[3]حركة شهر 2'!$J$8:$J$100,[3]السلفيات!$B17,'[3]حركة شهر 2'!$K$8:$K$100)),"") ->  | F17: اضافي | G17: =IFERROR(1/(1/SUMIF('[3]حركة شهر3'!$J$8:$J$100,[3]السلفيات!$B17,'[3]حركة شهر3'!$K$8:$K$100)),"") ->  | H17: اضافي | I17: =IFERROR(1/(1/SUMIF('[3]حركة شهر 4'!$J$8:$J$100,[3]السلفيات!$B17,'[3]حركة شهر 4'!$K$8:$K$100)),"") ->  | J17: اضافي | K17: =IFERROR(1/(1/SUMIF('[3]حركة شهر 5'!$J$8:$J$100,[3]السلفيات!$B17,'[3]حركة شهر 5'!$K$8:$K$100)),"") ->  | L17: اضافي | M17: =IFERROR(1/(1/SUMIF('[3]حركة شهر6'!$J$8:$J$100,[3]السلفيات!$B17,'[3]حركة شهر6'!$K$8:$K$100)),"") ->  | N17: اضافي | O17: =IFERROR(1/(1/SUMIF('[3]حركة شهر 7'!$J$8:$J$100,[3]السلفيات!$B17,'[3]حركة شهر 7'!$K$8:$K$100)),"") ->  | P17: اضافي | Q17: =IFERROR(1/(1/SUMIF('[3]حركة شهر 8'!$J$8:$J$100,[3]السلفيات!$B17,'[3]حركة شهر 8'!$K$8:$K$100)),"") ->  | R17: اضافي | S17: =IFERROR(1/(1/SUMIF('[3]حركة شهر 9'!$J$8:$J$100,[3]السلفيات!$B17,'[3]حركة شهر 9'!$K$8:$K$100)),"") ->  | T17: اضافي | U17: =IFERROR(1/(1/SUMIF('[3]حركة شهر 10'!$J$8:$J$100,[3]السلفيات!$B17,'[3]حركة شهر 10'!$K$8:$K$100)),"") ->  | V17: اضافي | W17: =IFERROR(1/(1/SUMIF('[3]حركة شهر 11'!$J$8:$J$100,[3]السلفيات!$B17,'[3]حركة شهر 11'!$K$8:$K$100)),"") ->  | X17: اضافي | Y17: =IFERROR(1/(1/SUMIF('[3]حركة شهر 12'!$J$8:$J$100,[3]السلفيات!$B17,'[3]حركة شهر 12'!$K$8:$K$100)),"") ->  | Z17: اضافي
B18: اوفرتايم حبيب | C18: =IFERROR(1/(1/SUMIF('حركة شهر 1'!$J$8:$J$100,السلفية!$B18,'حركة شهر 1'!$K$8:$K$100)),"") ->  | D18: =IFERROR(1/(1/SUMIF('حركة شهر 1'!$F$8:$F$100,السلفية!$B18,'حركة شهر 1'!$G$8:$G$100)),"") ->  | E18: =IFERROR(1/(1/SUMIF('حركة شهر 2'!$J$8:$J$100,السلفية!$B18,'حركة شهر 2'!$K$8:$K$100)),"") -> 510 | F18: =IFERROR(1/(1/SUMIF('حركة شهر 2'!$F$8:$F$100,السلفية!$B18,'حركة شهر 2'!$G$8:$G$100)),"") ->  | G18: =IFERROR(1/(1/SUMIF('حركة شهر3'!$J$8:$J$100,السلفية!$B18,'حركة شهر3'!$K$8:$K$100)),"") ->  | H18: =IFERROR(1/(1/SUMIF('حركة شهر3'!$F$8:$F$100,السلفية!$B18,'حركة شهر3'!$G$8:$G$100)),"") ->  | I18: =IFERROR(1/(1/SUMIF('حركة شهر 4'!$J$8:$J$100,السلفية!$B18,'حركة شهر 4'!$K$8:$K$100)),"") ->  | J18: =IFERROR(1/(1/SUMIF('حركة شهر 4'!$F$8:$F$100,السلفية!$B18,'حركة شهر 4'!$G$8:$G$100)),"") -> 90 | K18: =IFERROR(1/(1/SUMIF('حركة شهر 5'!$J$8:$J$100,السلفية!$B18,'حركة شهر 5'!$K$8:$K$100)),"") ->  | L18: =IFERROR(1/(1/SUMIF('حركة شهر 5'!$F$8:$F$100,السلفية!$B18,'حركة شهر 5'!$G$8:$G$100)),"") ->  | M18: =IFERROR(1/(1/SUMIF('حركة شهر6'!$J$8:$J$100,السلفية!$B18,'حركة شهر6'!$K$8:$K$100)),"") ->  | N18: =IFERROR(1/(1/SUMIF('حركة شهر6'!$F$8:$F$100,السلفية!$B18,'حركة شهر6'!$G$8:$G$100)),"") -> 120 | O18: =IFERROR(1/(1/SUMIF('حركة شهر 7'!$J$8:$J$100,السلفية!$B18,'حركة شهر 7'!$K$8:$K$100)),"") ->  | P18: =IFERROR(1/(1/SUMIF('حركة شهر 7'!$F$8:$F$100,السلفية!$B18,'حركة شهر 7'!$G$8:$G$100)),"") -> 330 | Q18: =IFERROR(1/(1/SUMIF('حركة شهر 8'!$J$8:$J$100,السلفية!$B18,'حركة شهر 8'!$K$8:$K$100)),"") ->  | R18: =IFERROR(1/(1/SUMIF('حركة شهر 8'!$F$8:$F$100,السلفية!$B18,'حركة شهر 8'!$G$8:$G$100)),"") -> 120 | S18: =IFERROR(1/(1/SUMIF('حركة شهر 9'!$J$8:$J$100,السلفية!$B18,'حركة شهر 9'!$K$8:$K$100)),"") ->  | T18: =IFERROR(1/(1/SUMIF('حركة شهر 9'!$F$8:$F$100,السلفية!$B18,'حركة شهر 9'!$G$8:$G$100)),"") -> 120 | U18: =IFERROR(1/(1/SUMIF('حركة شهر 10'!$J$8:$J$100,السلفية!$B18,'حركة شهر 10'!$K$8:$K$100)),"") ->  | V18: =IFERROR(1/(1/SUMIF('حركة شهر 10'!$F$8:$F$100,السلفية!$B18,'حركة شهر 10'!$G$8:$G$100)),"") ->  | W18: =IFERROR(1/(1/SUMIF('حركة شهر 11'!$J$8:$J$100,السلفية!$B18,'حركة شهر 11'!$K$8:$K$100)),"") ->  | X18: =IFERROR(1/(1/SUMIF('حركة شهر 11'!$F$8:$F$100,السلفية!$B18,'حركة شهر 11'!$G$8:$G$100)),"") ->  | Y18: =IFERROR(1/(1/SUMIF('حركة شهر 12'!$J$8:$J$100,السلفية!$B18,'حركة شهر 12'!$K$8:$K$100)),"") ->  | Z18: =IFERROR(1/(1/SUMIF('حركة شهر 12'!$F$8:$F$100,السلفية!$B18,'حركة شهر 12'!$G$8:$G$100)),"") -> 
B19: اوفر تايم عامر | C19: =IFERROR(1/(1/SUMIF('حركة شهر 1'!$J$8:$J$100,السلفية!$B19,'حركة شهر 1'!$K$8:$K$100)),"") ->  | D19: =IFERROR(1/(1/SUMIF('حركة شهر 1'!$F$8:$F$100,السلفية!$B19,'حركة شهر 1'!$G$8:$G$100)),"") ->  | E19: =IFERROR(1/(1/SUMIF('حركة شهر 2'!$J$8:$J$100,السلفية!$B19,'حركة شهر 2'!$K$8:$K$100)),"") -> 500 | F19: =IFERROR(1/(1/SUMIF('حركة شهر 2'!$F$8:$F$100,السلفية!$B19,'حركة شهر 2'!$G$8:$G$100)),"") ->  | G19: =IFERROR(1/(1/SUMIF('حركة شهر3'!$J$8:$J$100,السلفية!$B19,'حركة شهر3'!$K$8:$K$100)),"") ->  | H19: =IFERROR(1/(1/SUMIF('حركة شهر3'!$F$8:$F$100,السلفية!$B19,'حركة شهر3'!$G$8:$G$100)),"") ->  | I19: =IFERROR(1/(1/SUMIF('حركة شهر 4'!$J$8:$J$100,السلفية!$B19,'حركة شهر 4'!$K$8:$K$100)),"") ->  | J19: =IFERROR(1/(1/SUMIF('حركة شهر 4'!$F$8:$F$100,السلفية!$B19,'حركة شهر 4'!$G$8:$G$100)),"") -> 60 | K19: =IFERROR(1/(1/SUMIF('حركة شهر 5'!$J$8:$J$100,السلفية!$B19,'حركة شهر 5'!$K$8:$K$100)),"") ->  | L19: =IFERROR(1/(1/SUMIF('حركة شهر 5'!$F$8:$F$100,السلفية!$B19,'حركة شهر 5'!$G$8:$G$100)),"") ->  | M19: =IFERROR(1/(1/SUMIF('حركة شهر6'!$J$8:$J$100,السلفية!$B19,'حركة شهر6'!$K$8:$K$100)),"") ->  | N19: =IFERROR(1/(1/SUMIF('حركة شهر6'!$F$8:$F$100,السلفية!$B19,'حركة شهر6'!$G$8:$G$100)),"") -> 120 | O19: =IFERROR(1/(1/SUMIF('حركة شهر 7'!$J$8:$J$100,السلفية!$B19,'حركة شهر 7'!$K$8:$K$100)),"") ->  | P19: =IFERROR(1/(1/SUMIF('حركة شهر 7'!$F$8:$F$100,السلفية!$B19,'حركة شهر 7'!$G$8:$G$100)),"") -> 140 | Q19: =IFERROR(1/(1/SUMIF('حركة شهر 8'!$J$8:$J$100,السلفية!$B19,'حركة شهر 8'!$K$8:$K$100)),"") ->  | R19: =IFERROR(1/(1/SUMIF('حركة شهر 8'!$F$8:$F$100,السلفية!$B19,'حركة شهر 8'!$G$8:$G$100)),"") -> 60 | S19: =IFERROR(1/(1/SUMIF('حركة شهر 9'!$J$8:$J$100,السلفية!$B19,'حركة شهر 9'!$K$8:$K$100)),"") ->  | T19: =IFERROR(1/(1/SUMIF('حركة شهر 9'!$F$8:$F$100,السلفية!$B19,'حركة شهر 9'!$G$8:$G$100)),"") -> 120 | U19: =IFERROR(1/(1/SUMIF('حركة شهر 10'!$J$8:$J$100,السلفية!$B19,'حركة شهر 10'!$K$8:$K$100)),"") ->  | V19: =IFERROR(1/(1/SUMIF('حركة شهر 10'!$F$8:$F$100,السلفية!$B19,'حركة شهر 10'!$G$8:$G$100)),"") ->  | W19: =IFERROR(1/(1/SUMIF('حركة شهر 11'!$J$8:$J$100,السلفية!$B19,'حركة شهر 11'!$K$8:$K$100)),"") ->  | X19: =IFERROR(1/(1/SUMIF('حركة شهر 11'!$F$8:$F$100,السلفية!$B19,'حركة شهر 11'!$G$8:$G$100)),"") ->  | Y19: =IFERROR(1/(1/SUMIF('حركة شهر 12'!$J$8:$J$100,السلفية!$B19,'حركة شهر 12'!$K$8:$K$100)),"") ->  | Z19: =IFERROR(1/(1/SUMIF('حركة شهر 12'!$F$8:$F$100,السلفية!$B19,'حركة شهر 12'!$G$8:$G$100)),"") -> 
B20: اوفر تايم شمس | C20: =IFERROR(1/(1/SUMIF('حركة شهر 1'!$J$8:$J$100,السلفية!$B20,'حركة شهر 1'!$K$8:$K$100)),"") -> 150 | D20: =IFERROR(1/(1/SUMIF('حركة شهر 1'!$F$8:$F$100,السلفية!$B20,'حركة شهر 1'!$G$8:$G$100)),"") ->  | E20: =IFERROR(1/(1/SUMIF('حركة شهر 2'!$J$8:$J$100,السلفية!$B20,'حركة شهر 2'!$K$8:$K$100)),"") -> 410 | F20: =IFERROR(1/(1/SUMIF('حركة شهر 2'!$F$8:$F$100,السلفية!$B20,'حركة شهر 2'!$G$8:$G$100)),"") ->  | G20: =IFERROR(1/(1/SUMIF('حركة شهر3'!$J$8:$J$100,السلفية!$B20,'حركة شهر3'!$K$8:$K$100)),"") ->  | H20: =IFERROR(1/(1/SUMIF('حركة شهر3'!$F$8:$F$100,السلفية!$B20,'حركة شهر3'!$G$8:$G$100)),"") ->  | I20: =IFERROR(1/(1/SUMIF('حركة شهر 4'!$J$8:$J$100,السلفية!$B20,'حركة شهر 4'!$K$8:$K$100)),"") ->  | J20: =IFERROR(1/(1/SUMIF('حركة شهر 4'!$F$8:$F$100,السلفية!$B20,'حركة شهر 4'!$G$8:$G$100)),"") -> 240 | K20: =IFERROR(1/(1/SUMIF('حركة شهر 5'!$J$8:$J$100,السلفية!$B20,'حركة شهر 5'!$K$8:$K$100)),"") ->  | L20: =IFERROR(1/(1/SUMIF('حركة شهر 5'!$F$8:$F$100,السلفية!$B20,'حركة شهر 5'!$G$8:$G$100)),"") ->  | M20: =IFERROR(1/(1/SUMIF('حركة شهر6'!$J$8:$J$100,السلفية!$B20,'حركة شهر6'!$K$8:$K$100)),"") ->  | N20: =IFERROR(1/(1/SUMIF('حركة شهر6'!$F$8:$F$100,السلفية!$B20,'حركة شهر6'!$G$8:$G$100)),"") -> 90 | O20: =IFERROR(1/(1/SUMIF('حركة شهر 7'!$J$8:$J$100,السلفية!$B20,'حركة شهر 7'!$K$8:$K$100)),"") ->  | P20: =IFERROR(1/(1/SUMIF('حركة شهر 7'!$F$8:$F$100,السلفية!$B20,'حركة شهر 7'!$G$8:$G$100)),"") ->  | Q20: =IFERROR(1/(1/SUMIF('حركة شهر 8'!$J$8:$J$100,السلفية!$B20,'حركة شهر 8'!$K$8:$K$100)),"") ->  | R20: =IFERROR(1/(1/SUMIF('حركة شهر 8'!$F$8:$F$100,السلفية!$B20,'حركة شهر 8'!$G$8:$G$100)),"") -> 150 | S20: =IFERROR(1/(1/SUMIF('حركة شهر 9'!$J$8:$J$100,السلفية!$B20,'حركة شهر 9'!$K$8:$K$100)),"") ->  | T20: =IFERROR(1/(1/SUMIF('حركة شهر 9'!$F$8:$F$100,السلفية!$B20,'حركة شهر 9'!$G$8:$G$100)),"") -> 150 | U20: =IFERROR(1/(1/SUMIF('حركة شهر 10'!$J$8:$J$100,السلفية!$B20,'حركة شهر 10'!$K$8:$K$100)),"") ->  | V20: =IFERROR(1/(1/SUMIF('حركة شهر 10'!$F$8:$F$100,السلفية!$B20,'حركة شهر 10'!$G$8:$G$100)),"") ->  | W20: =IFERROR(1/(1/SUMIF('حركة شهر 11'!$J$8:$J$100,السلفية!$B20,'حركة شهر 11'!$K$8:$K$100)),"") ->  | X20: =IFERROR(1/(1/SUMIF('حركة شهر 11'!$F$8:$F$100,السلفية!$B20,'حركة شهر 11'!$G$8:$G$100)),"") ->  | Y20: =IFERROR(1/(1/SUMIF('حركة شهر 12'!$J$8:$J$100,السلفية!$B20,'حركة شهر 12'!$K$8:$K$100)),"") ->  | Z20: =IFERROR(1/(1/SUMIF('حركة شهر 12'!$F$8:$F$100,السلفية!$B20,'حركة شهر 12'!$G$8:$G$100)),"") -> 
B21: اوفرتايم يوسف | C21: =IFERROR(1/(1/SUMIF('حركة شهر 1'!$J$8:$J$100,السلفية!$B21,'حركة شهر 1'!$K$8:$K$100)),"") ->  | D21: =IFERROR(1/(1/SUMIF('حركة شهر 1'!$F$8:$F$100,السلفية!$B21,'حركة شهر 1'!$G$8:$G$100)),"") ->  | E21: =IFERROR(1/(1/SUMIF('حركة شهر 2'!$J$8:$J$100,السلفية!$B21,'حركة شهر 2'!$K$8:$K$100)),"") -> 420 | F21: =IFERROR(1/(1/SUMIF('حركة شهر 2'!$F$8:$F$100,السلفية!$B21,'حركة شهر 2'!$G$8:$G$100)),"") ->  | G21: =IFERROR(1/(1/SUMIF('حركة شهر3'!$J$8:$J$100,السلفية!$B21,'حركة شهر3'!$K$8:$K$100)),"") ->  | H21: =IFERROR(1/(1/SUMIF('حركة شهر3'!$F$8:$F$100,السلفية!$B21,'حركة شهر3'!$G$8:$G$100)),"") ->  | I21: =IFERROR(1/(1/SUMIF('حركة شهر 4'!$J$8:$J$100,السلفية!$B21,'حركة شهر 4'!$K$8:$K$100)),"") ->  | J21: =IFERROR(1/(1/SUMIF('حركة شهر 4'!$F$8:$F$100,السلفية!$B21,'حركة شهر 4'!$G$8:$G$100)),"") ->  | K21: =IFERROR(1/(1/SUMIF('حركة شهر 5'!$J$8:$J$100,السلفية!$B21,'حركة شهر 5'!$K$8:$K$100)),"") ->  | L21: =IFERROR(1/(1/SUMIF('حركة شهر 5'!$F$8:$F$100,السلفية!$B21,'حركة شهر 5'!$G$8:$G$100)),"") ->  | M21: =IFERROR(1/(1/SUMIF('حركة شهر6'!$J$8:$J$100,السلفية!$B21,'حركة شهر6'!$K$8:$K$100)),"") ->  | N21: =IFERROR(1/(1/SUMIF('حركة شهر6'!$F$8:$F$100,السلفية!$B21,'حركة شهر6'!$G$8:$G$100)),"") -> 150 | O21: =IFERROR(1/(1/SUMIF('حركة شهر 7'!$J$8:$J$100,السلفية!$B21,'حركة شهر 7'!$K$8:$K$100)),"") ->  | P21: =IFERROR(1/(1/SUMIF('حركة شهر 7'!$F$8:$F$100,السلفية!$B21,'حركة شهر 7'!$G$8:$G$100)),"") -> 450 | Q21: =IFERROR(1/(1/SUMIF('حركة شهر 8'!$J$8:$J$100,السلفية!$B21,'حركة شهر 8'!$K$8:$K$100)),"") ->  | R21: =IFERROR(1/(1/SUMIF('حركة شهر 8'!$F$8:$F$100,السلفية!$B21,'حركة شهر 8'!$G$8:$G$100)),"") -> 120 | S21: =IFERROR(1/(1/SUMIF('حركة شهر 9'!$J$8:$J$100,السلفية!$B21,'حركة شهر 9'!$K$8:$K$100)),"") ->  | T21: =IFERROR(1/(1/SUMIF('حركة شهر 9'!$F$8:$F$100,السلفية!$B21,'حركة شهر 9'!$G$8:$G$100)),"") -> 150 | U21: =IFERROR(1/(1/SUMIF('حركة شهر 10'!$J$8:$J$100,السلفية!$B21,'حركة شهر 10'!$K$8:$K$100)),"") ->  | V21: =IFERROR(1/(1/SUMIF('حركة شهر 10'!$F$8:$F$100,السلفية!$B21,'حركة شهر 10'!$G$8:$G$100)),"") ->  | W21: =IFERROR(1/(1/SUMIF('حركة شهر 11'!$J$8:$J$100,السلفية!$B21,'حركة شهر 11'!$K$8:$K$100)),"") ->  | X21: =IFERROR(1/(1/SUMIF('حركة شهر 11'!$F$8:$F$100,السلفية!$B21,'حركة شهر 11'!$G$8:$G$100)),"") ->  | Y21: =IFERROR(1/(1/SUMIF('حركة شهر 12'!$J$8:$J$100,السلفية!$B21,'حركة شهر 12'!$K$8:$K$100)),"") ->  | Z21: =IFERROR(1/(1/SUMIF('حركة شهر 12'!$F$8:$F$100,السلفية!$B21,'حركة شهر 12'!$G$8:$G$100)),"") -> 
B22: اوفرتايم ثامر | C22: =IFERROR(1/(1/SUMIF('حركة شهر 1'!$J$8:$J$100,السلفية!$B22,'حركة شهر 1'!$K$8:$K$100)),"") ->  | D22: =IFERROR(1/(1/SUMIF('حركة شهر 1'!$F$8:$F$100,السلفية!$B22,'حركة شهر 1'!$G$8:$G$100)),"") ->  | E22: =IFERROR(1/(1/SUMIF('حركة شهر 2'!$J$8:$J$100,السلفية!$B22,'حركة شهر 2'!$K$8:$K$100)),"") -> 300 | F22: =IFERROR(1/(1/SUMIF('حركة شهر 2'!$F$8:$F$100,السلفية!$B22,'حركة شهر 2'!$G$8:$G$100)),"") ->  | G22: =IFERROR(1/(1/SUMIF('حركة شهر3'!$J$8:$J$100,السلفية!$B22,'حركة شهر3'!$K$8:$K$100)),"") ->  | H22: =IFERROR(1/(1/SUMIF('حركة شهر3'!$F$8:$F$100,السلفية!$B22,'حركة شهر3'!$G$8:$G$100)),"") ->  | I22: =IFERROR(1/(1/SUMIF('حركة شهر 4'!$J$8:$J$100,السلفية!$B22,'حركة شهر 4'!$K$8:$K$100)),"") ->  | J22: =IFERROR(1/(1/SUMIF('حركة شهر 4'!$F$8:$F$100,السلفية!$B22,'حركة شهر 4'!$G$8:$G$100)),"") -> 240 | K22: =IFERROR(1/(1/SUMIF('حركة شهر 5'!$J$8:$J$100,السلفية!$B22,'حركة شهر 5'!$K$8:$K$100)),"") ->  | L22: =IFERROR(1/(1/SUMIF('حركة شهر 5'!$F$8:$F$100,السلفية!$B22,'حركة شهر 5'!$G$8:$G$100)),"") ->  | M22: =IFERROR(1/(1/SUMIF('حركة شهر6'!$J$8:$J$100,السلفية!$B22,'حركة شهر6'!$K$8:$K$100)),"") ->  | N22: =IFERROR(1/(1/SUMIF('حركة شهر6'!$F$8:$F$100,السلفية!$B22,'حركة شهر6'!$G$8:$G$100)),"") -> 120 | O22: =IFERROR(1/(1/SUMIF('حركة شهر 7'!$J$8:$J$100,السلفية!$B22,'حركة شهر 7'!$K$8:$K$100)),"") ->  | P22: =IFERROR(1/(1/SUMIF('حركة شهر 7'!$F$8:$F$100,السلفية!$B22,'حركة شهر 7'!$G$8:$G$100)),"") -> 270 | Q22: =IFERROR(1/(1/SUMIF('حركة شهر 8'!$J$8:$J$100,السلفية!$B22,'حركة شهر 8'!$K$8:$K$100)),"") ->  | R22: =IFERROR(1/(1/SUMIF('حركة شهر 8'!$F$8:$F$100,السلفية!$B22,'حركة شهر 8'!$G$8:$G$100)),"") -> 120 | S22: =IFERROR(1/(1/SUMIF('حركة شهر 9'!$J$8:$J$100,السلفية!$B22,'حركة شهر 9'!$K$8:$K$100)),"") ->  | T22: =IFERROR(1/(1/SUMIF('حركة شهر 9'!$F$8:$F$100,السلفية!$B22,'حركة شهر 9'!$G$8:$G$100)),"") -> 150 | U22: =IFERROR(1/(1/SUMIF('حركة شهر 10'!$J$8:$J$100,السلفية!$B22,'حركة شهر 10'!$K$8:$K$100)),"") ->  | V22: =IFERROR(1/(1/SUMIF('حركة شهر 10'!$F$8:$F$100,السلفية!$B22,'حركة شهر 10'!$G$8:$G$100)),"") ->  | W22: =IFERROR(1/(1/SUMIF('حركة شهر 11'!$J$8:$J$100,السلفية!$B22,'حركة شهر 11'!$K$8:$K$100)),"") ->  | X22: =IFERROR(1/(1/SUMIF('حركة شهر 11'!$F$8:$F$100,السلفية!$B22,'حركة شهر 11'!$G$8:$G$100)),"") ->  | Y22: =IFERROR(1/(1/SUMIF('حركة شهر 12'!$J$8:$J$100,السلفية!$B22,'حركة شهر 12'!$K$8:$K$100)),"") ->  | Z22: =IFERROR(1/(1/SUMIF('حركة شهر 12'!$F$8:$F$100,السلفية!$B22,'حركة شهر 12'!$G$8:$G$100)),"") -> 
B23: اوفرتايم علمان | C23: =IFERROR(1/(1/SUMIF('حركة شهر 1'!$J$8:$J$100,السلفية!$B23,'حركة شهر 1'!$K$8:$K$100)),"") ->  | D23: =IFERROR(1/(1/SUMIF('حركة شهر 1'!$F$8:$F$100,السلفية!$B23,'حركة شهر 1'!$G$8:$G$100)),"") ->  | E23: =IFERROR(1/(1/SUMIF('حركة شهر 2'!$J$8:$J$100,السلفية!$B23,'حركة شهر 2'!$K$8:$K$100)),"") -> 570 | F23: =IFERROR(1/(1/SUMIF('حركة شهر 2'!$F$8:$F$100,السلفية!$B23,'حركة شهر 2'!$G$8:$G$100)),"") ->  | G23: =IFERROR(1/(1/SUMIF('حركة شهر3'!$J$8:$J$100,السلفية!$B23,'حركة شهر3'!$K$8:$K$100)),"") ->  | H23: =IFERROR(1/(1/SUMIF('حركة شهر3'!$F$8:$F$100,السلفية!$B23,'حركة شهر3'!$G$8:$G$100)),"") ->  | I23: =IFERROR(1/(1/SUMIF('حركة شهر 4'!$J$8:$J$100,السلفية!$B23,'حركة شهر 4'!$K$8:$K$100)),"") ->  | J23: =IFERROR(1/(1/SUMIF('حركة شهر 4'!$F$8:$F$100,السلفية!$B23,'حركة شهر 4'!$G$8:$G$100)),"") -> 150 | K23: =IFERROR(1/(1/SUMIF('حركة شهر 5'!$J$8:$J$100,السلفية!$B23,'حركة شهر 5'!$K$8:$K$100)),"") ->  | L23: =IFERROR(1/(1/SUMIF('حركة شهر 5'!$F$8:$F$100,السلفية!$B23,'حركة شهر 5'!$G$8:$G$100)),"") ->  | M23: =IFERROR(1/(1/SUMIF('حركة شهر6'!$J$8:$J$100,السلفية!$B23,'حركة شهر6'!$K$8:$K$100)),"") ->  | N23: =IFERROR(1/(1/SUMIF('حركة شهر6'!$F$8:$F$100,السلفية!$B23,'حركة شهر6'!$G$8:$G$100)),"") -> 210 | O23: =IFERROR(1/(1/SUMIF('حركة شهر 7'!$J$8:$J$100,السلفية!$B23,'حركة شهر 7'!$K$8:$K$100)),"") ->  | P23: =IFERROR(1/(1/SUMIF('حركة شهر 7'!$F$8:$F$100,السلفية!$B23,'حركة شهر 7'!$G$8:$G$100)),"") -> 600 | Q23: =IFERROR(1/(1/SUMIF('حركة شهر 8'!$J$8:$J$100,السلفية!$B23,'حركة شهر 8'!$K$8:$K$100)),"") ->  | R23: =IFERROR(1/(1/SUMIF('حركة شهر 8'!$F$8:$F$100,السلفية!$B23,'حركة شهر 8'!$G$8:$G$100)),"") -> 570 | S23: =IFERROR(1/(1/SUMIF('حركة شهر 9'!$J$8:$J$100,السلفية!$B23,'حركة شهر 9'!$K$8:$K$100)),"") ->  | T23: =IFERROR(1/(1/SUMIF('حركة شهر 9'!$F$8:$F$100,السلفية!$B23,'حركة شهر 9'!$G$8:$G$100)),"") -> 210 | U23: =IFERROR(1/(1/SUMIF('حركة شهر 10'!$J$8:$J$100,السلفية!$B23,'حركة شهر 10'!$K$8:$K$100)),"") ->  | V23: =IFERROR(1/(1/SUMIF('حركة شهر 10'!$F$8:$F$100,السلفية!$B23,'حركة شهر 10'!$G$8:$G$100)),"") ->  | W23: =IFERROR(1/(1/SUMIF('حركة شهر 11'!$J$8:$J$100,السلفية!$B23,'حركة شهر 11'!$K$8:$K$100)),"") ->  | X23: =IFERROR(1/(1/SUMIF('حركة شهر 11'!$F$8:$F$100,السلفية!$B23,'حركة شهر 11'!$G$8:$G$100)),"") ->  | Y23: =IFERROR(1/(1/SUMIF('حركة شهر 12'!$J$8:$J$100,السلفية!$B23,'حركة شهر 12'!$K$8:$K$100)),"") ->  | Z23: =IFERROR(1/(1/SUMIF('حركة شهر 12'!$F$8:$F$100,السلفية!$B23,'حركة شهر 12'!$G$8:$G$100)),"") -> 
B24: اوفر تايم جلال | C24: =IFERROR(1/(1/SUMIF('حركة شهر 1'!$J$8:$J$100,السلفية!$B24,'حركة شهر 1'!$K$8:$K$100)),"") ->  | D24: =IFERROR(1/(1/SUMIF('حركة شهر 1'!$F$8:$F$100,السلفية!$B24,'حركة شهر 1'!$G$8:$G$100)),"") ->  | E24: =IFERROR(1/(1/SUMIF('حركة شهر 2'!$J$8:$J$100,السلفية!$B24,'حركة شهر 2'!$K$8:$K$100)),"") -> 450 | F24: =IFERROR(1/(1/SUMIF('حركة شهر 2'!$F$8:$F$100,السلفية!$B24,'حركة شهر 2'!$G$8:$G$100)),"") ->  | G24: =IFERROR(1/(1/SUMIF('حركة شهر3'!$J$8:$J$100,السلفية!$B24,'حركة شهر3'!$K$8:$K$100)),"") ->  | H24: =IFERROR(1/(1/SUMIF('حركة شهر3'!$F$8:$F$100,السلفية!$B24,'حركة شهر3'!$G$8:$G$100)),"") ->  | I24: =IFERROR(1/(1/SUMIF('حركة شهر 4'!$J$8:$J$100,السلفية!$B24,'حركة شهر 4'!$K$8:$K$100)),"") ->  | J24: =IFERROR(1/(1/SUMIF('حركة شهر 4'!$F$8:$F$100,السلفية!$B24,'حركة شهر 4'!$G$8:$G$100)),"") -> 30 | K24: =IFERROR(1/(1/SUMIF('حركة شهر 5'!$J$8:$J$100,السلفية!$B24,'حركة شهر 5'!$K$8:$K$100)),"") ->  | L24: =IFERROR(1/(1/SUMIF('حركة شهر 5'!$F$8:$F$100,السلفية!$B24,'حركة شهر 5'!$G$8:$G$100)),"") ->  | M24: =IFERROR(1/(1/SUMIF('حركة شهر6'!$J$8:$J$100,السلفية!$B24,'حركة شهر6'!$K$8:$K$100)),"") ->  | N24: =IFERROR(1/(1/SUMIF('حركة شهر6'!$F$8:$F$100,السلفية!$B24,'حركة شهر6'!$G$8:$G$100)),"") -> 180 | O24: =IFERROR(1/(1/SUMIF('حركة شهر 7'!$J$8:$J$100,السلفية!$B24,'حركة شهر 7'!$K$8:$K$100)),"") ->  | P24: =IFERROR(1/(1/SUMIF('حركة شهر 7'!$F$8:$F$100,السلفية!$B24,'حركة شهر 7'!$G$8:$G$100)),"") -> 330 | Q24: =IFERROR(1/(1/SUMIF('حركة شهر 8'!$J$8:$J$100,السلفية!$B24,'حركة شهر 8'!$K$8:$K$100)),"") ->  | R24: =IFERROR(1/(1/SUMIF('حركة شهر 8'!$F$8:$F$100,السلفية!$B24,'حركة شهر 8'!$G$8:$G$100)),"") -> 60 | S24: =IFERROR(1/(1/SUMIF('حركة شهر 9'!$J$8:$J$100,السلفية!$B24,'حركة شهر 9'!$K$8:$K$100)),"") ->  | T24: =IFERROR(1/(1/SUMIF('حركة شهر 9'!$F$8:$F$100,السلفية!$B24,'حركة شهر 9'!$G$8:$G$100)),"") -> 180 | U24: =IFERROR(1/(1/SUMIF('حركة شهر 10'!$J$8:$J$100,السلفية!$B24,'حركة شهر 10'!$K$8:$K$100)),"") ->  | V24: =IFERROR(1/(1/SUMIF('حركة شهر 10'!$F$8:$F$100,السلفية!$B24,'حركة شهر 10'!$G$8:$G$100)),"") ->  | W24: =IFERROR(1/(1/SUMIF('حركة شهر 11'!$J$8:$J$100,السلفية!$B24,'حركة شهر 11'!$K$8:$K$100)),"") ->  | X24: =IFERROR(1/(1/SUMIF('حركة شهر 11'!$F$8:$F$100,السلفية!$B24,'حركة شهر 11'!$G$8:$G$100)),"") ->  | Y24: =IFERROR(1/(1/SUMIF('حركة شهر 12'!$J$8:$J$100,السلفية!$B24,'حركة شهر 12'!$K$8:$K$100)),"") ->  | Z24: =IFERROR(1/(1/SUMIF('حركة شهر 12'!$F$8:$F$100,السلفية!$B24,'حركة شهر 12'!$G$8:$G$100)),"") -> 
C25: =IFERROR(1/(1/SUMIF('حركة شهر 1'!$J$8:$J$100,السلفية!$B25,'حركة شهر 1'!$K$8:$K$100)),"") ->  | D25: =IFERROR(1/(1/SUMIF('حركة شهر 1'!$F$8:$F$100,السلفية!$B25,'حركة شهر 1'!$G$8:$G$100)),"") ->  | E25: =IFERROR(1/(1/SUMIF('حركة شهر 2'!$J$8:$J$100,السلفية!$B25,'حركة شهر 2'!$K$8:$K$100)),"") ->  | F25: =IFERROR(1/(1/SUMIF('حركة شهر 2'!$F$8:$F$100,السلفية!$B25,'حركة شهر 2'!$G$8:$G$100)),"") ->  | G25: =IFERROR(1/(1/SUMIF('حركة شهر3'!$J$8:$J$100,السلفية!$B25,'حركة شهر3'!$K$8:$K$100)),"") ->  | H25: =IFERROR(1/(1/SUMIF('حركة شهر3'!$F$8:$F$100,السلفية!$B25,'حركة شهر3'!$G$8:$G$100)),"") ->  | I25: =IFERROR(1/(1/SUMIF('حركة شهر 4'!$J$8:$J$100,السلفية!$B25,'حركة شهر 4'!$K$8:$K$100)),"") ->  | J25: =IFERROR(1/(1/SUMIF('حركة شهر 4'!$F$8:$F$100,السلفية!$B25,'حركة شهر 4'!$G$8:$G$100)),"") ->  | K25: =IFERROR(1/(1/SUMIF('حركة شهر 5'!$J$8:$J$100,السلفية!$B25,'حركة شهر 5'!$K$8:$K$100)),"") ->  | L25: =IFERROR(1/(1/SUMIF('حركة شهر 5'!$F$8:$F$100,السلفية!$B25,'حركة شهر 5'!$G$8:$G$100)),"") ->  | M25: =IFERROR(1/(1/SUMIF('حركة شهر6'!$J$8:$J$100,السلفية!$B25,'حركة شهر6'!$K$8:$K$100)),"") ->  | N25: =IFERROR(1/(1/SUMIF('حركة شهر6'!$F$8:$F$100,السلفية!$B25,'حركة شهر6'!$G$8:$G$100)),"") ->  | O25: =IFERROR(1/(1/SUMIF('حركة شهر 7'!$J$8:$J$100,السلفية!$B25,'حركة شهر 7'!$K$8:$K$100)),"") ->  | P25: =IFERROR(1/(1/SUMIF('حركة شهر 7'!$F$8:$F$100,السلفية!$B25,'حركة شهر 7'!$G$8:$G$100)),"") ->  | Q25: =IFERROR(1/(1/SUMIF('حركة شهر 8'!$J$8:$J$100,السلفية!$B25,'حركة شهر 8'!$K$8:$K$100)),"") ->  | R25: =IFERROR(1/(1/SUMIF('حركة شهر 8'!$F$8:$F$100,السلفية!$B25,'حركة شهر 8'!$G$8:$G$100)),"") ->  | S25: =IFERROR(1/(1/SUMIF('حركة شهر 9'!$J$8:$J$100,السلفية!$B25,'حركة شهر 9'!$K$8:$K$100)),"") ->  | T25: =IFERROR(1/(1/SUMIF('حركة شهر 9'!$F$8:$F$100,السلفية!$B25,'حركة شهر 9'!$G$8:$G$100)),"") ->  | U25: =IFERROR(1/(1/SUMIF('حركة شهر 10'!$J$8:$J$100,السلفية!$B25,'حركة شهر 10'!$K$8:$K$100)),"") ->  | V25: =IFERROR(1/(1/SUMIF('حركة شهر 10'!$F$8:$F$100,السلفية!$B25,'حركة شهر 10'!$G$8:$G$100)),"") ->  | W25: =IFERROR(1/(1/SUMIF('حركة شهر 11'!$J$8:$J$100,السلفية!$B25,'حركة شهر 11'!$K$8:$K$100)),"") ->  | X25: =IFERROR(1/(1/SUMIF('حركة شهر 11'!$F$8:$F$100,السلفية!$B25,'حركة شهر 11'!$G$8:$G$100)),"") ->  | Y25: =IFERROR(1/(1/SUMIF('حركة شهر 12'!$J$8:$J$100,السلفية!$B25,'حركة شهر 12'!$K$8:$K$100)),"") ->  | Z25: =IFERROR(1/(1/SUMIF('حركة شهر 12'!$F$8:$F$100,السلفية!$B25,'حركة شهر 12'!$G$8:$G$100)),"") -> 
C26: =IFERROR(1/(1/SUMIF('حركة شهر 1'!$J$8:$J$100,السلفية!$B26,'حركة شهر 1'!$K$8:$K$100)),"") ->  | D26: =IFERROR(1/(1/SUMIF('حركة شهر 1'!$F$8:$F$100,السلفية!$B26,'حركة شهر 1'!$G$8:$G$100)),"") ->  | E26: =IFERROR(1/(1/SUMIF('حركة شهر 2'!$J$8:$J$100,السلفية!$B26,'حركة شهر 2'!$K$8:$K$100)),"") ->  | F26: =IFERROR(1/(1/SUMIF('حركة شهر 2'!$F$8:$F$100,السلفية!$B26,'حركة شهر 2'!$G$8:$G$100)),"") ->  | G26: =IFERROR(1/(1/SUMIF('حركة شهر3'!$J$8:$J$100,السلفية!$B26,'حركة شهر3'!$K$8:$K$100)),"") ->  | H26: =IFERROR(1/(1/SUMIF('حركة شهر3'!$F$8:$F$100,السلفية!$B26,'حركة شهر3'!$G$8:$G$100)),"") ->  | I26: =IFERROR(1/(1/SUMIF('حركة شهر 4'!$J$8:$J$100,السلفية!$B26,'حركة شهر 4'!$K$8:$K$100)),"") ->  | J26: =IFERROR(1/(1/SUMIF('حركة شهر 4'!$F$8:$F$100,السلفية!$B26,'حركة شهر 4'!$G$8:$G$100)),"") ->  | K26: =IFERROR(1/(1/SUMIF('حركة شهر 5'!$J$8:$J$100,السلفية!$B26,'حركة شهر 5'!$K$8:$K$100)),"") ->  | L26: =IFERROR(1/(1/SUMIF('حركة شهر 5'!$F$8:$F$100,السلفية!$B26,'حركة شهر 5'!$G$8:$G$100)),"") ->  | M26: =IFERROR(1/(1/SUMIF('حركة شهر6'!$J$8:$J$100,السلفية!$B26,'حركة شهر6'!$K$8:$K$100)),"") ->  | N26: =IFERROR(1/(1/SUMIF('حركة شهر6'!$F$8:$F$100,السلفية!$B26,'حركة شهر6'!$G$8:$G$100)),"") ->  | O26: =IFERROR(1/(1/SUMIF('حركة شهر 7'!$J$8:$J$100,السلفية!$B26,'حركة شهر 7'!$K$8:$K$100)),"") ->  | P26: =IFERROR(1/(1/SUMIF('حركة شهر 7'!$F$8:$F$100,السلفية!$B26,'حركة شهر 7'!$G$8:$G$100)),"") ->  | Q26: =IFERROR(1/(1/SUMIF('حركة شهر 8'!$J$8:$J$100,السلفية!$B26,'حركة شهر 8'!$K$8:$K$100)),"") ->  | R26: =IFERROR(1/(1/SUMIF('حركة شهر 8'!$F$8:$F$100,السلفية!$B26,'حركة شهر 8'!$G$8:$G$100)),"") ->  | S26: =IFERROR(1/(1/SUMIF('حركة شهر 9'!$J$8:$J$100,السلفية!$B26,'حركة شهر 9'!$K$8:$K$100)),"") ->  | T26: =IFERROR(1/(1/SUMIF('حركة شهر 9'!$F$8:$F$100,السلفية!$B26,'حركة شهر 9'!$G$8:$G$100)),"") ->  | U26: =IFERROR(1/(1/SUMIF('حركة شهر 10'!$J$8:$J$100,السلفية!$B26,'حركة شهر 10'!$K$8:$K$100)),"") ->  | V26: =IFERROR(1/(1/SUMIF('حركة شهر 10'!$F$8:$F$100,السلفية!$B26,'حركة شهر 10'!$G$8:$G$100)),"") ->  | W26: =IFERROR(1/(1/SUMIF('حركة شهر 11'!$J$8:$J$100,السلفية!$B26,'حركة شهر 11'!$K$8:$K$100)),"") ->  | X26: =IFERROR(1/(1/SUMIF('حركة شهر 11'!$F$8:$F$100,السلفية!$B26,'حركة شهر 11'!$G$8:$G$100)),"") ->  | Y26: =IFERROR(1/(1/SUMIF('حركة شهر 12'!$J$8:$J$100,السلفية!$B26,'حركة شهر 12'!$K$8:$K$100)),"") ->  | Z26: =IFERROR(1/(1/SUMIF('حركة شهر 12'!$F$8:$F$100,السلفية!$B26,'حركة شهر 12'!$G$8:$G$100)),"") -> 

Sheet sheet30
B1: اسم المستخدم | C1: كلمة المرور
B2: SJCO | C2: 123
B3: محمد | C3: 23150
